{"text_format":"1","workbook":"xlsx","n_sheets":8,"sheets":["Submission Template","Supplier Instructions for RFQ","Product Groups","Platforms","Product Group Determiner","Claim types validation","Claim Event validation","Claim Event Reference"],"not_rendered":{"charts":0,"images":14,"macros":1,"external_links":0,"defined_names":6,"comments":0,"pivot_tables":2},"unopened":[],"bounds":{"document_bytes":16777216,"sheet_cells":100000,"rows_first":2000,"rows_last":500,"rows_between":2000,"halvings":0,"cell_chars":16384,"cell_head_chars":4096},"cells_cut":0,"cells_raw":0,"read":"whole","date_system":"1900"}

{"sheet":"Submission Template","index":0,"n_rows":26,"n_cols":12,"rows_kept":26,"cut":false,"hidden":false,"merged":[[1,0,1,1],[2,3,2,6],[3,3,3,6],[6,3,7,6],[9,3,10,6],[20,3,20,6],[18,3,18,6],[21,3,21,6],[23,3,24,6],[12,3,14,6],[16,3,16,6],[17,3,17,6]]}
[null,null,null,"INSTRUCTIONS:"]
["ORACLE SUPPLIER CLAIMS SUBMISSION TEMPLATE",null,"1)","Please complete this claims submission template in its entirety."]
[null,null,"2)","Email this completed template in pdf format to:",null,null,null,{"$f":"NOW()-(5*365)","v":"2017-05-26T13:11:27.890"}]
[null,null,null,"Email a zipfile with this completed Template (in pdf format) and Supporting Documentation file(s) to justify the claim amount to:  "]
[" Claim Type   Select from drop-down menu",null,null,"submitclaims_ww@oracle.com",null,null,null,null,null,1,{"$f":"IF(ISERROR(VLOOKUP(J5,'Claim types validation'!C:D,2,FALSE)),\"Not Set\",VLOOKUP(J5,'Claim types validation'!C:D,2,FALSE))","v":"Not Set"},{"$f":"LEFT(K5,7)","v":"Not Set"}]
[]
[" Event Name  Select from drop-down menu","","3)","Upon receipt, you will receive an automatic reply with an assigned claims number."]
[]
["Event Date (DD/MM/YYYY)"]
[null,null,"4)","After Oracle receives the claim template, the Supplier Contact listed will receive an RFQ from Oracle to collect the details of the claim.  Please allow 2-3 business days for the RFQ to be sent."]
["Supplier Name (Company Name)"]
[]
["Supplier Site Name (City)",null,"5)","Respond to the RFQ in Oracle's iSupplier Portal to provide the amount of the claim.   During this process, please also attach to your RFQ response any supporting documentation to justify the amount of the claim.   "]
[]
["Supplier Contact Name (Person Oracle should contact )"]
["Supplier Contact email"]
[null,null,null,"Oracle's iSupplier portal can be found here:  "]
["Oracle Claim Owner Name (if known)",null,null,"https://suppliers.oracle.com"]
[null,null,null,"Click on the link that corresponds with Accounts Payable and Purchasing applications"]
["Oracle Sourcing Manager Name (if known)"]
[null,null,null,"Video instructions on how to respond to an RFQ can be found here:"]
["Oracle Platform Name",null,null,"https://videohub.oracle.com/media/Responding+to+RFQ/1_fufzo2hp/102877741"]
["Please describe:"]
["Product Group   Reference field - will auto-populate",{"$f":"'Product Group Determiner'!$D$3","v":""},null,"A text version of instructions on how to respond to an RFQ can be found in the \"Supplier instructions for RFQ\" tab of this spreadsheet."]
[]
["Claim Amount in USD $"]

{"sheet":"Supplier Instructions for RFQ","index":1,"n_rows":158,"n_cols":1,"rows_kept":158,"cut":false,"hidden":false,"merged":[]}
["Instructions for responding to an RFQ"]
[]
["After logging into the iSupplier Portal click on the Supplier Portal icon"]
[]
[]
[]
[]
[]
[]
[]
[]
[]
[]
[]
[]
[]
[]
["Select \"View Active Negotiations\"  from the menu options on the left side of the screen"]
[]
[]
[]
[]
[]
[]
[]
[]
[]
[]
[]
[]
[]
[]
[]
[]
[]
[]
["Select the RFQ to which you are responding by clicking on the blank space to the left of the Negotiation number."]
[]
[]
[]
[]
[]
[]
[]
[]
[]
[]
[]
[]
[]
[]
[]
[]
[]
["Then click the Create Response button above."]
[]
[]
[]
[]
[]
[]
["You will be taken to a screen to start your response.  Click on the \"+\" sign by the attachments to add any documentation "]
["to provide support or justification to the claim."]
[]
[]
[]
[]
[]
[]
[]
[]
[]
[]
[]
[]
[]
[]
[]
[]
["After your attachments are added, you click on the \"Next\" button twice to continue to the Lines section of the RFQ.  "]
["The first click of Next will take you to the requirements section of the RFQ.  Requirements are not needed for claims processing."]
["Click the next button again to go to the lines section of the RFQ."]
[]
[]
[]
[]
[]
[]
[]
[]
[]
[]
[]
[]
[]
["Enter the total amount of the claim in the Response Price of the line"]
[]
[]
[]
[]
[]
[]
[]
[]
[]
[]
[]
["Click the \"Next\" button to continue to the Review page:"]
[]
[]
[]
[]
[]
[]
[]
[]
["On the review page you can see and check the information you have entered so far. "]
["After you have reviewed and ensured that your response to the RFQ is correct, "]
["Click the Submit button to send your response to Oracle."]
[]
[]
[]
[]
[]
[]
[]
[]
[]
["While preparing your RFQ response you can click the \"Save\" button at any time to be "]
["able to save your entries and be able to return to complete the response later."]
[]
[]
[]
[]
[]
[]
[]
[]
["If you have any questions about the RFQ you wish Oracle to respond to prior to submitting"]
["your response to the RFQ, you can click the  \"Messages\" button to send your question to Oracle."]
[]
[]
[]
[]
[]
[]
["After clicking the \"Messages\" button you will come to a screen where you can send a "]
["message or question back to Oracle about the RFQ"]
[]
["Click the \"+\" to create a new message."]
[]
[]
[]
[]
[]
[]
[]
["Choose the recipient of the email, enter the subject, message body, any attachments, and click send."]

{"sheet":"Product Groups","index":2,"n_rows":8,"n_cols":1,"rows_kept":8,"cut":false,"hidden":true,"merged":[]}
["Product Group"]
["Global Manufacturing and Logistics"]
["Global Planning and Fulfillment"]
["Global Supplier Management"]
["Product Lifecycle and Technology"]
["Direct-to-Customer (SPARC/NETRA/CBGU)"]
["Direct-to-Customer (MICROS)"]
["Direct-to-Customer (Tape Library)"]

{"sheet":"Platforms","index":3,"n_rows":77,"n_cols":2,"rows_kept":77,"cut":false,"hidden":true,"merged":[]}
["Platforms","Product Group"]
[]
["42RU SERVER-LESS RACK","CLOUD"]
["A1","CLOUD"]
["A2-2C","CLOUD"]
["A3-2C","CLOUD"]
["A4-2C","CLOUD"]
["ACME PACKET 1100","Direct-to-Customer (SPARC/NETRA/CBGU)"]
["ACME PACKET 3900","Direct-to-Customer (SPARC/NETRA/CBGU)"]
["ACME PACKET 3950","Direct-to-Customer (SPARC/NETRA/CBGU)"]
["ACME PACKET 4600","Direct-to-Customer (SPARC/NETRA/CBGU)"]
["ACME PACKET 4900","Direct-to-Customer (SPARC/NETRA/CBGU)"]
["ACME PACKET 6100","Direct-to-Customer (SPARC/NETRA/CBGU)"]
["ACME PACKET 6300","Direct-to-Customer (SPARC/NETRA/CBGU)"]
["ACME PACKET 6350","Direct-to-Customer (SPARC/NETRA/CBGU)"]
["C2","CLOUD"]
["DE3-24C","CLOUD"]
["DE3-24P","CLOUD"]
["E1-2c","CLOUD"]
["E2-2c","CLOUD"]
["E4","CLOUD"]
["E5-2C","CLOUD"]
["E5-2L","CLOUD"]
["E6","CLOUD"]
["EAGLE","Direct-to-Customer (SPARC/NETRA/CBGU)"]
["FUJITSU M10-1","Direct-to-Customer (SPARC/NETRA/CBGU)"]
["FUJITSU M10-4S","Direct-to-Customer (SPARC/NETRA/CBGU)"]
["FUJITSU SPARC M12","Direct-to-Customer (SPARC/NETRA/CBGU)"]
["GPU Rack","CLOUD"]
["MICROS","Direct-to-Customer (MICROS)"]
["NETRA SPARC S7-2","CLOUD"]
["Network Rack Stand Alone","CLOUD"]
["ORACLE KEY MANAGER","CLOUD"]
["SD-WAN","CLOUD"]
["SPARC M7","Direct-to-Customer (MICROS)"]
["SPARC M8-8","Direct-to-Customer (MICROS)"]
["SPARC S7-2","Direct-to-Customer (MICROS)"]
["SPARC S7-2L","Direct-to-Customer (MICROS)"]
["SPARC T7-1","Direct-to-Customer (MICROS)"]
["SPARC T8-1","Direct-to-Customer (MICROS)"]
["SPARC T8-2","Direct-to-Customer (MICROS)"]
["SPARC T8-4","Direct-to-Customer (MICROS)"]
["STORAGETEK LTO","Direct-to-Customer (Tape Library)"]
["STORAGETEK LTO6","Direct-to-Customer (Tape Library)"]
["STORAGETEK LTO7","Direct-to-Customer (Tape Library)"]
["STORAGETEK LTO8","Direct-to-Customer (Tape Library)"]
["STORAGETEK SL150","Direct-to-Customer (Tape Library)"]
["STORAGETEK SL3000","Direct-to-Customer (Tape Library)"]
["STORAGETEK SL4000","Direct-to-Customer (Tape Library)"]
["STORAGETEK SL8500","Direct-to-Customer (Tape Library)"]
["STORAGETEK T10000","Direct-to-Customer (Tape Library)"]
["X10-2L","CLOUD"]
["X10-2c","CLOUD"]
["X11-2c","CLOUD"]
["X11-2L","CLOUD"]
["X11","CLOUD"]
["X7-2","CLOUD"]
["X7-2-HA","CLOUD"]
["X7-2L","CLOUD"]
["X7-2S/X7-2M","CLOUD"]
["X7-2c","CLOUD"]
["X7-8","CLOUD"]
["X8-2","CLOUD"]
["X8-2-HA","CLOUD"]
["X8-2L","CLOUD"]
["X8-2M","CLOUD"]
["X8-2S","CLOUD"]
["X8-8","CLOUD"]
["X9-2","CLOUD"]
["X9-2-HA","CLOUD"]
["X9-2L","CLOUD"]
["X9-2M","CLOUD"]
["X9-2S","CLOUD"]
["X9-2c","CLOUD"]
["ZS5-4","CLOUD"]
["ZS7-2","CLOUD"]
["Other (Not Listed)","CLOUD"]

{"sheet":"Product Group Determiner","index":4,"n_rows":3,"n_cols":4,"rows_kept":3,"cut":false,"hidden":true,"merged":[]}
[{"$f":"'Submission Template'!K5","v":"Not Set"},{"$f":"'Submission Template'!B7","v":""},{"$f":"A1&B1","v":"Not Set"},{"$f":"VLOOKUP(C1,'Claim Event Reference'!D:E,2,FALSE)","v":{"$error":"#N/A"}}]
[null,null,{"$f":"'Submission Template'!B22","v":0},{"$f":"VLOOKUP(C2,Platforms!A:B,2,FALSE)","v":{"$error":"#N/A"}}]
[null,null,null,{"$f":"IF(ISERROR(IF(D2=\"CLOUD\",D1,D2)),\"\",IF(D2=\"CLOUD\",D1,D2))","v":""}]

{"sheet":"Claim types validation","index":5,"n_rows":37,"n_cols":4,"rows_kept":37,"cut":false,"hidden":true,"merged":[]}
[]
[]
["Row Labels"]
["Aged Buffer",{"$f":"IF(A4=0,\"\",IF(A4=\"(blank)\",\"\",A4))","v":"Aged Buffer"},2,{"$f":"B4","v":"Aged Buffer"}]
["Excess and Obsolete",{"$f":"IF(A5=0,\"\",IF(A5=\"(blank)\",\"\",A5))","v":"Excess and Obsolete"},{"$f":"C4+1","v":3},{"$f":"B5","v":"Excess and Obsolete"}]
["Excess and Obsolete (Quality)","Excess and Obsolete (Quality)",{"$f":"C5+1","v":4},"Excess and Obsolete (Quality)"]
["Inventory Revaluation","Inventory Revaluation",5,"Inventory Revaluation"]
["Premium Charges","Premium Charges",6,"Premium Charges"]
["Purchase Price Variance","Purchase Price Variance",7,"Purchase Price Variance"]
["Reverse Claim","Reverse Claim",8,"Reverse Claim"]
["Reverse Claim - Excess & Obsolete","Reverse Claim - Excess & Obsolete",9,"Reverse Claim - Excess & Obsolete"]
["Reverse Claim - Inventory Revaluation","Reverse Claim - Inventory Revaluation",10,"Reverse Claim - Inventory Revaluation"]
["Reverse Claim - Rework","Reverse Claim - Rework",11,"Reverse Claim - Rework"]
["Reverse Claims - PPV","Reverse Claims - PPV",12,"Reverse Claims - PPV"]
["Reverse Claims - Premium Charges","Reverse Claims - Premium Charges",13,"Reverse Claims - Premium Charges"]
["Rework","Rework",14,"Rework"]
["(blank)","",15,""]
[null,"",16,""]
[null,"",17,""]
[null,"",18,""]
[null,"",19,""]
[null,"",20,""]
[null,"",21,""]
[null,"",22,""]
[null,"",23,""]
[null,"",24,""]
[null,"",25,""]
[null,"",26,""]
[null,"",27,""]
[null,"",28,""]
[null,"",29,""]
[null,"",30,""]
[null,"",31,""]
[null,"",32,""]
[null,"",33,""]
[null,"",34,""]
[null,"",35,""]

{"sheet":"Claim Event validation","index":6,"n_rows":37,"n_cols":2,"rows_kept":37,"cut":false,"hidden":true,"merged":[]}
[]
[]
["Row Labels"]
[null,{"$f":"IF(A4=0,\"\",IF(A4=\"(blank)\",\"\",A4))","v":""}]
["(blank)",{"$f":"IF(A5=0,\"\",IF(A5=\"(blank)\",\"\",A5))","v":""}]
[null,""]
[null,""]
[null,""]
[null,""]
[null,""]
[null,""]
[null,""]
[null,""]
[null,""]
[null,""]
[null,""]
[null,""]
[null,""]
[null,""]
[null,""]
[null,""]
[null,""]
[null,""]
[null,""]
[null,""]
[null,""]
[null,""]
[null,""]
[null,""]
[null,""]
[null,""]
[null,""]
[null,""]
[null,""]
[null,""]
[null,""]
[null,""]

{"sheet":"Claim Event Reference","index":7,"n_rows":853,"n_cols":25,"rows_kept":853,"cut":false,"hidden":true,"merged":[]}
["-Select Claim Type-",null,"-Select Claim Event",null,"Product Group",null,null,null,null,null,"Product Group",null,null,null,null,null,null,null,null,null,null,null,null,null,"-Select Claim Event"]
["Excess and Obsolete",null,"Excess and Obsolete",{"$f":"A2&C2","v":"Excess and ObsoleteExcess and Obsolete"},"Global Planning and Fulfillment",null,null,null,null,null,"Global Manufacturing and Logistics",null,null,null,null,null,null,null,null,null,null,null,null,null,{"$f":"IF(ISERROR(VLOOKUP(A2,'Submission Template'!$K$5,1,FALSE)),\"\",C2)","v":""}]
["Excess and Obsolete",null,"AVL Changes",{"$f":"A3&C3","v":"Excess and ObsoleteAVL Changes"},"Global Supplier Management",null,null,null,null,null,"Global Planning and Fulfillment",null,null,null,null,null,null,null,null,null,null,null,null,null,{"$f":"IF(ISERROR(VLOOKUP(A3,'Submission Template'!$K$5,1,FALSE)),\"\",C3)","v":""}]
["Excess and Obsolete",null,"ECO Changes","Excess and ObsoleteECO Changes","Product Lifecycle and Technology",null,null,null,null,null,"Global Supplier Management",null,null,null,null,null,null,null,null,null,null,null,null,null,{"$f":"IF(ISERROR(VLOOKUP(A4,'Submission Template'!$K$5,1,FALSE)),\"\",C4)","v":""}]
["Excess and Obsolete",null,"Last Time Buy","Excess and ObsoleteLast Time Buy","Global Planning and Fulfillment",null,null,null,null,null,"Product Lifecycle and Technology",null,null,null,null,null,null,null,null,null,null,null,null,null,{"$f":"IF(ISERROR(VLOOKUP(A5,'Submission Template'!$K$5,1,FALSE)),\"\",C5)","v":""}]
["Excess and Obsolete",null,"Part Purges","Excess and ObsoletePart Purges","Global Planning and Fulfillment",null,null,null,null,null,null,null,null,null,null,null,null,null,null,null,null,null,null,null,{"$f":"IF(ISERROR(VLOOKUP(A6,'Submission Template'!$K$5,1,FALSE)),\"\",C6)","v":""}]
["Excess and Obsolete",null,"Product End of Life","Excess and ObsoleteProduct End of Life","Product Lifecycle and Technology",null,null,null,null,null,null,null,null,null,null,null,null,null,null,null,null,null,null,null,{"$f":"IF(ISERROR(VLOOKUP(A7,'Submission Template'!$K$5,1,FALSE)),\"\",C7)","v":""}]
["Excess and Obsolete",null,"Quality Cost (Purge, Scrap, etc.)","Excess and ObsoleteQuality Cost (Purge, Scrap, etc.)","Global Manufacturing and Logistics",null,null,null,null,null,null,null,null,null,null,null,null,null,null,null,null,null,null,null,{"$f":"IF(ISERROR(VLOOKUP(A8,'Submission Template'!$K$5,1,FALSE)),\"\",C8)","v":""}]
["Excess and Obsolete",null,"Stop Production Notice","Excess and ObsoleteStop Production Notice","Global Planning and Fulfillment",null,null,null,null,null,null,null,null,null,null,null,null,null,null,null,null,null,null,null,{"$f":"IF(ISERROR(VLOOKUP(A9,'Submission Template'!$K$5,1,FALSE)),\"\",C9)","v":""}]
["Excess and Obsolete",null,"Supply Plan Reduction","Excess and ObsoleteSupply Plan Reduction","Global Planning and Fulfillment",null,null,null,null,null,null,null,null,null,null,null,null,null,null,null,null,null,null,null,{"$f":"IF(ISERROR(VLOOKUP(A10,'Submission Template'!$K$5,1,FALSE)),\"\",C10)","v":""}]
["Inventory Revaluation",null,"Inventory at EM/Qtr End Revalued for Price Changes","Inventory RevaluationInventory at EM/Qtr End Revalued for Price Changes","Global Supplier Management",null,null,null,null,null,null,null,null,null,null,null,null,null,null,null,null,null,null,null,{"$f":"IF(ISERROR(VLOOKUP(A11,'Submission Template'!$K$5,1,FALSE)),\"\",C11)","v":""}]
["Inventory Revaluation",null,"Supply Plan Reduction","Inventory RevaluationSupply Plan Reduction","Global Planning and Fulfillment",null,null,null,null,null,null,null,null,null,null,null,null,null,null,null,null,null,null,null,{"$f":"IF(ISERROR(VLOOKUP(A12,'Submission Template'!$K$5,1,FALSE)),\"\",C12)","v":""}]
["Purchase Price Variance",null,"Cost Audit","Purchase Price VarianceCost Audit","Global Supplier Management",null,null,null,null,null,null,null,null,null,null,null,null,null,null,null,null,null,null,null,{"$f":"IF(ISERROR(VLOOKUP(A13,'Submission Template'!$K$5,1,FALSE)),\"\",C13)","v":""}]
["Purchase Price Variance",null,"Price Changes","Purchase Price VariancePrice Changes","Global Supplier Management",null,null,null,null,null,null,null,null,null,null,null,null,null,null,null,null,null,null,null,{"$f":"IF(ISERROR(VLOOKUP(A14,'Submission Template'!$K$5,1,FALSE)),\"\",C14)","v":""}]
["Premium Charges",null,"3PL claims for charges over/above standard tarrif rates","Premium Charges3PL claims for charges over/above standard tarrif rates","Global Manufacturing and Logistics",null,null,null,null,null,null,null,null,null,null,null,null,null,null,null,null,null,null,null,{"$f":"IF(ISERROR(VLOOKUP(A15,'Submission Template'!$K$5,1,FALSE)),\"\",C15)","v":""}]
["Premium Charges",null,"Additional freight to deliver Parts Within Lead Time","Premium ChargesAdditional freight to deliver Parts Within Lead Time","Global Manufacturing and Logistics",null,null,null,null,null,null,null,null,null,null,null,null,null,null,null,null,null,null,null,{"$f":"IF(ISERROR(VLOOKUP(A16,'Submission Template'!$K$5,1,FALSE)),\"\",C16)","v":""}]
["Premium Charges",null,"Additional freight for plan upside","Premium ChargesAdditional freight for plan upside","Global Manufacturing and Logistics",null,null,null,null,null,null,null,null,null,null,null,null,null,null,null,null,null,null,null,{"$f":"IF(ISERROR(VLOOKUP(A17,'Submission Template'!$K$5,1,FALSE)),\"\",C17)","v":""}]
["Premium Charges",null,"Inventory carrying cost for last time buys","Premium ChargesInventory carrying cost for last time buys","Global Planning and Fulfillment",null,null,null,null,null,null,null,null,null,null,null,null,null,null,null,null,null,null,null,{"$f":"IF(ISERROR(VLOOKUP(A18,'Submission Template'!$K$5,1,FALSE)),\"\",C18)","v":""}]
["Premium Charges",null,"Inventory carrying cost for Supply Plan Reductions","Premium ChargesInventory carrying cost for Supply Plan Reductions","Global Planning and Fulfillment",null,null,null,null,null,null,null,null,null,null,null,null,null,null,null,null,null,null,null,{"$f":"IF(ISERROR(VLOOKUP(A19,'Submission Template'!$K$5,1,FALSE)),\"\",C19)","v":""}]
["Premium Charges",null,"Inventory Held at Supplier – Contract Term","Premium ChargesInventory Held at Supplier – Contract Term","Global Planning and Fulfillment",null,null,null,null,null,null,null,null,null,null,null,null,null,null,null,null,null,null,null,{"$f":"IF(ISERROR(VLOOKUP(A20,'Submission Template'!$K$5,1,FALSE)),\"\",C20)","v":""}]
["Premium Charges",null,"Material Premium for Plan Upside","Premium ChargesMaterial Premium for Plan Upside","Global Planning and Fulfillment",null,null,null,null,null,null,null,null,null,null,null,null,null,null,null,null,null,null,null,{"$f":"IF(ISERROR(VLOOKUP(A21,'Submission Template'!$K$5,1,FALSE)),\"\",C21)","v":""}]
["Premium Charges",null,"OT required for Plan Upside","Premium ChargesOT required for Plan Upside","Global Planning and Fulfillment",null,null,null,null,null,null,null,null,null,null,null,null,null,null,null,null,null,null,null,{"$f":"IF(ISERROR(VLOOKUP(A22,'Submission Template'!$K$5,1,FALSE)),\"\",C22)","v":""}]
["Premium Charges",null,"OT to Deliver Parts Within LT","Premium ChargesOT to Deliver Parts Within LT","Global Supplier Management",null,null,null,null,null,null,null,null,null,null,null,null,null,null,null,null,null,null,null,{"$f":"IF(ISERROR(VLOOKUP(A23,'Submission Template'!$K$5,1,FALSE)),\"\",C23)","v":""}]
["Aged Buffer",null,"Non-Oracle Unique Material","Aged BufferNon-Oracle Unique Material","Global Planning and Fulfillment",null,null,null,null,null,null,null,null,null,null,null,null,null,null,null,null,null,null,null,{"$f":"IF(ISERROR(VLOOKUP(A24,'Submission Template'!$K$5,1,FALSE)),\"\",C24)","v":""}]
["Aged Buffer",null,"Oracle Unique Material","Aged BufferOracle Unique Material","Global Planning and Fulfillment",null,null,null,null,null,null,null,null,null,null,null,null,null,null,null,null,null,null,null,{"$f":"IF(ISERROR(VLOOKUP(A25,'Submission Template'!$K$5,1,FALSE)),\"\",C25)","v":""}]
["Rework",null,"AVL Changes","ReworkAVL Changes","Global Supplier Management",null,null,null,null,null,null,null,null,null,null,null,null,null,null,null,null,null,null,null,{"$f":"IF(ISERROR(VLOOKUP(A26,'Submission Template'!$K$5,1,FALSE)),\"\",C26)","v":""}]
["Rework",null,"ECO Changes","ReworkECO Changes","Product Lifecycle and Technology",null,null,null,null,null,null,null,null,null,null,null,null,null,null,null,null,null,null,null,{"$f":"IF(ISERROR(VLOOKUP(A27,'Submission Template'!$K$5,1,FALSE)),\"\",C27)","v":""}]
["Rework",null,"Part Purges","ReworkPart Purges","Global Planning and Fulfillment",null,null,null,null,null,null,null,null,null,null,null,null,null,null,null,null,null,null,null,{"$f":"IF(ISERROR(VLOOKUP(A28,'Submission Template'!$K$5,1,FALSE)),\"\",C28)","v":""}]
["Rework",null,"Product End Of Life","ReworkProduct End Of Life","Global Planning and Fulfillment",null,null,null,null,null,null,null,null,null,null,null,null,null,null,null,null,null,null,null,{"$f":"IF(ISERROR(VLOOKUP(A29,'Submission Template'!$K$5,1,FALSE)),\"\",C29)","v":""}]
["Rework",null,"Stop Production Notice","ReworkStop Production Notice","Global Planning and Fulfillment",null,null,null,null,null,null,null,null,null,null,null,null,null,null,null,null,null,null,null,{"$f":"IF(ISERROR(VLOOKUP(A30,'Submission Template'!$K$5,1,FALSE)),\"\",C30)","v":""}]
["Rework",null,"Supply Plan Reduction","ReworkSupply Plan Reduction","Global Planning and Fulfillment",null,null,null,null,null,null,null,null,null,null,null,null,null,null,null,null,null,null,null,{"$f":"IF(ISERROR(VLOOKUP(A31,'Submission Template'!$K$5,1,FALSE)),\"\",C31)","v":""}]
["Reverse Claim - Excess & Obsolete",null,"AVL Changes","Reverse Claim - Excess & ObsoleteAVL Changes","Global Supplier Management",null,null,null,null,null,null,null,null,null,null,null,null,null,null,null,null,null,null,null,{"$f":"IF(ISERROR(VLOOKUP(A32,'Submission Template'!$K$5,1,FALSE)),\"\",C32)","v":""}]
["Reverse Claim - Excess & Obsolete",null,"ECO Changes","Reverse Claim - Excess & ObsoleteECO Changes","Product Lifecycle and Technology",null,null,null,null,null,null,null,null,null,null,null,null,null,null,null,null,null,null,null,{"$f":"IF(ISERROR(VLOOKUP(A33,'Submission Template'!$K$5,1,FALSE)),\"\",C33)","v":""}]
["Reverse Claim - Excess & Obsolete",null,"Last Time Buy","Reverse Claim - Excess & ObsoleteLast Time Buy","Global Planning and Fulfillment",null,null,null,null,null,null,null,null,null,null,null,null,null,null,null,null,null,null,null,{"$f":"IF(ISERROR(VLOOKUP(A34,'Submission Template'!$K$5,1,FALSE)),\"\",C34)","v":""}]
["Reverse Claim - Excess & Obsolete",null,"Part Purges","Reverse Claim - Excess & ObsoletePart Purges","Global Planning and Fulfillment",null,null,null,null,null,null,null,null,null,null,null,null,null,null,null,null,null,null,null,{"$f":"IF(ISERROR(VLOOKUP(A35,'Submission Template'!$K$5,1,FALSE)),\"\",C35)","v":""}]
["Reverse Claim - Excess & Obsolete",null,"Product End of Life","Reverse Claim - Excess & ObsoleteProduct End of Life","Product Lifecycle and Technology",null,null,null,null,null,null,null,null,null,null,null,null,null,null,null,null,null,null,null,{"$f":"IF(ISERROR(VLOOKUP(A36,'Submission Template'!$K$5,1,FALSE)),\"\",C36)","v":""}]
["Reverse Claim - Excess & Obsolete",null,"Quality Cost (Purge, Scrap, etc.)","Reverse Claim - Excess & ObsoleteQuality Cost (Purge, Scrap, etc.)","Global Manufacturing and Logistics",null,null,null,null,null,null,null,null,null,null,null,null,null,null,null,null,null,null,null,{"$f":"IF(ISERROR(VLOOKUP(A37,'Submission Template'!$K$5,1,FALSE)),\"\",C37)","v":""}]
["Reverse Claim - Excess & Obsolete",null,"Stop Production Notice","Reverse Claim - Excess & ObsoleteStop Production Notice","Global Planning and Fulfillment",null,null,null,null,null,null,null,null,null,null,null,null,null,null,null,null,null,null,null,{"$f":"IF(ISERROR(VLOOKUP(A38,'Submission Template'!$K$5,1,FALSE)),\"\",C38)","v":""}]
["Reverse Claim - Excess & Obsolete",null,"Supply Plan Reduction","Reverse Claim - Excess & ObsoleteSupply Plan Reduction","Global Planning and Fulfillment",null,null,null,null,null,null,null,null,null,null,null,null,null,null,null,null,null,null,null,{"$f":"IF(ISERROR(VLOOKUP(A39,'Submission Template'!$K$5,1,FALSE)),\"\",C39)","v":""}]
["Reverse Claim - Inventory Revaluation",null,"Inventory at EM/Qtr End Revalued for Price Changes","Reverse Claim - Inventory RevaluationInventory at EM/Qtr End Revalued for Price Changes","Global Supplier Management",null,null,null,null,null,null,null,null,null,null,null,null,null,null,null,null,null,null,null,{"$f":"IF(ISERROR(VLOOKUP(A40,'Submission Template'!$K$5,1,FALSE)),\"\",C40)","v":""}]
["Reverse Claim - Inventory Revaluation",null,"Supply Plan Reduction","Reverse Claim - Inventory RevaluationSupply Plan Reduction","Global Planning and Fulfillment",null,null,null,null,null,null,null,null,null,null,null,null,null,null,null,null,null,null,null,{"$f":"IF(ISERROR(VLOOKUP(A41,'Submission Template'!$K$5,1,FALSE)),\"\",C41)","v":""}]
["Reverse Claim - Rework",null,"AVL Changes","Reverse Claim - ReworkAVL Changes","Global Supplier Management",null,null,null,null,null,null,null,null,null,null,null,null,null,null,null,null,null,null,null,{"$f":"IF(ISERROR(VLOOKUP(A42,'Submission Template'!$K$5,1,FALSE)),\"\",C42)","v":""}]
["Reverse Claim - Rework",null,"ECO Changes","Reverse Claim - ReworkECO Changes","Product Lifecycle and Technology",null,null,null,null,null,null,null,null,null,null,null,null,null,null,null,null,null,null,null,{"$f":"IF(ISERROR(VLOOKUP(A43,'Submission Template'!$K$5,1,FALSE)),\"\",C43)","v":""}]
["Reverse Claim - Rework",null,"Part Purges","Reverse Claim - ReworkPart Purges","Global Planning and Fulfillment",null,null,null,null,null,null,null,null,null,null,null,null,null,null,null,null,null,null,null,{"$f":"IF(ISERROR(VLOOKUP(A44,'Submission Template'!$K$5,1,FALSE)),\"\",C44)","v":""}]
["Reverse Claim - Rework",null,"Product End of Life","Reverse Claim - ReworkProduct End of Life","Global Planning and Fulfillment",null,null,null,null,null,null,null,null,null,null,null,null,null,null,null,null,null,null,null,{"$f":"IF(ISERROR(VLOOKUP(A45,'Submission Template'!$K$5,1,FALSE)),\"\",C45)","v":""}]
["Reverse Claim - Rework",null,"Stop Production Notice","Reverse Claim - ReworkStop Production Notice","Global Planning and Fulfillment",null,null,null,null,null,null,null,null,null,null,null,null,null,null,null,null,null,null,null,{"$f":"IF(ISERROR(VLOOKUP(A46,'Submission Template'!$K$5,1,FALSE)),\"\",C46)","v":""}]
["Reverse Claim - Rework",null,"Supply Plan Reduction","Reverse Claim - ReworkSupply Plan Reduction","Global Planning and Fulfillment",null,null,null,null,null,null,null,null,null,null,null,null,null,null,null,null,null,null,null,{"$f":"IF(ISERROR(VLOOKUP(A47,'Submission Template'!$K$5,1,FALSE)),\"\",C47)","v":""}]
["Reverse Claims - Premium Charges",null,"3PL claims for charges over/above standard tarrif rates","Reverse Claims - Premium Charges3PL claims for charges over/above standard tarrif rates","Global Manufacturing and Logistics",null,null,null,null,null,null,null,null,null,null,null,null,null,null,null,null,null,null,null,{"$f":"IF(ISERROR(VLOOKUP(A48,'Submission Template'!$K$5,1,FALSE)),\"\",C48)","v":""}]
["Reverse Claims - Premium Charges",null,"Additional freight to deliver Parts Within Lead Time","Reverse Claims - Premium ChargesAdditional freight to deliver Parts Within Lead Time","Global Manufacturing and Logistics",null,null,null,null,null,null,null,null,null,null,null,null,null,null,null,null,null,null,null,{"$f":"IF(ISERROR(VLOOKUP(A49,'Submission Template'!$K$5,1,FALSE)),\"\",C49)","v":""}]
["Reverse Claims - Premium Charges",null,"Additional freight for plan upside","Reverse Claims - Premium ChargesAdditional freight for plan upside","Global Manufacturing and Logistics",null,null,null,null,null,null,null,null,null,null,null,null,null,null,null,null,null,null,null,{"$f":"IF(ISERROR(VLOOKUP(A50,'Submission Template'!$K$5,1,FALSE)),\"\",C50)","v":""}]
["Reverse Claims - Premium Charges",null,"Inventory carrying cost for last time buys","Reverse Claims - Premium ChargesInventory carrying cost for last time buys","Global Planning and Fulfillment",null,null,null,null,null,null,null,null,null,null,null,null,null,null,null,null,null,null,null,{"$f":"IF(ISERROR(VLOOKUP(A51,'Submission Template'!$K$5,1,FALSE)),\"\",C51)","v":""}]
["Reverse Claims - Premium Charges",null,"Inventory carrying cost for Supply Plan Reductions","Reverse Claims - Premium ChargesInventory carrying cost for Supply Plan Reductions","Global Planning and Fulfillment",null,null,null,null,null,null,null,null,null,null,null,null,null,null,null,null,null,null,null,{"$f":"IF(ISERROR(VLOOKUP(A52,'Submission Template'!$K$5,1,FALSE)),\"\",C52)","v":""}]
["Reverse Claims - Premium Charges",null,"Inventory Held at Supplier – Contract Term","Reverse Claims - Premium ChargesInventory Held at Supplier – Contract Term","Global Planning and Fulfillment",null,null,null,null,null,null,null,null,null,null,null,null,null,null,null,null,null,null,null,{"$f":"IF(ISERROR(VLOOKUP(A53,'Submission Template'!$K$5,1,FALSE)),\"\",C53)","v":""}]
["Reverse Claims - Premium Charges",null,"Material Premium for Plan Upside","Reverse Claims - Premium ChargesMaterial Premium for Plan Upside","Global Planning and Fulfillment",null,null,null,null,null,null,null,null,null,null,null,null,null,null,null,null,null,null,null,{"$f":"IF(ISERROR(VLOOKUP(A54,'Submission Template'!$K$5,1,FALSE)),\"\",C54)","v":""}]
["Reverse Claims - Premium Charges",null,"OT required for Plan Upside","Reverse Claims - Premium ChargesOT required for Plan Upside","Global Planning and Fulfillment",null,null,null,null,null,null,null,null,null,null,null,null,null,null,null,null,null,null,null,{"$f":"IF(ISERROR(VLOOKUP(A55,'Submission Template'!$K$5,1,FALSE)),\"\",C55)","v":""}]
["Reverse Claims - Premium Charges",null,"OT to Deliver Parts Within Lead Time","Reverse Claims - Premium ChargesOT to Deliver Parts Within Lead Time","Global Supplier Management",null,null,null,null,null,null,null,null,null,null,null,null,null,null,null,null,null,null,null,{"$f":"IF(ISERROR(VLOOKUP(A56,'Submission Template'!$K$5,1,FALSE)),\"\",C56)","v":""}]
["Reverse Claims - PPV",null,"Cost Audit","Reverse Claims - PPVCost Audit","Global Supplier Management",null,null,null,null,null,null,null,null,null,null,null,null,null,null,null,null,null,null,null,{"$f":"IF(ISERROR(VLOOKUP(A57,'Submission Template'!$K$5,1,FALSE)),\"\",C57)","v":""}]
["Reverse Claims - PPV",null,"Price Changes","Reverse Claims - PPVPrice Changes","Global Supplier Management",null,null,null,null,null,null,null,null,null,null,null,null,null,null,null,null,null,null,null,{"$f":"IF(ISERROR(VLOOKUP(A58,'Submission Template'!$K$5,1,FALSE)),\"\",C58)","v":""}]
["Reverse Claim",null,"Audits","Reverse ClaimAudits","Global Supplier Management",null,null,null,null,null,null,null,null,null,null,null,null,null,null,null,null,null,null,null,{"$f":"IF(ISERROR(VLOOKUP(A59,'Submission Template'!$K$5,1,FALSE)),\"\",C59)","v":""}]
["Reverse Claim",null,"Field Change Order Recovery","Reverse ClaimField Change Order Recovery","Global Manufacturing and Logistics",null,null,null,null,null,null,null,null,null,null,null,null,null,null,null,null,null,null,null,{"$f":"IF(ISERROR(VLOOKUP(A60,'Submission Template'!$K$5,1,FALSE)),\"\",C60)","v":""}]
["Reverse Claim",null,"PPV","Reverse ClaimPPV","Global Supplier Management",null,null,null,null,null,null,null,null,null,null,null,null,null,null,null,null,null,null,null,{"$f":"IF(ISERROR(VLOOKUP(A61,'Submission Template'!$K$5,1,FALSE)),\"\",C61)","v":""}]
["Reverse Claim",null,"Rebates","Reverse ClaimRebates","Global Supplier Management",null,null,null,null,null,null,null,null,null,null,null,null,null,null,null,null,null,null,null,{"$f":"IF(ISERROR(VLOOKUP(A62,'Submission Template'!$K$5,1,FALSE)),\"\",C62)","v":""}]
["Reverse Claim",null,"Revaluation","Reverse ClaimRevaluation","Global Supplier Management",null,null,null,null,null,null,null,null,null,null,null,null,null,null,null,null,null,null,null,{"$f":"IF(ISERROR(VLOOKUP(A63,'Submission Template'!$K$5,1,FALSE)),\"\",C63)","v":""}]
["Reverse Claim",null,"Stop Ship and Purge","Reverse ClaimStop Ship and Purge","Global Planning and Fulfillment",null,null,null,null,null,null,null,null,null,null,null,null,null,null,null,null,null,null,null,{"$f":"IF(ISERROR(VLOOKUP(A64,'Submission Template'!$K$5,1,FALSE)),\"\",C64)","v":""}]
["Reverse Claim",null,"Unexpected Failures","Reverse ClaimUnexpected Failures","Global Manufacturing and Logistics",null,null,null,null,null,null,null,null,null,null,null,null,null,null,null,null,null,null,null,{"$f":"IF(ISERROR(VLOOKUP(A65,'Submission Template'!$K$5,1,FALSE)),\"\",C65)","v":""}]
["Excess and Obsolete (Quality)",null,"Excess and Obsolete","Excess and ObsoleteExcess and Obsolete","Global Planning and Fulfillment",null,null,null,null,null,null,null,null,null,null,null,null,null,null,null,null,null,null,null,{"$f":"IF(ISERROR(VLOOKUP(A66,'Submission Template'!$K$5,1,FALSE)),\"\",C66)","v":""}]
["Excess and Obsolete (Quality)",null,"AVL Changes","Excess and ObsoleteAVL Changes","Global Supplier Management",null,null,null,null,null,null,null,null,null,null,null,null,null,null,null,null,null,null,null,{"$f":"IF(ISERROR(VLOOKUP(A67,'Submission Template'!$K$5,1,FALSE)),\"\",C67)","v":""}]
["Excess and Obsolete (Quality)",null,"ECO Changes","Excess and ObsoleteECO Changes","Product Lifecycle and Technology",null,null,null,null,null,null,null,null,null,null,null,null,null,null,null,null,null,null,null,{"$f":"IF(ISERROR(VLOOKUP(A68,'Submission Template'!$K$5,1,FALSE)),\"\",C68)","v":""}]
["Excess and Obsolete (Quality)",null,"Last Time Buy","Excess and ObsoleteLast Time Buy","Global Planning and Fulfillment",null,null,null,null,null,null,null,null,null,null,null,null,null,null,null,null,null,null,null,{"$f":"IF(ISERROR(VLOOKUP(A69,'Submission Template'!$K$5,1,FALSE)),\"\",C69)","v":""}]
["Excess and Obsolete (Quality)",null,"Part Purges","Excess and ObsoletePart Purges","Global Planning and Fulfillment",null,null,null,null,null,null,null,null,null,null,null,null,null,null,null,null,null,null,null,{"$f":"IF(ISERROR(VLOOKUP(A70,'Submission Template'!$K$5,1,FALSE)),\"\",C70)","v":""}]
["Excess and Obsolete (Quality)",null,"Product End of Life","Excess and ObsoleteProduct End of Life","Product Lifecycle and Technology",null,null,null,null,null,null,null,null,null,null,null,null,null,null,null,null,null,null,null,{"$f":"IF(ISERROR(VLOOKUP(A71,'Submission Template'!$K$5,1,FALSE)),\"\",C71)","v":""}]
["Excess and Obsolete (Quality)",null,"Quality Cost (Purge, Scrap, etc.)","Excess and ObsoleteQuality Cost (Purge, Scrap, etc.)","Global Manufacturing and Logistics",null,null,null,null,null,null,null,null,null,null,null,null,null,null,null,null,null,null,null,{"$f":"IF(ISERROR(VLOOKUP(A72,'Submission Template'!$K$5,1,FALSE)),\"\",C72)","v":""}]
["Excess and Obsolete (Quality)",null,"Stop Production Notice","Excess and ObsoleteStop Production Notice","Global Planning and Fulfillment",null,null,null,null,null,null,null,null,null,null,null,null,null,null,null,null,null,null,null,{"$f":"IF(ISERROR(VLOOKUP(A73,'Submission Template'!$K$5,1,FALSE)),\"\",C73)","v":""}]
["Excess and Obsolete (Quality)",null,"Supply Plan Reduction","Excess and ObsoleteSupply Plan Reduction","Global Planning and Fulfillment",null,null,null,null,null,null,null,null,null,null,null,null,null,null,null,null,null,null,null,{"$f":"IF(ISERROR(VLOOKUP(A74,'Submission Template'!$K$5,1,FALSE)),\"\",C74)","v":""}]
[null,null,null,null,null,null,null,null,null,null,null,null,null,null,null,null,null,null,null,null,null,null,null,null,{"$f":"IF(ISERROR(VLOOKUP(A75,'Submission Template'!$K$5,1,FALSE)),\"\",C75)","v":""}]
[null,null,null,null,null,null,null,null,null,null,null,null,null,null,null,null,null,null,null,null,null,null,null,null,{"$f":"IF(ISERROR(VLOOKUP(A76,'Submission Template'!$K$5,1,FALSE)),\"\",C76)","v":""}]
[null,null,null,null,null,null,null,null,null,null,null,null,null,null,null,null,null,null,null,null,null,null,null,null,{"$f":"IF(ISERROR(VLOOKUP(A77,'Submission Template'!$K$5,1,FALSE)),\"\",C77)","v":""}]
[null,null,null,null,null,null,null,null,null,null,null,null,null,null,null,null,null,null,null,null,null,null,null,null,{"$f":"IF(ISERROR(VLOOKUP(A78,'Submission Template'!$K$5,1,FALSE)),\"\",C78)","v":""}]
[null,null,null,null,null,null,null,null,null,null,null,null,null,null,null,null,null,null,null,null,null,null,null,null,{"$f":"IF(ISERROR(VLOOKUP(A79,'Submission Template'!$K$5,1,FALSE)),\"\",C79)","v":""}]
[null,null,null,null,null,null,null,null,null,null,null,null,null,null,null,null,null,null,null,null,null,null,null,null,{"$f":"IF(ISERROR(VLOOKUP(A80,'Submission Template'!$K$5,1,FALSE)),\"\",C80)","v":""}]
[null,null,null,null,null,null,null,null,null,null,null,null,null,null,null,null,null,null,null,null,null,null,null,null,{"$f":"IF(ISERROR(VLOOKUP(A81,'Submission Template'!$K$5,1,FALSE)),\"\",C81)","v":""}]
[null,null,null,null,null,null,null,null,null,null,null,null,null,null,null,null,null,null,null,null,null,null,null,null,{"$f":"IF(ISERROR(VLOOKUP(A82,'Submission Template'!$K$5,1,FALSE)),\"\",C82)","v":""}]
[null,null,null,null,null,null,null,null,null,null,null,null,null,null,null,null,null,null,null,null,null,null,null,null,{"$f":"IF(ISERROR(VLOOKUP(A83,'Submission Template'!$K$5,1,FALSE)),\"\",C83)","v":""}]
[null,null,null,null,null,null,null,null,null,null,null,null,null,null,null,null,null,null,null,null,null,null,null,null,{"$f":"IF(ISERROR(VLOOKUP(A84,'Submission Template'!$K$5,1,FALSE)),\"\",C84)","v":""}]
[null,null,null,null,null,null,null,null,null,null,null,null,null,null,null,null,null,null,null,null,null,null,null,null,{"$f":"IF(ISERROR(VLOOKUP(A85,'Submission Template'!$K$5,1,FALSE)),\"\",C85)","v":""}]
[null,null,null,null,null,null,null,null,null,null,null,null,null,null,null,null,null,null,null,null,null,null,null,null,{"$f":"IF(ISERROR(VLOOKUP(A86,'Submission Template'!$K$5,1,FALSE)),\"\",C86)","v":""}]
[null,null,null,null,null,null,null,null,null,null,null,null,null,null,null,null,null,null,null,null,null,null,null,null,{"$f":"IF(ISERROR(VLOOKUP(A87,'Submission Template'!$K$5,1,FALSE)),\"\",C87)","v":""}]
[null,null,null,null,null,null,null,null,null,null,null,null,null,null,null,null,null,null,null,null,null,null,null,null,{"$f":"IF(ISERROR(VLOOKUP(A88,'Submission Template'!$K$5,1,FALSE)),\"\",C88)","v":""}]
[null,null,null,null,null,null,null,null,null,null,null,null,null,null,null,null,null,null,null,null,null,null,null,null,{"$f":"IF(ISERROR(VLOOKUP(A89,'Submission Template'!$K$5,1,FALSE)),\"\",C89)","v":""}]
[null,null,null,null,null,null,null,null,null,null,null,null,null,null,null,null,null,null,null,null,null,null,null,null,{"$f":"IF(ISERROR(VLOOKUP(A90,'Submission Template'!$K$5,1,FALSE)),\"\",C90)","v":""}]
[null,null,null,null,null,null,null,null,null,null,null,null,null,null,null,null,null,null,null,null,null,null,null,null,{"$f":"IF(ISERROR(VLOOKUP(A91,'Submission Template'!$K$5,1,FALSE)),\"\",C91)","v":""}]
[null,null,null,null,null,null,null,null,null,null,null,null,null,null,null,null,null,null,null,null,null,null,null,null,{"$f":"IF(ISERROR(VLOOKUP(A92,'Submission Template'!$K$5,1,FALSE)),\"\",C92)","v":""}]
[null,null,null,null,null,null,null,null,null,null,null,null,null,null,null,null,null,null,null,null,null,null,null,null,{"$f":"IF(ISERROR(VLOOKUP(A93,'Submission Template'!$K$5,1,FALSE)),\"\",C93)","v":""}]
[null,null,null,null,null,null,null,null,null,null,null,null,null,null,null,null,null,null,null,null,null,null,null,null,{"$f":"IF(ISERROR(VLOOKUP(A94,'Submission Template'!$K$5,1,FALSE)),\"\",C94)","v":""}]
[null,null,null,null,null,null,null,null,null,null,null,null,null,null,null,null,null,null,null,null,null,null,null,null,{"$f":"IF(ISERROR(VLOOKUP(A95,'Submission Template'!$K$5,1,FALSE)),\"\",C95)","v":""}]
[null,null,null,null,null,null,null,null,null,null,null,null,null,null,null,null,null,null,null,null,null,null,null,null,{"$f":"IF(ISERROR(VLOOKUP(A96,'Submission Template'!$K$5,1,FALSE)),\"\",C96)","v":""}]
[null,null,null,null,null,null,null,null,null,null,null,null,null,null,null,null,null,null,null,null,null,null,null,null,{"$f":"IF(ISERROR(VLOOKUP(A97,'Submission Template'!$K$5,1,FALSE)),\"\",C97)","v":""}]
[null,null,null,null,null,null,null,null,null,null,null,null,null,null,null,null,null,null,null,null,null,null,null,null,{"$f":"IF(ISERROR(VLOOKUP(A98,'Submission Template'!$K$5,1,FALSE)),\"\",C98)","v":""}]
[null,null,null,null,null,null,null,null,null,null,null,null,null,null,null,null,null,null,null,null,null,null,null,null,{"$f":"IF(ISERROR(VLOOKUP(A99,'Submission Template'!$K$5,1,FALSE)),\"\",C99)","v":""}]
[null,null,null,null,null,null,null,null,null,null,null,null,null,null,null,null,null,null,null,null,null,null,null,null,{"$f":"IF(ISERROR(VLOOKUP(A100,'Submission Template'!$K$5,1,FALSE)),\"\",C100)","v":""}]
[null,null,null,null,null,null,null,null,null,null,null,null,null,null,null,null,null,null,null,null,null,null,null,null,{"$f":"IF(ISERROR(VLOOKUP(A101,'Submission Template'!$K$5,1,FALSE)),\"\",C101)","v":""}]
[null,null,null,null,null,null,null,null,null,null,null,null,null,null,null,null,null,null,null,null,null,null,null,null,{"$f":"IF(ISERROR(VLOOKUP(A102,'Submission Template'!$K$5,1,FALSE)),\"\",C102)","v":""}]
[null,null,null,null,null,null,null,null,null,null,null,null,null,null,null,null,null,null,null,null,null,null,null,null,{"$f":"IF(ISERROR(VLOOKUP(A103,'Submission Template'!$K$5,1,FALSE)),\"\",C103)","v":""}]
[null,null,null,null,null,null,null,null,null,null,null,null,null,null,null,null,null,null,null,null,null,null,null,null,{"$f":"IF(ISERROR(VLOOKUP(A104,'Submission Template'!$K$5,1,FALSE)),\"\",C104)","v":""}]
[null,null,null,null,null,null,null,null,null,null,null,null,null,null,null,null,null,null,null,null,null,null,null,null,{"$f":"IF(ISERROR(VLOOKUP(A105,'Submission Template'!$K$5,1,FALSE)),\"\",C105)","v":""}]
[null,null,null,null,null,null,null,null,null,null,null,null,null,null,null,null,null,null,null,null,null,null,null,null,{"$f":"IF(ISERROR(VLOOKUP(A106,'Submission Template'!$K$5,1,FALSE)),\"\",C106)","v":""}]
[null,null,null,null,null,null,null,null,null,null,null,null,null,null,null,null,null,null,null,null,null,null,null,null,{"$f":"IF(ISERROR(VLOOKUP(A107,'Submission Template'!$K$5,1,FALSE)),\"\",C107)","v":""}]
[null,null,null,null,null,null,null,null,null,null,null,null,null,null,null,null,null,null,null,null,null,null,null,null,{"$f":"IF(ISERROR(VLOOKUP(A108,'Submission Template'!$K$5,1,FALSE)),\"\",C108)","v":""}]
[null,null,null,null,null,null,null,null,null,null,null,null,null,null,null,null,null,null,null,null,null,null,null,null,{"$f":"IF(ISERROR(VLOOKUP(A109,'Submission Template'!$K$5,1,FALSE)),\"\",C109)","v":""}]
[null,null,null,null,null,null,null,null,null,null,null,null,null,null,null,null,null,null,null,null,null,null,null,null,{"$f":"IF(ISERROR(VLOOKUP(A110,'Submission Template'!$K$5,1,FALSE)),\"\",C110)","v":""}]
[null,null,null,null,null,null,null,null,null,null,null,null,null,null,null,null,null,null,null,null,null,null,null,null,{"$f":"IF(ISERROR(VLOOKUP(A111,'Submission Template'!$K$5,1,FALSE)),\"\",C111)","v":""}]
[null,null,null,null,null,null,null,null,null,null,null,null,null,null,null,null,null,null,null,null,null,null,null,null,{"$f":"IF(ISERROR(VLOOKUP(A112,'Submission Template'!$K$5,1,FALSE)),\"\",C112)","v":""}]
[null,null,null,null,null,null,null,null,null,null,null,null,null,null,null,null,null,null,null,null,null,null,null,null,{"$f":"IF(ISERROR(VLOOKUP(A113,'Submission Template'!$K$5,1,FALSE)),\"\",C113)","v":""}]
[null,null,null,null,null,null,null,null,null,null,null,null,null,null,null,null,null,null,null,null,null,null,null,null,{"$f":"IF(ISERROR(VLOOKUP(A114,'Submission Template'!$K$5,1,FALSE)),\"\",C114)","v":""}]
[null,null,null,null,null,null,null,null,null,null,null,null,null,null,null,null,null,null,null,null,null,null,null,null,{"$f":"IF(ISERROR(VLOOKUP(A115,'Submission Template'!$K$5,1,FALSE)),\"\",C115)","v":""}]
[null,null,null,null,null,null,null,null,null,null,null,null,null,null,null,null,null,null,null,null,null,null,null,null,{"$f":"IF(ISERROR(VLOOKUP(A116,'Submission Template'!$K$5,1,FALSE)),\"\",C116)","v":""}]
[null,null,null,null,null,null,null,null,null,null,null,null,null,null,null,null,null,null,null,null,null,null,null,null,{"$f":"IF(ISERROR(VLOOKUP(A117,'Submission Template'!$K$5,1,FALSE)),\"\",C117)","v":""}]
[null,null,null,null,null,null,null,null,null,null,null,null,null,null,null,null,null,null,null,null,null,null,null,null,{"$f":"IF(ISERROR(VLOOKUP(A118,'Submission Template'!$K$5,1,FALSE)),\"\",C118)","v":""}]
[null,null,null,null,null,null,null,null,null,null,null,null,null,null,null,null,null,null,null,null,null,null,null,null,{"$f":"IF(ISERROR(VLOOKUP(A119,'Submission Template'!$K$5,1,FALSE)),\"\",C119)","v":""}]
[null,null,null,null,null,null,null,null,null,null,null,null,null,null,null,null,null,null,null,null,null,null,null,null,{"$f":"IF(ISERROR(VLOOKUP(A120,'Submission Template'!$K$5,1,FALSE)),\"\",C120)","v":""}]
[null,null,null,null,null,null,null,null,null,null,null,null,null,null,null,null,null,null,null,null,null,null,null,null,{"$f":"IF(ISERROR(VLOOKUP(A121,'Submission Template'!$K$5,1,FALSE)),\"\",C121)","v":""}]
[null,null,null,null,null,null,null,null,null,null,null,null,null,null,null,null,null,null,null,null,null,null,null,null,{"$f":"IF(ISERROR(VLOOKUP(A122,'Submission Template'!$K$5,1,FALSE)),\"\",C122)","v":""}]
[null,null,null,null,null,null,null,null,null,null,null,null,null,null,null,null,null,null,null,null,null,null,null,null,{"$f":"IF(ISERROR(VLOOKUP(A123,'Submission Template'!$K$5,1,FALSE)),\"\",C123)","v":""}]
[null,null,null,null,null,null,null,null,null,null,null,null,null,null,null,null,null,null,null,null,null,null,null,null,{"$f":"IF(ISERROR(VLOOKUP(A124,'Submission Template'!$K$5,1,FALSE)),\"\",C124)","v":""}]
[null,null,null,null,null,null,null,null,null,null,null,null,null,null,null,null,null,null,null,null,null,null,null,null,{"$f":"IF(ISERROR(VLOOKUP(A125,'Submission Template'!$K$5,1,FALSE)),\"\",C125)","v":""}]
[null,null,null,null,null,null,null,null,null,null,null,null,null,null,null,null,null,null,null,null,null,null,null,null,{"$f":"IF(ISERROR(VLOOKUP(A126,'Submission Template'!$K$5,1,FALSE)),\"\",C126)","v":""}]
[null,null,null,null,null,null,null,null,null,null,null,null,null,null,null,null,null,null,null,null,null,null,null,null,{"$f":"IF(ISERROR(VLOOKUP(A127,'Submission Template'!$K$5,1,FALSE)),\"\",C127)","v":""}]
[null,null,null,null,null,null,null,null,null,null,null,null,null,null,null,null,null,null,null,null,null,null,null,null,{"$f":"IF(ISERROR(VLOOKUP(A128,'Submission Template'!$K$5,1,FALSE)),\"\",C128)","v":""}]
[null,null,null,null,null,null,null,null,null,null,null,null,null,null,null,null,null,null,null,null,null,null,null,null,{"$f":"IF(ISERROR(VLOOKUP(A129,'Submission Template'!$K$5,1,FALSE)),\"\",C129)","v":""}]
[null,null,null,null,null,null,null,null,null,null,null,null,null,null,null,null,null,null,null,null,null,null,null,null,{"$f":"IF(ISERROR(VLOOKUP(A130,'Submission Template'!$K$5,1,FALSE)),\"\",C130)","v":""}]
[null,null,null,null,null,null,null,null,null,null,null,null,null,null,null,null,null,null,null,null,null,null,null,null,{"$f":"IF(ISERROR(VLOOKUP(A131,'Submission Template'!$K$5,1,FALSE)),\"\",C131)","v":""}]
[null,null,null,null,null,null,null,null,null,null,null,null,null,null,null,null,null,null,null,null,null,null,null,null,{"$f":"IF(ISERROR(VLOOKUP(A132,'Submission Template'!$K$5,1,FALSE)),\"\",C132)","v":""}]
[null,null,null,null,null,null,null,null,null,null,null,null,null,null,null,null,null,null,null,null,null,null,null,null,{"$f":"IF(ISERROR(VLOOKUP(A133,'Submission Template'!$K$5,1,FALSE)),\"\",C133)","v":""}]
[null,null,null,null,null,null,null,null,null,null,null,null,null,null,null,null,null,null,null,null,null,null,null,null,{"$f":"IF(ISERROR(VLOOKUP(A134,'Submission Template'!$K$5,1,FALSE)),\"\",C134)","v":""}]
[null,null,null,null,null,null,null,null,null,null,null,null,null,null,null,null,null,null,null,null,null,null,null,null,{"$f":"IF(ISERROR(VLOOKUP(A135,'Submission Template'!$K$5,1,FALSE)),\"\",C135)","v":""}]
[null,null,null,null,null,null,null,null,null,null,null,null,null,null,null,null,null,null,null,null,null,null,null,null,{"$f":"IF(ISERROR(VLOOKUP(A136,'Submission Template'!$K$5,1,FALSE)),\"\",C136)","v":""}]
[null,null,null,null,null,null,null,null,null,null,null,null,null,null,null,null,null,null,null,null,null,null,null,null,{"$f":"IF(ISERROR(VLOOKUP(A137,'Submission Template'!$K$5,1,FALSE)),\"\",C137)","v":""}]
[null,null,null,null,null,null,null,null,null,null,null,null,null,null,null,null,null,null,null,null,null,null,null,null,{"$f":"IF(ISERROR(VLOOKUP(A138,'Submission Template'!$K$5,1,FALSE)),\"\",C138)","v":""}]
[null,null,null,null,null,null,null,null,null,null,null,null,null,null,null,null,null,null,null,null,null,null,null,null,{"$f":"IF(ISERROR(VLOOKUP(A139,'Submission Template'!$K$5,1,FALSE)),\"\",C139)","v":""}]
[null,null,null,null,null,null,null,null,null,null,null,null,null,null,null,null,null,null,null,null,null,null,null,null,{"$f":"IF(ISERROR(VLOOKUP(A140,'Submission Template'!$K$5,1,FALSE)),\"\",C140)","v":""}]
[null,null,null,null,null,null,null,null,null,null,null,null,null,null,null,null,null,null,null,null,null,null,null,null,{"$f":"IF(ISERROR(VLOOKUP(A141,'Submission Template'!$K$5,1,FALSE)),\"\",C141)","v":""}]
[null,null,null,null,null,null,null,null,null,null,null,null,null,null,null,null,null,null,null,null,null,null,null,null,{"$f":"IF(ISERROR(VLOOKUP(A142,'Submission Template'!$K$5,1,FALSE)),\"\",C142)","v":""}]
[null,null,null,null,null,null,null,null,null,null,null,null,null,null,null,null,null,null,null,null,null,null,null,null,{"$f":"IF(ISERROR(VLOOKUP(A143,'Submission Template'!$K$5,1,FALSE)),\"\",C143)","v":""}]
[null,null,null,null,null,null,null,null,null,null,null,null,null,null,null,null,null,null,null,null,null,null,null,null,{"$f":"IF(ISERROR(VLOOKUP(A144,'Submission Template'!$K$5,1,FALSE)),\"\",C144)","v":""}]
[null,null,null,null,null,null,null,null,null,null,null,null,null,null,null,null,null,null,null,null,null,null,null,null,{"$f":"IF(ISERROR(VLOOKUP(A145,'Submission Template'!$K$5,1,FALSE)),\"\",C145)","v":""}]
[null,null,null,null,null,null,null,null,null,null,null,null,null,null,null,null,null,null,null,null,null,null,null,null,{"$f":"IF(ISERROR(VLOOKUP(A146,'Submission Template'!$K$5,1,FALSE)),\"\",C146)","v":""}]
[null,null,null,null,null,null,null,null,null,null,null,null,null,null,null,null,null,null,null,null,null,null,null,null,{"$f":"IF(ISERROR(VLOOKUP(A147,'Submission Template'!$K$5,1,FALSE)),\"\",C147)","v":""}]
[null,null,null,null,null,null,null,null,null,null,null,null,null,null,null,null,null,null,null,null,null,null,null,null,{"$f":"IF(ISERROR(VLOOKUP(A148,'Submission Template'!$K$5,1,FALSE)),\"\",C148)","v":""}]
[null,null,null,null,null,null,null,null,null,null,null,null,null,null,null,null,null,null,null,null,null,null,null,null,{"$f":"IF(ISERROR(VLOOKUP(A149,'Submission Template'!$K$5,1,FALSE)),\"\",C149)","v":""}]
[null,null,null,null,null,null,null,null,null,null,null,null,null,null,null,null,null,null,null,null,null,null,null,null,{"$f":"IF(ISERROR(VLOOKUP(A150,'Submission Template'!$K$5,1,FALSE)),\"\",C150)","v":""}]
[null,null,null,null,null,null,null,null,null,null,null,null,null,null,null,null,null,null,null,null,null,null,null,null,{"$f":"IF(ISERROR(VLOOKUP(A151,'Submission Template'!$K$5,1,FALSE)),\"\",C151)","v":""}]
[null,null,null,null,null,null,null,null,null,null,null,null,null,null,null,null,null,null,null,null,null,null,null,null,{"$f":"IF(ISERROR(VLOOKUP(A152,'Submission Template'!$K$5,1,FALSE)),\"\",C152)","v":""}]
[null,null,null,null,null,null,null,null,null,null,null,null,null,null,null,null,null,null,null,null,null,null,null,null,{"$f":"IF(ISERROR(VLOOKUP(A153,'Submission Template'!$K$5,1,FALSE)),\"\",C153)","v":""}]
[null,null,null,null,null,null,null,null,null,null,null,null,null,null,null,null,null,null,null,null,null,null,null,null,{"$f":"IF(ISERROR(VLOOKUP(A154,'Submission Template'!$K$5,1,FALSE)),\"\",C154)","v":""}]
[null,null,null,null,null,null,null,null,null,null,null,null,null,null,null,null,null,null,null,null,null,null,null,null,{"$f":"IF(ISERROR(VLOOKUP(A155,'Submission Template'!$K$5,1,FALSE)),\"\",C155)","v":""}]
[null,null,null,null,null,null,null,null,null,null,null,null,null,null,null,null,null,null,null,null,null,null,null,null,{"$f":"IF(ISERROR(VLOOKUP(A156,'Submission Template'!$K$5,1,FALSE)),\"\",C156)","v":""}]
[null,null,null,null,null,null,null,null,null,null,null,null,null,null,null,null,null,null,null,null,null,null,null,null,{"$f":"IF(ISERROR(VLOOKUP(A157,'Submission Template'!$K$5,1,FALSE)),\"\",C157)","v":""}]
[null,null,null,null,null,null,null,null,null,null,null,null,null,null,null,null,null,null,null,null,null,null,null,null,{"$f":"IF(ISERROR(VLOOKUP(A158,'Submission Template'!$K$5,1,FALSE)),\"\",C158)","v":""}]
[null,null,null,null,null,null,null,null,null,null,null,null,null,null,null,null,null,null,null,null,null,null,null,null,{"$f":"IF(ISERROR(VLOOKUP(A159,'Submission Template'!$K$5,1,FALSE)),\"\",C159)","v":""}]
[null,null,null,null,null,null,null,null,null,null,null,null,null,null,null,null,null,null,null,null,null,null,null,null,{"$f":"IF(ISERROR(VLOOKUP(A160,'Submission Template'!$K$5,1,FALSE)),\"\",C160)","v":""}]
[null,null,null,null,null,null,null,null,null,null,null,null,null,null,null,null,null,null,null,null,null,null,null,null,{"$f":"IF(ISERROR(VLOOKUP(A161,'Submission Template'!$K$5,1,FALSE)),\"\",C161)","v":""}]
[null,null,null,null,null,null,null,null,null,null,null,null,null,null,null,null,null,null,null,null,null,null,null,null,{"$f":"IF(ISERROR(VLOOKUP(A162,'Submission Template'!$K$5,1,FALSE)),\"\",C162)","v":""}]
[null,null,null,null,null,null,null,null,null,null,null,null,null,null,null,null,null,null,null,null,null,null,null,null,{"$f":"IF(ISERROR(VLOOKUP(A163,'Submission Template'!$K$5,1,FALSE)),\"\",C163)","v":""}]
[null,null,null,null,null,null,null,null,null,null,null,null,null,null,null,null,null,null,null,null,null,null,null,null,{"$f":"IF(ISERROR(VLOOKUP(A164,'Submission Template'!$K$5,1,FALSE)),\"\",C164)","v":""}]
[null,null,null,null,null,null,null,null,null,null,null,null,null,null,null,null,null,null,null,null,null,null,null,null,{"$f":"IF(ISERROR(VLOOKUP(A165,'Submission Template'!$K$5,1,FALSE)),\"\",C165)","v":""}]
[null,null,null,null,null,null,null,null,null,null,null,null,null,null,null,null,null,null,null,null,null,null,null,null,{"$f":"IF(ISERROR(VLOOKUP(A166,'Submission Template'!$K$5,1,FALSE)),\"\",C166)","v":""}]
[null,null,null,null,null,null,null,null,null,null,null,null,null,null,null,null,null,null,null,null,null,null,null,null,{"$f":"IF(ISERROR(VLOOKUP(A167,'Submission Template'!$K$5,1,FALSE)),\"\",C167)","v":""}]
[null,null,null,null,null,null,null,null,null,null,null,null,null,null,null,null,null,null,null,null,null,null,null,null,{"$f":"IF(ISERROR(VLOOKUP(A168,'Submission Template'!$K$5,1,FALSE)),\"\",C168)","v":""}]
[null,null,null,null,null,null,null,null,null,null,null,null,null,null,null,null,null,null,null,null,null,null,null,null,{"$f":"IF(ISERROR(VLOOKUP(A169,'Submission Template'!$K$5,1,FALSE)),\"\",C169)","v":""}]
[null,null,null,null,null,null,null,null,null,null,null,null,null,null,null,null,null,null,null,null,null,null,null,null,{"$f":"IF(ISERROR(VLOOKUP(A170,'Submission Template'!$K$5,1,FALSE)),\"\",C170)","v":""}]
[null,null,null,null,null,null,null,null,null,null,null,null,null,null,null,null,null,null,null,null,null,null,null,null,{"$f":"IF(ISERROR(VLOOKUP(A171,'Submission Template'!$K$5,1,FALSE)),\"\",C171)","v":""}]
[null,null,null,null,null,null,null,null,null,null,null,null,null,null,null,null,null,null,null,null,null,null,null,null,{"$f":"IF(ISERROR(VLOOKUP(A172,'Submission Template'!$K$5,1,FALSE)),\"\",C172)","v":""}]
[null,null,null,null,null,null,null,null,null,null,null,null,null,null,null,null,null,null,null,null,null,null,null,null,{"$f":"IF(ISERROR(VLOOKUP(A173,'Submission Template'!$K$5,1,FALSE)),\"\",C173)","v":""}]
[null,null,null,null,null,null,null,null,null,null,null,null,null,null,null,null,null,null,null,null,null,null,null,null,{"$f":"IF(ISERROR(VLOOKUP(A174,'Submission Template'!$K$5,1,FALSE)),\"\",C174)","v":""}]
[null,null,null,null,null,null,null,null,null,null,null,null,null,null,null,null,null,null,null,null,null,null,null,null,{"$f":"IF(ISERROR(VLOOKUP(A175,'Submission Template'!$K$5,1,FALSE)),\"\",C175)","v":""}]
[null,null,null,null,null,null,null,null,null,null,null,null,null,null,null,null,null,null,null,null,null,null,null,null,{"$f":"IF(ISERROR(VLOOKUP(A176,'Submission Template'!$K$5,1,FALSE)),\"\",C176)","v":""}]
[null,null,null,null,null,null,null,null,null,null,null,null,null,null,null,null,null,null,null,null,null,null,null,null,{"$f":"IF(ISERROR(VLOOKUP(A177,'Submission Template'!$K$5,1,FALSE)),\"\",C177)","v":""}]
[null,null,null,null,null,null,null,null,null,null,null,null,null,null,null,null,null,null,null,null,null,null,null,null,{"$f":"IF(ISERROR(VLOOKUP(A178,'Submission Template'!$K$5,1,FALSE)),\"\",C178)","v":""}]
[null,null,null,null,null,null,null,null,null,null,null,null,null,null,null,null,null,null,null,null,null,null,null,null,{"$f":"IF(ISERROR(VLOOKUP(A179,'Submission Template'!$K$5,1,FALSE)),\"\",C179)","v":""}]
[null,null,null,null,null,null,null,null,null,null,null,null,null,null,null,null,null,null,null,null,null,null,null,null,{"$f":"IF(ISERROR(VLOOKUP(A180,'Submission Template'!$K$5,1,FALSE)),\"\",C180)","v":""}]
[null,null,null,null,null,null,null,null,null,null,null,null,null,null,null,null,null,null,null,null,null,null,null,null,{"$f":"IF(ISERROR(VLOOKUP(A181,'Submission Template'!$K$5,1,FALSE)),\"\",C181)","v":""}]
[null,null,null,null,null,null,null,null,null,null,null,null,null,null,null,null,null,null,null,null,null,null,null,null,{"$f":"IF(ISERROR(VLOOKUP(A182,'Submission Template'!$K$5,1,FALSE)),\"\",C182)","v":""}]
[null,null,null,null,null,null,null,null,null,null,null,null,null,null,null,null,null,null,null,null,null,null,null,null,{"$f":"IF(ISERROR(VLOOKUP(A183,'Submission Template'!$K$5,1,FALSE)),\"\",C183)","v":""}]
[null,null,null,null,null,null,null,null,null,null,null,null,null,null,null,null,null,null,null,null,null,null,null,null,{"$f":"IF(ISERROR(VLOOKUP(A184,'Submission Template'!$K$5,1,FALSE)),\"\",C184)","v":""}]
[null,null,null,null,null,null,null,null,null,null,null,null,null,null,null,null,null,null,null,null,null,null,null,null,{"$f":"IF(ISERROR(VLOOKUP(A185,'Submission Template'!$K$5,1,FALSE)),\"\",C185)","v":""}]
[null,null,null,null,null,null,null,null,null,null,null,null,null,null,null,null,null,null,null,null,null,null,null,null,{"$f":"IF(ISERROR(VLOOKUP(A186,'Submission Template'!$K$5,1,FALSE)),\"\",C186)","v":""}]
[null,null,null,null,null,null,null,null,null,null,null,null,null,null,null,null,null,null,null,null,null,null,null,null,{"$f":"IF(ISERROR(VLOOKUP(A187,'Submission Template'!$K$5,1,FALSE)),\"\",C187)","v":""}]
[null,null,null,null,null,null,null,null,null,null,null,null,null,null,null,null,null,null,null,null,null,null,null,null,{"$f":"IF(ISERROR(VLOOKUP(A188,'Submission Template'!$K$5,1,FALSE)),\"\",C188)","v":""}]
[null,null,null,null,null,null,null,null,null,null,null,null,null,null,null,null,null,null,null,null,null,null,null,null,{"$f":"IF(ISERROR(VLOOKUP(A189,'Submission Template'!$K$5,1,FALSE)),\"\",C189)","v":""}]
[null,null,null,null,null,null,null,null,null,null,null,null,null,null,null,null,null,null,null,null,null,null,null,null,{"$f":"IF(ISERROR(VLOOKUP(A190,'Submission Template'!$K$5,1,FALSE)),\"\",C190)","v":""}]
[null,null,null,null,null,null,null,null,null,null,null,null,null,null,null,null,null,null,null,null,null,null,null,null,{"$f":"IF(ISERROR(VLOOKUP(A191,'Submission Template'!$K$5,1,FALSE)),\"\",C191)","v":""}]
[null,null,null,null,null,null,null,null,null,null,null,null,null,null,null,null,null,null,null,null,null,null,null,null,{"$f":"IF(ISERROR(VLOOKUP(A192,'Submission Template'!$K$5,1,FALSE)),\"\",C192)","v":""}]
[null,null,null,null,null,null,null,null,null,null,null,null,null,null,null,null,null,null,null,null,null,null,null,null,{"$f":"IF(ISERROR(VLOOKUP(A193,'Submission Template'!$K$5,1,FALSE)),\"\",C193)","v":""}]
[null,null,null,null,null,null,null,null,null,null,null,null,null,null,null,null,null,null,null,null,null,null,null,null,{"$f":"IF(ISERROR(VLOOKUP(A194,'Submission Template'!$K$5,1,FALSE)),\"\",C194)","v":""}]
[null,null,null,null,null,null,null,null,null,null,null,null,null,null,null,null,null,null,null,null,null,null,null,null,{"$f":"IF(ISERROR(VLOOKUP(A195,'Submission Template'!$K$5,1,FALSE)),\"\",C195)","v":""}]
[null,null,null,null,null,null,null,null,null,null,null,null,null,null,null,null,null,null,null,null,null,null,null,null,{"$f":"IF(ISERROR(VLOOKUP(A196,'Submission Template'!$K$5,1,FALSE)),\"\",C196)","v":""}]
[null,null,null,null,null,null,null,null,null,null,null,null,null,null,null,null,null,null,null,null,null,null,null,null,{"$f":"IF(ISERROR(VLOOKUP(A197,'Submission Template'!$K$5,1,FALSE)),\"\",C197)","v":""}]
[null,null,null,null,null,null,null,null,null,null,null,null,null,null,null,null,null,null,null,null,null,null,null,null,{"$f":"IF(ISERROR(VLOOKUP(A198,'Submission Template'!$K$5,1,FALSE)),\"\",C198)","v":""}]
[null,null,null,null,null,null,null,null,null,null,null,null,null,null,null,null,null,null,null,null,null,null,null,null,{"$f":"IF(ISERROR(VLOOKUP(A199,'Submission Template'!$K$5,1,FALSE)),\"\",C199)","v":""}]
[null,null,null,null,null,null,null,null,null,null,null,null,null,null,null,null,null,null,null,null,null,null,null,null,{"$f":"IF(ISERROR(VLOOKUP(A200,'Submission Template'!$K$5,1,FALSE)),\"\",C200)","v":""}]
[null,null,null,null,null,null,null,null,null,null,null,null,null,null,null,null,null,null,null,null,null,null,null,null,{"$f":"IF(ISERROR(VLOOKUP(A201,'Submission Template'!$K$5,1,FALSE)),\"\",C201)","v":""}]
[null,null,null,null,null,null,null,null,null,null,null,null,null,null,null,null,null,null,null,null,null,null,null,null,{"$f":"IF(ISERROR(VLOOKUP(A202,'Submission Template'!$K$5,1,FALSE)),\"\",C202)","v":""}]
[null,null,null,null,null,null,null,null,null,null,null,null,null,null,null,null,null,null,null,null,null,null,null,null,{"$f":"IF(ISERROR(VLOOKUP(A203,'Submission Template'!$K$5,1,FALSE)),\"\",C203)","v":""}]
[null,null,null,null,null,null,null,null,null,null,null,null,null,null,null,null,null,null,null,null,null,null,null,null,{"$f":"IF(ISERROR(VLOOKUP(A204,'Submission Template'!$K$5,1,FALSE)),\"\",C204)","v":""}]
[null,null,null,null,null,null,null,null,null,null,null,null,null,null,null,null,null,null,null,null,null,null,null,null,{"$f":"IF(ISERROR(VLOOKUP(A205,'Submission Template'!$K$5,1,FALSE)),\"\",C205)","v":""}]
[null,null,null,null,null,null,null,null,null,null,null,null,null,null,null,null,null,null,null,null,null,null,null,null,{"$f":"IF(ISERROR(VLOOKUP(A206,'Submission Template'!$K$5,1,FALSE)),\"\",C206)","v":""}]
[null,null,null,null,null,null,null,null,null,null,null,null,null,null,null,null,null,null,null,null,null,null,null,null,{"$f":"IF(ISERROR(VLOOKUP(A207,'Submission Template'!$K$5,1,FALSE)),\"\",C207)","v":""}]
[null,null,null,null,null,null,null,null,null,null,null,null,null,null,null,null,null,null,null,null,null,null,null,null,{"$f":"IF(ISERROR(VLOOKUP(A208,'Submission Template'!$K$5,1,FALSE)),\"\",C208)","v":""}]
[null,null,null,null,null,null,null,null,null,null,null,null,null,null,null,null,null,null,null,null,null,null,null,null,{"$f":"IF(ISERROR(VLOOKUP(A209,'Submission Template'!$K$5,1,FALSE)),\"\",C209)","v":""}]
[null,null,null,null,null,null,null,null,null,null,null,null,null,null,null,null,null,null,null,null,null,null,null,null,{"$f":"IF(ISERROR(VLOOKUP(A210,'Submission Template'!$K$5,1,FALSE)),\"\",C210)","v":""}]
[null,null,null,null,null,null,null,null,null,null,null,null,null,null,null,null,null,null,null,null,null,null,null,null,{"$f":"IF(ISERROR(VLOOKUP(A211,'Submission Template'!$K$5,1,FALSE)),\"\",C211)","v":""}]
[null,null,null,null,null,null,null,null,null,null,null,null,null,null,null,null,null,null,null,null,null,null,null,null,{"$f":"IF(ISERROR(VLOOKUP(A212,'Submission Template'!$K$5,1,FALSE)),\"\",C212)","v":""}]
[null,null,null,null,null,null,null,null,null,null,null,null,null,null,null,null,null,null,null,null,null,null,null,null,{"$f":"IF(ISERROR(VLOOKUP(A213,'Submission Template'!$K$5,1,FALSE)),\"\",C213)","v":""}]
[null,null,null,null,null,null,null,null,null,null,null,null,null,null,null,null,null,null,null,null,null,null,null,null,{"$f":"IF(ISERROR(VLOOKUP(A214,'Submission Template'!$K$5,1,FALSE)),\"\",C214)","v":""}]
[null,null,null,null,null,null,null,null,null,null,null,null,null,null,null,null,null,null,null,null,null,null,null,null,{"$f":"IF(ISERROR(VLOOKUP(A215,'Submission Template'!$K$5,1,FALSE)),\"\",C215)","v":""}]
[null,null,null,null,null,null,null,null,null,null,null,null,null,null,null,null,null,null,null,null,null,null,null,null,{"$f":"IF(ISERROR(VLOOKUP(A216,'Submission Template'!$K$5,1,FALSE)),\"\",C216)","v":""}]
[null,null,null,null,null,null,null,null,null,null,null,null,null,null,null,null,null,null,null,null,null,null,null,null,{"$f":"IF(ISERROR(VLOOKUP(A217,'Submission Template'!$K$5,1,FALSE)),\"\",C217)","v":""}]
[null,null,null,null,null,null,null,null,null,null,null,null,null,null,null,null,null,null,null,null,null,null,null,null,{"$f":"IF(ISERROR(VLOOKUP(A218,'Submission Template'!$K$5,1,FALSE)),\"\",C218)","v":""}]
[null,null,null,null,null,null,null,null,null,null,null,null,null,null,null,null,null,null,null,null,null,null,null,null,{"$f":"IF(ISERROR(VLOOKUP(A219,'Submission Template'!$K$5,1,FALSE)),\"\",C219)","v":""}]
[null,null,null,null,null,null,null,null,null,null,null,null,null,null,null,null,null,null,null,null,null,null,null,null,{"$f":"IF(ISERROR(VLOOKUP(A220,'Submission Template'!$K$5,1,FALSE)),\"\",C220)","v":""}]
[null,null,null,null,null,null,null,null,null,null,null,null,null,null,null,null,null,null,null,null,null,null,null,null,{"$f":"IF(ISERROR(VLOOKUP(A221,'Submission Template'!$K$5,1,FALSE)),\"\",C221)","v":""}]
[null,null,null,null,null,null,null,null,null,null,null,null,null,null,null,null,null,null,null,null,null,null,null,null,{"$f":"IF(ISERROR(VLOOKUP(A222,'Submission Template'!$K$5,1,FALSE)),\"\",C222)","v":""}]
[null,null,null,null,null,null,null,null,null,null,null,null,null,null,null,null,null,null,null,null,null,null,null,null,{"$f":"IF(ISERROR(VLOOKUP(A223,'Submission Template'!$K$5,1,FALSE)),\"\",C223)","v":""}]
[null,null,null,null,null,null,null,null,null,null,null,null,null,null,null,null,null,null,null,null,null,null,null,null,{"$f":"IF(ISERROR(VLOOKUP(A224,'Submission Template'!$K$5,1,FALSE)),\"\",C224)","v":""}]
[null,null,null,null,null,null,null,null,null,null,null,null,null,null,null,null,null,null,null,null,null,null,null,null,{"$f":"IF(ISERROR(VLOOKUP(A225,'Submission Template'!$K$5,1,FALSE)),\"\",C225)","v":""}]
[null,null,null,null,null,null,null,null,null,null,null,null,null,null,null,null,null,null,null,null,null,null,null,null,{"$f":"IF(ISERROR(VLOOKUP(A226,'Submission Template'!$K$5,1,FALSE)),\"\",C226)","v":""}]
[null,null,null,null,null,null,null,null,null,null,null,null,null,null,null,null,null,null,null,null,null,null,null,null,{"$f":"IF(ISERROR(VLOOKUP(A227,'Submission Template'!$K$5,1,FALSE)),\"\",C227)","v":""}]
[null,null,null,null,null,null,null,null,null,null,null,null,null,null,null,null,null,null,null,null,null,null,null,null,{"$f":"IF(ISERROR(VLOOKUP(A228,'Submission Template'!$K$5,1,FALSE)),\"\",C228)","v":""}]
[null,null,null,null,null,null,null,null,null,null,null,null,null,null,null,null,null,null,null,null,null,null,null,null,{"$f":"IF(ISERROR(VLOOKUP(A229,'Submission Template'!$K$5,1,FALSE)),\"\",C229)","v":""}]
[null,null,null,null,null,null,null,null,null,null,null,null,null,null,null,null,null,null,null,null,null,null,null,null,{"$f":"IF(ISERROR(VLOOKUP(A230,'Submission Template'!$K$5,1,FALSE)),\"\",C230)","v":""}]
[null,null,null,null,null,null,null,null,null,null,null,null,null,null,null,null,null,null,null,null,null,null,null,null,{"$f":"IF(ISERROR(VLOOKUP(A231,'Submission Template'!$K$5,1,FALSE)),\"\",C231)","v":""}]
[null,null,null,null,null,null,null,null,null,null,null,null,null,null,null,null,null,null,null,null,null,null,null,null,{"$f":"IF(ISERROR(VLOOKUP(A232,'Submission Template'!$K$5,1,FALSE)),\"\",C232)","v":""}]
[null,null,null,null,null,null,null,null,null,null,null,null,null,null,null,null,null,null,null,null,null,null,null,null,{"$f":"IF(ISERROR(VLOOKUP(A233,'Submission Template'!$K$5,1,FALSE)),\"\",C233)","v":""}]
[null,null,null,null,null,null,null,null,null,null,null,null,null,null,null,null,null,null,null,null,null,null,null,null,{"$f":"IF(ISERROR(VLOOKUP(A234,'Submission Template'!$K$5,1,FALSE)),\"\",C234)","v":""}]
[null,null,null,null,null,null,null,null,null,null,null,null,null,null,null,null,null,null,null,null,null,null,null,null,{"$f":"IF(ISERROR(VLOOKUP(A235,'Submission Template'!$K$5,1,FALSE)),\"\",C235)","v":""}]
[null,null,null,null,null,null,null,null,null,null,null,null,null,null,null,null,null,null,null,null,null,null,null,null,{"$f":"IF(ISERROR(VLOOKUP(A236,'Submission Template'!$K$5,1,FALSE)),\"\",C236)","v":""}]
[null,null,null,null,null,null,null,null,null,null,null,null,null,null,null,null,null,null,null,null,null,null,null,null,{"$f":"IF(ISERROR(VLOOKUP(A237,'Submission Template'!$K$5,1,FALSE)),\"\",C237)","v":""}]
[null,null,null,null,null,null,null,null,null,null,null,null,null,null,null,null,null,null,null,null,null,null,null,null,{"$f":"IF(ISERROR(VLOOKUP(A238,'Submission Template'!$K$5,1,FALSE)),\"\",C238)","v":""}]
[null,null,null,null,null,null,null,null,null,null,null,null,null,null,null,null,null,null,null,null,null,null,null,null,{"$f":"IF(ISERROR(VLOOKUP(A239,'Submission Template'!$K$5,1,FALSE)),\"\",C239)","v":""}]
[null,null,null,null,null,null,null,null,null,null,null,null,null,null,null,null,null,null,null,null,null,null,null,null,{"$f":"IF(ISERROR(VLOOKUP(A240,'Submission Template'!$K$5,1,FALSE)),\"\",C240)","v":""}]
[null,null,null,null,null,null,null,null,null,null,null,null,null,null,null,null,null,null,null,null,null,null,null,null,{"$f":"IF(ISERROR(VLOOKUP(A241,'Submission Template'!$K$5,1,FALSE)),\"\",C241)","v":""}]
[null,null,null,null,null,null,null,null,null,null,null,null,null,null,null,null,null,null,null,null,null,null,null,null,{"$f":"IF(ISERROR(VLOOKUP(A242,'Submission Template'!$K$5,1,FALSE)),\"\",C242)","v":""}]
[null,null,null,null,null,null,null,null,null,null,null,null,null,null,null,null,null,null,null,null,null,null,null,null,{"$f":"IF(ISERROR(VLOOKUP(A243,'Submission Template'!$K$5,1,FALSE)),\"\",C243)","v":""}]
[null,null,null,null,null,null,null,null,null,null,null,null,null,null,null,null,null,null,null,null,null,null,null,null,{"$f":"IF(ISERROR(VLOOKUP(A244,'Submission Template'!$K$5,1,FALSE)),\"\",C244)","v":""}]
[null,null,null,null,null,null,null,null,null,null,null,null,null,null,null,null,null,null,null,null,null,null,null,null,{"$f":"IF(ISERROR(VLOOKUP(A245,'Submission Template'!$K$5,1,FALSE)),\"\",C245)","v":""}]
[null,null,null,null,null,null,null,null,null,null,null,null,null,null,null,null,null,null,null,null,null,null,null,null,{"$f":"IF(ISERROR(VLOOKUP(A246,'Submission Template'!$K$5,1,FALSE)),\"\",C246)","v":""}]
[null,null,null,null,null,null,null,null,null,null,null,null,null,null,null,null,null,null,null,null,null,null,null,null,{"$f":"IF(ISERROR(VLOOKUP(A247,'Submission Template'!$K$5,1,FALSE)),\"\",C247)","v":""}]
[null,null,null,null,null,null,null,null,null,null,null,null,null,null,null,null,null,null,null,null,null,null,null,null,{"$f":"IF(ISERROR(VLOOKUP(A248,'Submission Template'!$K$5,1,FALSE)),\"\",C248)","v":""}]
[null,null,null,null,null,null,null,null,null,null,null,null,null,null,null,null,null,null,null,null,null,null,null,null,{"$f":"IF(ISERROR(VLOOKUP(A249,'Submission Template'!$K$5,1,FALSE)),\"\",C249)","v":""}]
[null,null,null,null,null,null,null,null,null,null,null,null,null,null,null,null,null,null,null,null,null,null,null,null,{"$f":"IF(ISERROR(VLOOKUP(A250,'Submission Template'!$K$5,1,FALSE)),\"\",C250)","v":""}]
[null,null,null,null,null,null,null,null,null,null,null,null,null,null,null,null,null,null,null,null,null,null,null,null,{"$f":"IF(ISERROR(VLOOKUP(A251,'Submission Template'!$K$5,1,FALSE)),\"\",C251)","v":""}]
[null,null,null,null,null,null,null,null,null,null,null,null,null,null,null,null,null,null,null,null,null,null,null,null,{"$f":"IF(ISERROR(VLOOKUP(A252,'Submission Template'!$K$5,1,FALSE)),\"\",C252)","v":""}]
[null,null,null,null,null,null,null,null,null,null,null,null,null,null,null,null,null,null,null,null,null,null,null,null,{"$f":"IF(ISERROR(VLOOKUP(A253,'Submission Template'!$K$5,1,FALSE)),\"\",C253)","v":""}]
[null,null,null,null,null,null,null,null,null,null,null,null,null,null,null,null,null,null,null,null,null,null,null,null,{"$f":"IF(ISERROR(VLOOKUP(A254,'Submission Template'!$K$5,1,FALSE)),\"\",C254)","v":""}]
[null,null,null,null,null,null,null,null,null,null,null,null,null,null,null,null,null,null,null,null,null,null,null,null,{"$f":"IF(ISERROR(VLOOKUP(A255,'Submission Template'!$K$5,1,FALSE)),\"\",C255)","v":""}]
[null,null,null,null,null,null,null,null,null,null,null,null,null,null,null,null,null,null,null,null,null,null,null,null,{"$f":"IF(ISERROR(VLOOKUP(A256,'Submission Template'!$K$5,1,FALSE)),\"\",C256)","v":""}]
[null,null,null,null,null,null,null,null,null,null,null,null,null,null,null,null,null,null,null,null,null,null,null,null,{"$f":"IF(ISERROR(VLOOKUP(A257,'Submission Template'!$K$5,1,FALSE)),\"\",C257)","v":""}]
[null,null,null,null,null,null,null,null,null,null,null,null,null,null,null,null,null,null,null,null,null,null,null,null,{"$f":"IF(ISERROR(VLOOKUP(A258,'Submission Template'!$K$5,1,FALSE)),\"\",C258)","v":""}]
[null,null,null,null,null,null,null,null,null,null,null,null,null,null,null,null,null,null,null,null,null,null,null,null,{"$f":"IF(ISERROR(VLOOKUP(A259,'Submission Template'!$K$5,1,FALSE)),\"\",C259)","v":""}]
[null,null,null,null,null,null,null,null,null,null,null,null,null,null,null,null,null,null,null,null,null,null,null,null,{"$f":"IF(ISERROR(VLOOKUP(A260,'Submission Template'!$K$5,1,FALSE)),\"\",C260)","v":""}]
[null,null,null,null,null,null,null,null,null,null,null,null,null,null,null,null,null,null,null,null,null,null,null,null,{"$f":"IF(ISERROR(VLOOKUP(A261,'Submission Template'!$K$5,1,FALSE)),\"\",C261)","v":""}]
[null,null,null,null,null,null,null,null,null,null,null,null,null,null,null,null,null,null,null,null,null,null,null,null,{"$f":"IF(ISERROR(VLOOKUP(A262,'Submission Template'!$K$5,1,FALSE)),\"\",C262)","v":""}]
[null,null,null,null,null,null,null,null,null,null,null,null,null,null,null,null,null,null,null,null,null,null,null,null,{"$f":"IF(ISERROR(VLOOKUP(A263,'Submission Template'!$K$5,1,FALSE)),\"\",C263)","v":""}]
[null,null,null,null,null,null,null,null,null,null,null,null,null,null,null,null,null,null,null,null,null,null,null,null,{"$f":"IF(ISERROR(VLOOKUP(A264,'Submission Template'!$K$5,1,FALSE)),\"\",C264)","v":""}]
[null,null,null,null,null,null,null,null,null,null,null,null,null,null,null,null,null,null,null,null,null,null,null,null,{"$f":"IF(ISERROR(VLOOKUP(A265,'Submission Template'!$K$5,1,FALSE)),\"\",C265)","v":""}]
[null,null,null,null,null,null,null,null,null,null,null,null,null,null,null,null,null,null,null,null,null,null,null,null,{"$f":"IF(ISERROR(VLOOKUP(A266,'Submission Template'!$K$5,1,FALSE)),\"\",C266)","v":""}]
[null,null,null,null,null,null,null,null,null,null,null,null,null,null,null,null,null,null,null,null,null,null,null,null,{"$f":"IF(ISERROR(VLOOKUP(A267,'Submission Template'!$K$5,1,FALSE)),\"\",C267)","v":""}]
[null,null,null,null,null,null,null,null,null,null,null,null,null,null,null,null,null,null,null,null,null,null,null,null,{"$f":"IF(ISERROR(VLOOKUP(A268,'Submission Template'!$K$5,1,FALSE)),\"\",C268)","v":""}]
[null,null,null,null,null,null,null,null,null,null,null,null,null,null,null,null,null,null,null,null,null,null,null,null,{"$f":"IF(ISERROR(VLOOKUP(A269,'Submission Template'!$K$5,1,FALSE)),\"\",C269)","v":""}]
[null,null,null,null,null,null,null,null,null,null,null,null,null,null,null,null,null,null,null,null,null,null,null,null,{"$f":"IF(ISERROR(VLOOKUP(A270,'Submission Template'!$K$5,1,FALSE)),\"\",C270)","v":""}]
[null,null,null,null,null,null,null,null,null,null,null,null,null,null,null,null,null,null,null,null,null,null,null,null,{"$f":"IF(ISERROR(VLOOKUP(A271,'Submission Template'!$K$5,1,FALSE)),\"\",C271)","v":""}]
[null,null,null,null,null,null,null,null,null,null,null,null,null,null,null,null,null,null,null,null,null,null,null,null,{"$f":"IF(ISERROR(VLOOKUP(A272,'Submission Template'!$K$5,1,FALSE)),\"\",C272)","v":""}]
[null,null,null,null,null,null,null,null,null,null,null,null,null,null,null,null,null,null,null,null,null,null,null,null,{"$f":"IF(ISERROR(VLOOKUP(A273,'Submission Template'!$K$5,1,FALSE)),\"\",C273)","v":""}]
[null,null,null,null,null,null,null,null,null,null,null,null,null,null,null,null,null,null,null,null,null,null,null,null,{"$f":"IF(ISERROR(VLOOKUP(A274,'Submission Template'!$K$5,1,FALSE)),\"\",C274)","v":""}]
[null,null,null,null,null,null,null,null,null,null,null,null,null,null,null,null,null,null,null,null,null,null,null,null,{"$f":"IF(ISERROR(VLOOKUP(A275,'Submission Template'!$K$5,1,FALSE)),\"\",C275)","v":""}]
[null,null,null,null,null,null,null,null,null,null,null,null,null,null,null,null,null,null,null,null,null,null,null,null,{"$f":"IF(ISERROR(VLOOKUP(A276,'Submission Template'!$K$5,1,FALSE)),\"\",C276)","v":""}]
[null,null,null,null,null,null,null,null,null,null,null,null,null,null,null,null,null,null,null,null,null,null,null,null,{"$f":"IF(ISERROR(VLOOKUP(A277,'Submission Template'!$K$5,1,FALSE)),\"\",C277)","v":""}]
[null,null,null,null,null,null,null,null,null,null,null,null,null,null,null,null,null,null,null,null,null,null,null,null,{"$f":"IF(ISERROR(VLOOKUP(A278,'Submission Template'!$K$5,1,FALSE)),\"\",C278)","v":""}]
[null,null,null,null,null,null,null,null,null,null,null,null,null,null,null,null,null,null,null,null,null,null,null,null,{"$f":"IF(ISERROR(VLOOKUP(A279,'Submission Template'!$K$5,1,FALSE)),\"\",C279)","v":""}]
[null,null,null,null,null,null,null,null,null,null,null,null,null,null,null,null,null,null,null,null,null,null,null,null,{"$f":"IF(ISERROR(VLOOKUP(A280,'Submission Template'!$K$5,1,FALSE)),\"\",C280)","v":""}]
[null,null,null,null,null,null,null,null,null,null,null,null,null,null,null,null,null,null,null,null,null,null,null,null,{"$f":"IF(ISERROR(VLOOKUP(A281,'Submission Template'!$K$5,1,FALSE)),\"\",C281)","v":""}]
[null,null,null,null,null,null,null,null,null,null,null,null,null,null,null,null,null,null,null,null,null,null,null,null,{"$f":"IF(ISERROR(VLOOKUP(A282,'Submission Template'!$K$5,1,FALSE)),\"\",C282)","v":""}]
[null,null,null,null,null,null,null,null,null,null,null,null,null,null,null,null,null,null,null,null,null,null,null,null,{"$f":"IF(ISERROR(VLOOKUP(A283,'Submission Template'!$K$5,1,FALSE)),\"\",C283)","v":""}]
[null,null,null,null,null,null,null,null,null,null,null,null,null,null,null,null,null,null,null,null,null,null,null,null,{"$f":"IF(ISERROR(VLOOKUP(A284,'Submission Template'!$K$5,1,FALSE)),\"\",C284)","v":""}]
[null,null,null,null,null,null,null,null,null,null,null,null,null,null,null,null,null,null,null,null,null,null,null,null,{"$f":"IF(ISERROR(VLOOKUP(A285,'Submission Template'!$K$5,1,FALSE)),\"\",C285)","v":""}]
[null,null,null,null,null,null,null,null,null,null,null,null,null,null,null,null,null,null,null,null,null,null,null,null,{"$f":"IF(ISERROR(VLOOKUP(A286,'Submission Template'!$K$5,1,FALSE)),\"\",C286)","v":""}]
[null,null,null,null,null,null,null,null,null,null,null,null,null,null,null,null,null,null,null,null,null,null,null,null,{"$f":"IF(ISERROR(VLOOKUP(A287,'Submission Template'!$K$5,1,FALSE)),\"\",C287)","v":""}]
[null,null,null,null,null,null,null,null,null,null,null,null,null,null,null,null,null,null,null,null,null,null,null,null,{"$f":"IF(ISERROR(VLOOKUP(A288,'Submission Template'!$K$5,1,FALSE)),\"\",C288)","v":""}]
[null,null,null,null,null,null,null,null,null,null,null,null,null,null,null,null,null,null,null,null,null,null,null,null,{"$f":"IF(ISERROR(VLOOKUP(A289,'Submission Template'!$K$5,1,FALSE)),\"\",C289)","v":""}]
[null,null,null,null,null,null,null,null,null,null,null,null,null,null,null,null,null,null,null,null,null,null,null,null,{"$f":"IF(ISERROR(VLOOKUP(A290,'Submission Template'!$K$5,1,FALSE)),\"\",C290)","v":""}]
[null,null,null,null,null,null,null,null,null,null,null,null,null,null,null,null,null,null,null,null,null,null,null,null,{"$f":"IF(ISERROR(VLOOKUP(A291,'Submission Template'!$K$5,1,FALSE)),\"\",C291)","v":""}]
[null,null,null,null,null,null,null,null,null,null,null,null,null,null,null,null,null,null,null,null,null,null,null,null,{"$f":"IF(ISERROR(VLOOKUP(A292,'Submission Template'!$K$5,1,FALSE)),\"\",C292)","v":""}]
[null,null,null,null,null,null,null,null,null,null,null,null,null,null,null,null,null,null,null,null,null,null,null,null,{"$f":"IF(ISERROR(VLOOKUP(A293,'Submission Template'!$K$5,1,FALSE)),\"\",C293)","v":""}]
[null,null,null,null,null,null,null,null,null,null,null,null,null,null,null,null,null,null,null,null,null,null,null,null,{"$f":"IF(ISERROR(VLOOKUP(A294,'Submission Template'!$K$5,1,FALSE)),\"\",C294)","v":""}]
[null,null,null,null,null,null,null,null,null,null,null,null,null,null,null,null,null,null,null,null,null,null,null,null,{"$f":"IF(ISERROR(VLOOKUP(A295,'Submission Template'!$K$5,1,FALSE)),\"\",C295)","v":""}]
[null,null,null,null,null,null,null,null,null,null,null,null,null,null,null,null,null,null,null,null,null,null,null,null,{"$f":"IF(ISERROR(VLOOKUP(A296,'Submission Template'!$K$5,1,FALSE)),\"\",C296)","v":""}]
[null,null,null,null,null,null,null,null,null,null,null,null,null,null,null,null,null,null,null,null,null,null,null,null,{"$f":"IF(ISERROR(VLOOKUP(A297,'Submission Template'!$K$5,1,FALSE)),\"\",C297)","v":""}]
[null,null,null,null,null,null,null,null,null,null,null,null,null,null,null,null,null,null,null,null,null,null,null,null,{"$f":"IF(ISERROR(VLOOKUP(A298,'Submission Template'!$K$5,1,FALSE)),\"\",C298)","v":""}]
[null,null,null,null,null,null,null,null,null,null,null,null,null,null,null,null,null,null,null,null,null,null,null,null,{"$f":"IF(ISERROR(VLOOKUP(A299,'Submission Template'!$K$5,1,FALSE)),\"\",C299)","v":""}]
[null,null,null,null,null,null,null,null,null,null,null,null,null,null,null,null,null,null,null,null,null,null,null,null,{"$f":"IF(ISERROR(VLOOKUP(A300,'Submission Template'!$K$5,1,FALSE)),\"\",C300)","v":""}]
[null,null,null,null,null,null,null,null,null,null,null,null,null,null,null,null,null,null,null,null,null,null,null,null,{"$f":"IF(ISERROR(VLOOKUP(A301,'Submission Template'!$K$5,1,FALSE)),\"\",C301)","v":""}]
[null,null,null,null,null,null,null,null,null,null,null,null,null,null,null,null,null,null,null,null,null,null,null,null,{"$f":"IF(ISERROR(VLOOKUP(A302,'Submission Template'!$K$5,1,FALSE)),\"\",C302)","v":""}]
[null,null,null,null,null,null,null,null,null,null,null,null,null,null,null,null,null,null,null,null,null,null,null,null,{"$f":"IF(ISERROR(VLOOKUP(A303,'Submission Template'!$K$5,1,FALSE)),\"\",C303)","v":""}]
[null,null,null,null,null,null,null,null,null,null,null,null,null,null,null,null,null,null,null,null,null,null,null,null,{"$f":"IF(ISERROR(VLOOKUP(A304,'Submission Template'!$K$5,1,FALSE)),\"\",C304)","v":""}]
[null,null,null,null,null,null,null,null,null,null,null,null,null,null,null,null,null,null,null,null,null,null,null,null,{"$f":"IF(ISERROR(VLOOKUP(A305,'Submission Template'!$K$5,1,FALSE)),\"\",C305)","v":""}]
[null,null,null,null,null,null,null,null,null,null,null,null,null,null,null,null,null,null,null,null,null,null,null,null,{"$f":"IF(ISERROR(VLOOKUP(A306,'Submission Template'!$K$5,1,FALSE)),\"\",C306)","v":""}]
[null,null,null,null,null,null,null,null,null,null,null,null,null,null,null,null,null,null,null,null,null,null,null,null,{"$f":"IF(ISERROR(VLOOKUP(A307,'Submission Template'!$K$5,1,FALSE)),\"\",C307)","v":""}]
[null,null,null,null,null,null,null,null,null,null,null,null,null,null,null,null,null,null,null,null,null,null,null,null,{"$f":"IF(ISERROR(VLOOKUP(A308,'Submission Template'!$K$5,1,FALSE)),\"\",C308)","v":""}]
[null,null,null,null,null,null,null,null,null,null,null,null,null,null,null,null,null,null,null,null,null,null,null,null,{"$f":"IF(ISERROR(VLOOKUP(A309,'Submission Template'!$K$5,1,FALSE)),\"\",C309)","v":""}]
[null,null,null,null,null,null,null,null,null,null,null,null,null,null,null,null,null,null,null,null,null,null,null,null,{"$f":"IF(ISERROR(VLOOKUP(A310,'Submission Template'!$K$5,1,FALSE)),\"\",C310)","v":""}]
[null,null,null,null,null,null,null,null,null,null,null,null,null,null,null,null,null,null,null,null,null,null,null,null,{"$f":"IF(ISERROR(VLOOKUP(A311,'Submission Template'!$K$5,1,FALSE)),\"\",C311)","v":""}]
[null,null,null,null,null,null,null,null,null,null,null,null,null,null,null,null,null,null,null,null,null,null,null,null,{"$f":"IF(ISERROR(VLOOKUP(A312,'Submission Template'!$K$5,1,FALSE)),\"\",C312)","v":""}]
[null,null,null,null,null,null,null,null,null,null,null,null,null,null,null,null,null,null,null,null,null,null,null,null,{"$f":"IF(ISERROR(VLOOKUP(A313,'Submission Template'!$K$5,1,FALSE)),\"\",C313)","v":""}]
[null,null,null,null,null,null,null,null,null,null,null,null,null,null,null,null,null,null,null,null,null,null,null,null,{"$f":"IF(ISERROR(VLOOKUP(A314,'Submission Template'!$K$5,1,FALSE)),\"\",C314)","v":""}]
[null,null,null,null,null,null,null,null,null,null,null,null,null,null,null,null,null,null,null,null,null,null,null,null,{"$f":"IF(ISERROR(VLOOKUP(A315,'Submission Template'!$K$5,1,FALSE)),\"\",C315)","v":""}]
[null,null,null,null,null,null,null,null,null,null,null,null,null,null,null,null,null,null,null,null,null,null,null,null,{"$f":"IF(ISERROR(VLOOKUP(A316,'Submission Template'!$K$5,1,FALSE)),\"\",C316)","v":""}]
[null,null,null,null,null,null,null,null,null,null,null,null,null,null,null,null,null,null,null,null,null,null,null,null,{"$f":"IF(ISERROR(VLOOKUP(A317,'Submission Template'!$K$5,1,FALSE)),\"\",C317)","v":""}]
[null,null,null,null,null,null,null,null,null,null,null,null,null,null,null,null,null,null,null,null,null,null,null,null,{"$f":"IF(ISERROR(VLOOKUP(A318,'Submission Template'!$K$5,1,FALSE)),\"\",C318)","v":""}]
[null,null,null,null,null,null,null,null,null,null,null,null,null,null,null,null,null,null,null,null,null,null,null,null,{"$f":"IF(ISERROR(VLOOKUP(A319,'Submission Template'!$K$5,1,FALSE)),\"\",C319)","v":""}]
[null,null,null,null,null,null,null,null,null,null,null,null,null,null,null,null,null,null,null,null,null,null,null,null,{"$f":"IF(ISERROR(VLOOKUP(A320,'Submission Template'!$K$5,1,FALSE)),\"\",C320)","v":""}]
[null,null,null,null,null,null,null,null,null,null,null,null,null,null,null,null,null,null,null,null,null,null,null,null,{"$f":"IF(ISERROR(VLOOKUP(A321,'Submission Template'!$K$5,1,FALSE)),\"\",C321)","v":""}]
[null,null,null,null,null,null,null,null,null,null,null,null,null,null,null,null,null,null,null,null,null,null,null,null,{"$f":"IF(ISERROR(VLOOKUP(A322,'Submission Template'!$K$5,1,FALSE)),\"\",C322)","v":""}]
[null,null,null,null,null,null,null,null,null,null,null,null,null,null,null,null,null,null,null,null,null,null,null,null,{"$f":"IF(ISERROR(VLOOKUP(A323,'Submission Template'!$K$5,1,FALSE)),\"\",C323)","v":""}]
[null,null,null,null,null,null,null,null,null,null,null,null,null,null,null,null,null,null,null,null,null,null,null,null,{"$f":"IF(ISERROR(VLOOKUP(A324,'Submission Template'!$K$5,1,FALSE)),\"\",C324)","v":""}]
[null,null,null,null,null,null,null,null,null,null,null,null,null,null,null,null,null,null,null,null,null,null,null,null,{"$f":"IF(ISERROR(VLOOKUP(A325,'Submission Template'!$K$5,1,FALSE)),\"\",C325)","v":""}]
[null,null,null,null,null,null,null,null,null,null,null,null,null,null,null,null,null,null,null,null,null,null,null,null,{"$f":"IF(ISERROR(VLOOKUP(A326,'Submission Template'!$K$5,1,FALSE)),\"\",C326)","v":""}]
[null,null,null,null,null,null,null,null,null,null,null,null,null,null,null,null,null,null,null,null,null,null,null,null,{"$f":"IF(ISERROR(VLOOKUP(A327,'Submission Template'!$K$5,1,FALSE)),\"\",C327)","v":""}]
[null,null,null,null,null,null,null,null,null,null,null,null,null,null,null,null,null,null,null,null,null,null,null,null,{"$f":"IF(ISERROR(VLOOKUP(A328,'Submission Template'!$K$5,1,FALSE)),\"\",C328)","v":""}]
[null,null,null,null,null,null,null,null,null,null,null,null,null,null,null,null,null,null,null,null,null,null,null,null,{"$f":"IF(ISERROR(VLOOKUP(A329,'Submission Template'!$K$5,1,FALSE)),\"\",C329)","v":""}]
[null,null,null,null,null,null,null,null,null,null,null,null,null,null,null,null,null,null,null,null,null,null,null,null,{"$f":"IF(ISERROR(VLOOKUP(A330,'Submission Template'!$K$5,1,FALSE)),\"\",C330)","v":""}]
[null,null,null,null,null,null,null,null,null,null,null,null,null,null,null,null,null,null,null,null,null,null,null,null,{"$f":"IF(ISERROR(VLOOKUP(A331,'Submission Template'!$K$5,1,FALSE)),\"\",C331)","v":""}]
[null,null,null,null,null,null,null,null,null,null,null,null,null,null,null,null,null,null,null,null,null,null,null,null,{"$f":"IF(ISERROR(VLOOKUP(A332,'Submission Template'!$K$5,1,FALSE)),\"\",C332)","v":""}]
[null,null,null,null,null,null,null,null,null,null,null,null,null,null,null,null,null,null,null,null,null,null,null,null,{"$f":"IF(ISERROR(VLOOKUP(A333,'Submission Template'!$K$5,1,FALSE)),\"\",C333)","v":""}]
[null,null,null,null,null,null,null,null,null,null,null,null,null,null,null,null,null,null,null,null,null,null,null,null,{"$f":"IF(ISERROR(VLOOKUP(A334,'Submission Template'!$K$5,1,FALSE)),\"\",C334)","v":""}]
[null,null,null,null,null,null,null,null,null,null,null,null,null,null,null,null,null,null,null,null,null,null,null,null,{"$f":"IF(ISERROR(VLOOKUP(A335,'Submission Template'!$K$5,1,FALSE)),\"\",C335)","v":""}]
[null,null,null,null,null,null,null,null,null,null,null,null,null,null,null,null,null,null,null,null,null,null,null,null,{"$f":"IF(ISERROR(VLOOKUP(A336,'Submission Template'!$K$5,1,FALSE)),\"\",C336)","v":""}]
[null,null,null,null,null,null,null,null,null,null,null,null,null,null,null,null,null,null,null,null,null,null,null,null,{"$f":"IF(ISERROR(VLOOKUP(A337,'Submission Template'!$K$5,1,FALSE)),\"\",C337)","v":""}]
[null,null,null,null,null,null,null,null,null,null,null,null,null,null,null,null,null,null,null,null,null,null,null,null,{"$f":"IF(ISERROR(VLOOKUP(A338,'Submission Template'!$K$5,1,FALSE)),\"\",C338)","v":""}]
[null,null,null,null,null,null,null,null,null,null,null,null,null,null,null,null,null,null,null,null,null,null,null,null,{"$f":"IF(ISERROR(VLOOKUP(A339,'Submission Template'!$K$5,1,FALSE)),\"\",C339)","v":""}]
[null,null,null,null,null,null,null,null,null,null,null,null,null,null,null,null,null,null,null,null,null,null,null,null,{"$f":"IF(ISERROR(VLOOKUP(A340,'Submission Template'!$K$5,1,FALSE)),\"\",C340)","v":""}]
[null,null,null,null,null,null,null,null,null,null,null,null,null,null,null,null,null,null,null,null,null,null,null,null,{"$f":"IF(ISERROR(VLOOKUP(A341,'Submission Template'!$K$5,1,FALSE)),\"\",C341)","v":""}]
[null,null,null,null,null,null,null,null,null,null,null,null,null,null,null,null,null,null,null,null,null,null,null,null,{"$f":"IF(ISERROR(VLOOKUP(A342,'Submission Template'!$K$5,1,FALSE)),\"\",C342)","v":""}]
[null,null,null,null,null,null,null,null,null,null,null,null,null,null,null,null,null,null,null,null,null,null,null,null,{"$f":"IF(ISERROR(VLOOKUP(A343,'Submission Template'!$K$5,1,FALSE)),\"\",C343)","v":""}]
[null,null,null,null,null,null,null,null,null,null,null,null,null,null,null,null,null,null,null,null,null,null,null,null,{"$f":"IF(ISERROR(VLOOKUP(A344,'Submission Template'!$K$5,1,FALSE)),\"\",C344)","v":""}]
[null,null,null,null,null,null,null,null,null,null,null,null,null,null,null,null,null,null,null,null,null,null,null,null,{"$f":"IF(ISERROR(VLOOKUP(A345,'Submission Template'!$K$5,1,FALSE)),\"\",C345)","v":""}]
[null,null,null,null,null,null,null,null,null,null,null,null,null,null,null,null,null,null,null,null,null,null,null,null,{"$f":"IF(ISERROR(VLOOKUP(A346,'Submission Template'!$K$5,1,FALSE)),\"\",C346)","v":""}]
[null,null,null,null,null,null,null,null,null,null,null,null,null,null,null,null,null,null,null,null,null,null,null,null,{"$f":"IF(ISERROR(VLOOKUP(A347,'Submission Template'!$K$5,1,FALSE)),\"\",C347)","v":""}]
[null,null,null,null,null,null,null,null,null,null,null,null,null,null,null,null,null,null,null,null,null,null,null,null,{"$f":"IF(ISERROR(VLOOKUP(A348,'Submission Template'!$K$5,1,FALSE)),\"\",C348)","v":""}]
[null,null,null,null,null,null,null,null,null,null,null,null,null,null,null,null,null,null,null,null,null,null,null,null,{"$f":"IF(ISERROR(VLOOKUP(A349,'Submission Template'!$K$5,1,FALSE)),\"\",C349)","v":""}]
[null,null,null,null,null,null,null,null,null,null,null,null,null,null,null,null,null,null,null,null,null,null,null,null,{"$f":"IF(ISERROR(VLOOKUP(A350,'Submission Template'!$K$5,1,FALSE)),\"\",C350)","v":""}]
[null,null,null,null,null,null,null,null,null,null,null,null,null,null,null,null,null,null,null,null,null,null,null,null,{"$f":"IF(ISERROR(VLOOKUP(A351,'Submission Template'!$K$5,1,FALSE)),\"\",C351)","v":""}]
[null,null,null,null,null,null,null,null,null,null,null,null,null,null,null,null,null,null,null,null,null,null,null,null,{"$f":"IF(ISERROR(VLOOKUP(A352,'Submission Template'!$K$5,1,FALSE)),\"\",C352)","v":""}]
[null,null,null,null,null,null,null,null,null,null,null,null,null,null,null,null,null,null,null,null,null,null,null,null,{"$f":"IF(ISERROR(VLOOKUP(A353,'Submission Template'!$K$5,1,FALSE)),\"\",C353)","v":""}]
[null,null,null,null,null,null,null,null,null,null,null,null,null,null,null,null,null,null,null,null,null,null,null,null,{"$f":"IF(ISERROR(VLOOKUP(A354,'Submission Template'!$K$5,1,FALSE)),\"\",C354)","v":""}]
[null,null,null,null,null,null,null,null,null,null,null,null,null,null,null,null,null,null,null,null,null,null,null,null,{"$f":"IF(ISERROR(VLOOKUP(A355,'Submission Template'!$K$5,1,FALSE)),\"\",C355)","v":""}]
[null,null,null,null,null,null,null,null,null,null,null,null,null,null,null,null,null,null,null,null,null,null,null,null,{"$f":"IF(ISERROR(VLOOKUP(A356,'Submission Template'!$K$5,1,FALSE)),\"\",C356)","v":""}]
[null,null,null,null,null,null,null,null,null,null,null,null,null,null,null,null,null,null,null,null,null,null,null,null,{"$f":"IF(ISERROR(VLOOKUP(A357,'Submission Template'!$K$5,1,FALSE)),\"\",C357)","v":""}]
[null,null,null,null,null,null,null,null,null,null,null,null,null,null,null,null,null,null,null,null,null,null,null,null,{"$f":"IF(ISERROR(VLOOKUP(A358,'Submission Template'!$K$5,1,FALSE)),\"\",C358)","v":""}]
[null,null,null,null,null,null,null,null,null,null,null,null,null,null,null,null,null,null,null,null,null,null,null,null,{"$f":"IF(ISERROR(VLOOKUP(A359,'Submission Template'!$K$5,1,FALSE)),\"\",C359)","v":""}]
[null,null,null,null,null,null,null,null,null,null,null,null,null,null,null,null,null,null,null,null,null,null,null,null,{"$f":"IF(ISERROR(VLOOKUP(A360,'Submission Template'!$K$5,1,FALSE)),\"\",C360)","v":""}]
[null,null,null,null,null,null,null,null,null,null,null,null,null,null,null,null,null,null,null,null,null,null,null,null,{"$f":"IF(ISERROR(VLOOKUP(A361,'Submission Template'!$K$5,1,FALSE)),\"\",C361)","v":""}]
[null,null,null,null,null,null,null,null,null,null,null,null,null,null,null,null,null,null,null,null,null,null,null,null,{"$f":"IF(ISERROR(VLOOKUP(A362,'Submission Template'!$K$5,1,FALSE)),\"\",C362)","v":""}]
[null,null,null,null,null,null,null,null,null,null,null,null,null,null,null,null,null,null,null,null,null,null,null,null,{"$f":"IF(ISERROR(VLOOKUP(A363,'Submission Template'!$K$5,1,FALSE)),\"\",C363)","v":""}]
[null,null,null,null,null,null,null,null,null,null,null,null,null,null,null,null,null,null,null,null,null,null,null,null,{"$f":"IF(ISERROR(VLOOKUP(A364,'Submission Template'!$K$5,1,FALSE)),\"\",C364)","v":""}]
[null,null,null,null,null,null,null,null,null,null,null,null,null,null,null,null,null,null,null,null,null,null,null,null,{"$f":"IF(ISERROR(VLOOKUP(A365,'Submission Template'!$K$5,1,FALSE)),\"\",C365)","v":""}]
[null,null,null,null,null,null,null,null,null,null,null,null,null,null,null,null,null,null,null,null,null,null,null,null,{"$f":"IF(ISERROR(VLOOKUP(A366,'Submission Template'!$K$5,1,FALSE)),\"\",C366)","v":""}]
[null,null,null,null,null,null,null,null,null,null,null,null,null,null,null,null,null,null,null,null,null,null,null,null,{"$f":"IF(ISERROR(VLOOKUP(A367,'Submission Template'!$K$5,1,FALSE)),\"\",C367)","v":""}]
[null,null,null,null,null,null,null,null,null,null,null,null,null,null,null,null,null,null,null,null,null,null,null,null,{"$f":"IF(ISERROR(VLOOKUP(A368,'Submission Template'!$K$5,1,FALSE)),\"\",C368)","v":""}]
[null,null,null,null,null,null,null,null,null,null,null,null,null,null,null,null,null,null,null,null,null,null,null,null,{"$f":"IF(ISERROR(VLOOKUP(A369,'Submission Template'!$K$5,1,FALSE)),\"\",C369)","v":""}]
[null,null,null,null,null,null,null,null,null,null,null,null,null,null,null,null,null,null,null,null,null,null,null,null,{"$f":"IF(ISERROR(VLOOKUP(A370,'Submission Template'!$K$5,1,FALSE)),\"\",C370)","v":""}]
[null,null,null,null,null,null,null,null,null,null,null,null,null,null,null,null,null,null,null,null,null,null,null,null,{"$f":"IF(ISERROR(VLOOKUP(A371,'Submission Template'!$K$5,1,FALSE)),\"\",C371)","v":""}]
[null,null,null,null,null,null,null,null,null,null,null,null,null,null,null,null,null,null,null,null,null,null,null,null,{"$f":"IF(ISERROR(VLOOKUP(A372,'Submission Template'!$K$5,1,FALSE)),\"\",C372)","v":""}]
[null,null,null,null,null,null,null,null,null,null,null,null,null,null,null,null,null,null,null,null,null,null,null,null,{"$f":"IF(ISERROR(VLOOKUP(A373,'Submission Template'!$K$5,1,FALSE)),\"\",C373)","v":""}]
[null,null,null,null,null,null,null,null,null,null,null,null,null,null,null,null,null,null,null,null,null,null,null,null,{"$f":"IF(ISERROR(VLOOKUP(A374,'Submission Template'!$K$5,1,FALSE)),\"\",C374)","v":""}]
[null,null,null,null,null,null,null,null,null,null,null,null,null,null,null,null,null,null,null,null,null,null,null,null,{"$f":"IF(ISERROR(VLOOKUP(A375,'Submission Template'!$K$5,1,FALSE)),\"\",C375)","v":""}]
[null,null,null,null,null,null,null,null,null,null,null,null,null,null,null,null,null,null,null,null,null,null,null,null,{"$f":"IF(ISERROR(VLOOKUP(A376,'Submission Template'!$K$5,1,FALSE)),\"\",C376)","v":""}]
[null,null,null,null,null,null,null,null,null,null,null,null,null,null,null,null,null,null,null,null,null,null,null,null,{"$f":"IF(ISERROR(VLOOKUP(A377,'Submission Template'!$K$5,1,FALSE)),\"\",C377)","v":""}]
[null,null,null,null,null,null,null,null,null,null,null,null,null,null,null,null,null,null,null,null,null,null,null,null,{"$f":"IF(ISERROR(VLOOKUP(A378,'Submission Template'!$K$5,1,FALSE)),\"\",C378)","v":""}]
[null,null,null,null,null,null,null,null,null,null,null,null,null,null,null,null,null,null,null,null,null,null,null,null,{"$f":"IF(ISERROR(VLOOKUP(A379,'Submission Template'!$K$5,1,FALSE)),\"\",C379)","v":""}]
[null,null,null,null,null,null,null,null,null,null,null,null,null,null,null,null,null,null,null,null,null,null,null,null,{"$f":"IF(ISERROR(VLOOKUP(A380,'Submission Template'!$K$5,1,FALSE)),\"\",C380)","v":""}]
[null,null,null,null,null,null,null,null,null,null,null,null,null,null,null,null,null,null,null,null,null,null,null,null,{"$f":"IF(ISERROR(VLOOKUP(A381,'Submission Template'!$K$5,1,FALSE)),\"\",C381)","v":""}]
[null,null,null,null,null,null,null,null,null,null,null,null,null,null,null,null,null,null,null,null,null,null,null,null,{"$f":"IF(ISERROR(VLOOKUP(A382,'Submission Template'!$K$5,1,FALSE)),\"\",C382)","v":""}]
[null,null,null,null,null,null,null,null,null,null,null,null,null,null,null,null,null,null,null,null,null,null,null,null,{"$f":"IF(ISERROR(VLOOKUP(A383,'Submission Template'!$K$5,1,FALSE)),\"\",C383)","v":""}]
[null,null,null,null,null,null,null,null,null,null,null,null,null,null,null,null,null,null,null,null,null,null,null,null,{"$f":"IF(ISERROR(VLOOKUP(A384,'Submission Template'!$K$5,1,FALSE)),\"\",C384)","v":""}]
[null,null,null,null,null,null,null,null,null,null,null,null,null,null,null,null,null,null,null,null,null,null,null,null,{"$f":"IF(ISERROR(VLOOKUP(A385,'Submission Template'!$K$5,1,FALSE)),\"\",C385)","v":""}]
[null,null,null,null,null,null,null,null,null,null,null,null,null,null,null,null,null,null,null,null,null,null,null,null,{"$f":"IF(ISERROR(VLOOKUP(A386,'Submission Template'!$K$5,1,FALSE)),\"\",C386)","v":""}]
[null,null,null,null,null,null,null,null,null,null,null,null,null,null,null,null,null,null,null,null,null,null,null,null,{"$f":"IF(ISERROR(VLOOKUP(A387,'Submission Template'!$K$5,1,FALSE)),\"\",C387)","v":""}]
[null,null,null,null,null,null,null,null,null,null,null,null,null,null,null,null,null,null,null,null,null,null,null,null,{"$f":"IF(ISERROR(VLOOKUP(A388,'Submission Template'!$K$5,1,FALSE)),\"\",C388)","v":""}]
[null,null,null,null,null,null,null,null,null,null,null,null,null,null,null,null,null,null,null,null,null,null,null,null,{"$f":"IF(ISERROR(VLOOKUP(A389,'Submission Template'!$K$5,1,FALSE)),\"\",C389)","v":""}]
[null,null,null,null,null,null,null,null,null,null,null,null,null,null,null,null,null,null,null,null,null,null,null,null,{"$f":"IF(ISERROR(VLOOKUP(A390,'Submission Template'!$K$5,1,FALSE)),\"\",C390)","v":""}]
[null,null,null,null,null,null,null,null,null,null,null,null,null,null,null,null,null,null,null,null,null,null,null,null,{"$f":"IF(ISERROR(VLOOKUP(A391,'Submission Template'!$K$5,1,FALSE)),\"\",C391)","v":""}]
[null,null,null,null,null,null,null,null,null,null,null,null,null,null,null,null,null,null,null,null,null,null,null,null,{"$f":"IF(ISERROR(VLOOKUP(A392,'Submission Template'!$K$5,1,FALSE)),\"\",C392)","v":""}]
[null,null,null,null,null,null,null,null,null,null,null,null,null,null,null,null,null,null,null,null,null,null,null,null,{"$f":"IF(ISERROR(VLOOKUP(A393,'Submission Template'!$K$5,1,FALSE)),\"\",C393)","v":""}]
[null,null,null,null,null,null,null,null,null,null,null,null,null,null,null,null,null,null,null,null,null,null,null,null,{"$f":"IF(ISERROR(VLOOKUP(A394,'Submission Template'!$K$5,1,FALSE)),\"\",C394)","v":""}]
[null,null,null,null,null,null,null,null,null,null,null,null,null,null,null,null,null,null,null,null,null,null,null,null,{"$f":"IF(ISERROR(VLOOKUP(A395,'Submission Template'!$K$5,1,FALSE)),\"\",C395)","v":""}]
[null,null,null,null,null,null,null,null,null,null,null,null,null,null,null,null,null,null,null,null,null,null,null,null,{"$f":"IF(ISERROR(VLOOKUP(A396,'Submission Template'!$K$5,1,FALSE)),\"\",C396)","v":""}]
[null,null,null,null,null,null,null,null,null,null,null,null,null,null,null,null,null,null,null,null,null,null,null,null,{"$f":"IF(ISERROR(VLOOKUP(A397,'Submission Template'!$K$5,1,FALSE)),\"\",C397)","v":""}]
[null,null,null,null,null,null,null,null,null,null,null,null,null,null,null,null,null,null,null,null,null,null,null,null,{"$f":"IF(ISERROR(VLOOKUP(A398,'Submission Template'!$K$5,1,FALSE)),\"\",C398)","v":""}]
[null,null,null,null,null,null,null,null,null,null,null,null,null,null,null,null,null,null,null,null,null,null,null,null,{"$f":"IF(ISERROR(VLOOKUP(A399,'Submission Template'!$K$5,1,FALSE)),\"\",C399)","v":""}]
[null,null,null,null,null,null,null,null,null,null,null,null,null,null,null,null,null,null,null,null,null,null,null,null,{"$f":"IF(ISERROR(VLOOKUP(A400,'Submission Template'!$K$5,1,FALSE)),\"\",C400)","v":""}]
[null,null,null,null,null,null,null,null,null,null,null,null,null,null,null,null,null,null,null,null,null,null,null,null,{"$f":"IF(ISERROR(VLOOKUP(A401,'Submission Template'!$K$5,1,FALSE)),\"\",C401)","v":""}]
[null,null,null,null,null,null,null,null,null,null,null,null,null,null,null,null,null,null,null,null,null,null,null,null,{"$f":"IF(ISERROR(VLOOKUP(A402,'Submission Template'!$K$5,1,FALSE)),\"\",C402)","v":""}]
[null,null,null,null,null,null,null,null,null,null,null,null,null,null,null,null,null,null,null,null,null,null,null,null,{"$f":"IF(ISERROR(VLOOKUP(A403,'Submission Template'!$K$5,1,FALSE)),\"\",C403)","v":""}]
[null,null,null,null,null,null,null,null,null,null,null,null,null,null,null,null,null,null,null,null,null,null,null,null,{"$f":"IF(ISERROR(VLOOKUP(A404,'Submission Template'!$K$5,1,FALSE)),\"\",C404)","v":""}]
[null,null,null,null,null,null,null,null,null,null,null,null,null,null,null,null,null,null,null,null,null,null,null,null,{"$f":"IF(ISERROR(VLOOKUP(A405,'Submission Template'!$K$5,1,FALSE)),\"\",C405)","v":""}]
[null,null,null,null,null,null,null,null,null,null,null,null,null,null,null,null,null,null,null,null,null,null,null,null,{"$f":"IF(ISERROR(VLOOKUP(A406,'Submission Template'!$K$5,1,FALSE)),\"\",C406)","v":""}]
[null,null,null,null,null,null,null,null,null,null,null,null,null,null,null,null,null,null,null,null,null,null,null,null,{"$f":"IF(ISERROR(VLOOKUP(A407,'Submission Template'!$K$5,1,FALSE)),\"\",C407)","v":""}]
[null,null,null,null,null,null,null,null,null,null,null,null,null,null,null,null,null,null,null,null,null,null,null,null,{"$f":"IF(ISERROR(VLOOKUP(A408,'Submission Template'!$K$5,1,FALSE)),\"\",C408)","v":""}]
[null,null,null,null,null,null,null,null,null,null,null,null,null,null,null,null,null,null,null,null,null,null,null,null,{"$f":"IF(ISERROR(VLOOKUP(A409,'Submission Template'!$K$5,1,FALSE)),\"\",C409)","v":""}]
[null,null,null,null,null,null,null,null,null,null,null,null,null,null,null,null,null,null,null,null,null,null,null,null,{"$f":"IF(ISERROR(VLOOKUP(A410,'Submission Template'!$K$5,1,FALSE)),\"\",C410)","v":""}]
[null,null,null,null,null,null,null,null,null,null,null,null,null,null,null,null,null,null,null,null,null,null,null,null,{"$f":"IF(ISERROR(VLOOKUP(A411,'Submission Template'!$K$5,1,FALSE)),\"\",C411)","v":""}]
[null,null,null,null,null,null,null,null,null,null,null,null,null,null,null,null,null,null,null,null,null,null,null,null,{"$f":"IF(ISERROR(VLOOKUP(A412,'Submission Template'!$K$5,1,FALSE)),\"\",C412)","v":""}]
[null,null,null,null,null,null,null,null,null,null,null,null,null,null,null,null,null,null,null,null,null,null,null,null,{"$f":"IF(ISERROR(VLOOKUP(A413,'Submission Template'!$K$5,1,FALSE)),\"\",C413)","v":""}]
[null,null,null,null,null,null,null,null,null,null,null,null,null,null,null,null,null,null,null,null,null,null,null,null,{"$f":"IF(ISERROR(VLOOKUP(A414,'Submission Template'!$K$5,1,FALSE)),\"\",C414)","v":""}]
[null,null,null,null,null,null,null,null,null,null,null,null,null,null,null,null,null,null,null,null,null,null,null,null,{"$f":"IF(ISERROR(VLOOKUP(A415,'Submission Template'!$K$5,1,FALSE)),\"\",C415)","v":""}]
[null,null,null,null,null,null,null,null,null,null,null,null,null,null,null,null,null,null,null,null,null,null,null,null,{"$f":"IF(ISERROR(VLOOKUP(A416,'Submission Template'!$K$5,1,FALSE)),\"\",C416)","v":""}]
[null,null,null,null,null,null,null,null,null,null,null,null,null,null,null,null,null,null,null,null,null,null,null,null,{"$f":"IF(ISERROR(VLOOKUP(A417,'Submission Template'!$K$5,1,FALSE)),\"\",C417)","v":""}]
[null,null,null,null,null,null,null,null,null,null,null,null,null,null,null,null,null,null,null,null,null,null,null,null,{"$f":"IF(ISERROR(VLOOKUP(A418,'Submission Template'!$K$5,1,FALSE)),\"\",C418)","v":""}]
[null,null,null,null,null,null,null,null,null,null,null,null,null,null,null,null,null,null,null,null,null,null,null,null,{"$f":"IF(ISERROR(VLOOKUP(A419,'Submission Template'!$K$5,1,FALSE)),\"\",C419)","v":""}]
[null,null,null,null,null,null,null,null,null,null,null,null,null,null,null,null,null,null,null,null,null,null,null,null,{"$f":"IF(ISERROR(VLOOKUP(A420,'Submission Template'!$K$5,1,FALSE)),\"\",C420)","v":""}]
[null,null,null,null,null,null,null,null,null,null,null,null,null,null,null,null,null,null,null,null,null,null,null,null,{"$f":"IF(ISERROR(VLOOKUP(A421,'Submission Template'!$K$5,1,FALSE)),\"\",C421)","v":""}]
[null,null,null,null,null,null,null,null,null,null,null,null,null,null,null,null,null,null,null,null,null,null,null,null,{"$f":"IF(ISERROR(VLOOKUP(A422,'Submission Template'!$K$5,1,FALSE)),\"\",C422)","v":""}]
[null,null,null,null,null,null,null,null,null,null,null,null,null,null,null,null,null,null,null,null,null,null,null,null,{"$f":"IF(ISERROR(VLOOKUP(A423,'Submission Template'!$K$5,1,FALSE)),\"\",C423)","v":""}]
[null,null,null,null,null,null,null,null,null,null,null,null,null,null,null,null,null,null,null,null,null,null,null,null,{"$f":"IF(ISERROR(VLOOKUP(A424,'Submission Template'!$K$5,1,FALSE)),\"\",C424)","v":""}]
[null,null,null,null,null,null,null,null,null,null,null,null,null,null,null,null,null,null,null,null,null,null,null,null,{"$f":"IF(ISERROR(VLOOKUP(A425,'Submission Template'!$K$5,1,FALSE)),\"\",C425)","v":""}]
[null,null,null,null,null,null,null,null,null,null,null,null,null,null,null,null,null,null,null,null,null,null,null,null,{"$f":"IF(ISERROR(VLOOKUP(A426,'Submission Template'!$K$5,1,FALSE)),\"\",C426)","v":""}]
[null,null,null,null,null,null,null,null,null,null,null,null,null,null,null,null,null,null,null,null,null,null,null,null,{"$f":"IF(ISERROR(VLOOKUP(A427,'Submission Template'!$K$5,1,FALSE)),\"\",C427)","v":""}]
[null,null,null,null,null,null,null,null,null,null,null,null,null,null,null,null,null,null,null,null,null,null,null,null,{"$f":"IF(ISERROR(VLOOKUP(A428,'Submission Template'!$K$5,1,FALSE)),\"\",C428)","v":""}]
[null,null,null,null,null,null,null,null,null,null,null,null,null,null,null,null,null,null,null,null,null,null,null,null,{"$f":"IF(ISERROR(VLOOKUP(A429,'Submission Template'!$K$5,1,FALSE)),\"\",C429)","v":""}]
[null,null,null,null,null,null,null,null,null,null,null,null,null,null,null,null,null,null,null,null,null,null,null,null,{"$f":"IF(ISERROR(VLOOKUP(A430,'Submission Template'!$K$5,1,FALSE)),\"\",C430)","v":""}]
[null,null,null,null,null,null,null,null,null,null,null,null,null,null,null,null,null,null,null,null,null,null,null,null,{"$f":"IF(ISERROR(VLOOKUP(A431,'Submission Template'!$K$5,1,FALSE)),\"\",C431)","v":""}]
[null,null,null,null,null,null,null,null,null,null,null,null,null,null,null,null,null,null,null,null,null,null,null,null,{"$f":"IF(ISERROR(VLOOKUP(A432,'Submission Template'!$K$5,1,FALSE)),\"\",C432)","v":""}]
[null,null,null,null,null,null,null,null,null,null,null,null,null,null,null,null,null,null,null,null,null,null,null,null,{"$f":"IF(ISERROR(VLOOKUP(A433,'Submission Template'!$K$5,1,FALSE)),\"\",C433)","v":""}]
[null,null,null,null,null,null,null,null,null,null,null,null,null,null,null,null,null,null,null,null,null,null,null,null,{"$f":"IF(ISERROR(VLOOKUP(A434,'Submission Template'!$K$5,1,FALSE)),\"\",C434)","v":""}]
[null,null,null,null,null,null,null,null,null,null,null,null,null,null,null,null,null,null,null,null,null,null,null,null,{"$f":"IF(ISERROR(VLOOKUP(A435,'Submission Template'!$K$5,1,FALSE)),\"\",C435)","v":""}]
[null,null,null,null,null,null,null,null,null,null,null,null,null,null,null,null,null,null,null,null,null,null,null,null,{"$f":"IF(ISERROR(VLOOKUP(A436,'Submission Template'!$K$5,1,FALSE)),\"\",C436)","v":""}]
[null,null,null,null,null,null,null,null,null,null,null,null,null,null,null,null,null,null,null,null,null,null,null,null,{"$f":"IF(ISERROR(VLOOKUP(A437,'Submission Template'!$K$5,1,FALSE)),\"\",C437)","v":""}]
[null,null,null,null,null,null,null,null,null,null,null,null,null,null,null,null,null,null,null,null,null,null,null,null,{"$f":"IF(ISERROR(VLOOKUP(A438,'Submission Template'!$K$5,1,FALSE)),\"\",C438)","v":""}]
[null,null,null,null,null,null,null,null,null,null,null,null,null,null,null,null,null,null,null,null,null,null,null,null,{"$f":"IF(ISERROR(VLOOKUP(A439,'Submission Template'!$K$5,1,FALSE)),\"\",C439)","v":""}]
[null,null,null,null,null,null,null,null,null,null,null,null,null,null,null,null,null,null,null,null,null,null,null,null,{"$f":"IF(ISERROR(VLOOKUP(A440,'Submission Template'!$K$5,1,FALSE)),\"\",C440)","v":""}]
[null,null,null,null,null,null,null,null,null,null,null,null,null,null,null,null,null,null,null,null,null,null,null,null,{"$f":"IF(ISERROR(VLOOKUP(A441,'Submission Template'!$K$5,1,FALSE)),\"\",C441)","v":""}]
[null,null,null,null,null,null,null,null,null,null,null,null,null,null,null,null,null,null,null,null,null,null,null,null,{"$f":"IF(ISERROR(VLOOKUP(A442,'Submission Template'!$K$5,1,FALSE)),\"\",C442)","v":""}]
[null,null,null,null,null,null,null,null,null,null,null,null,null,null,null,null,null,null,null,null,null,null,null,null,{"$f":"IF(ISERROR(VLOOKUP(A443,'Submission Template'!$K$5,1,FALSE)),\"\",C443)","v":""}]
[null,null,null,null,null,null,null,null,null,null,null,null,null,null,null,null,null,null,null,null,null,null,null,null,{"$f":"IF(ISERROR(VLOOKUP(A444,'Submission Template'!$K$5,1,FALSE)),\"\",C444)","v":""}]
[null,null,null,null,null,null,null,null,null,null,null,null,null,null,null,null,null,null,null,null,null,null,null,null,{"$f":"IF(ISERROR(VLOOKUP(A445,'Submission Template'!$K$5,1,FALSE)),\"\",C445)","v":""}]
[null,null,null,null,null,null,null,null,null,null,null,null,null,null,null,null,null,null,null,null,null,null,null,null,{"$f":"IF(ISERROR(VLOOKUP(A446,'Submission Template'!$K$5,1,FALSE)),\"\",C446)","v":""}]
[null,null,null,null,null,null,null,null,null,null,null,null,null,null,null,null,null,null,null,null,null,null,null,null,{"$f":"IF(ISERROR(VLOOKUP(A447,'Submission Template'!$K$5,1,FALSE)),\"\",C447)","v":""}]
[null,null,null,null,null,null,null,null,null,null,null,null,null,null,null,null,null,null,null,null,null,null,null,null,{"$f":"IF(ISERROR(VLOOKUP(A448,'Submission Template'!$K$5,1,FALSE)),\"\",C448)","v":""}]
[null,null,null,null,null,null,null,null,null,null,null,null,null,null,null,null,null,null,null,null,null,null,null,null,{"$f":"IF(ISERROR(VLOOKUP(A449,'Submission Template'!$K$5,1,FALSE)),\"\",C449)","v":""}]
[null,null,null,null,null,null,null,null,null,null,null,null,null,null,null,null,null,null,null,null,null,null,null,null,{"$f":"IF(ISERROR(VLOOKUP(A450,'Submission Template'!$K$5,1,FALSE)),\"\",C450)","v":""}]
[null,null,null,null,null,null,null,null,null,null,null,null,null,null,null,null,null,null,null,null,null,null,null,null,{"$f":"IF(ISERROR(VLOOKUP(A451,'Submission Template'!$K$5,1,FALSE)),\"\",C451)","v":""}]
[null,null,null,null,null,null,null,null,null,null,null,null,null,null,null,null,null,null,null,null,null,null,null,null,{"$f":"IF(ISERROR(VLOOKUP(A452,'Submission Template'!$K$5,1,FALSE)),\"\",C452)","v":""}]
[null,null,null,null,null,null,null,null,null,null,null,null,null,null,null,null,null,null,null,null,null,null,null,null,{"$f":"IF(ISERROR(VLOOKUP(A453,'Submission Template'!$K$5,1,FALSE)),\"\",C453)","v":""}]
[null,null,null,null,null,null,null,null,null,null,null,null,null,null,null,null,null,null,null,null,null,null,null,null,{"$f":"IF(ISERROR(VLOOKUP(A454,'Submission Template'!$K$5,1,FALSE)),\"\",C454)","v":""}]
[null,null,null,null,null,null,null,null,null,null,null,null,null,null,null,null,null,null,null,null,null,null,null,null,{"$f":"IF(ISERROR(VLOOKUP(A455,'Submission Template'!$K$5,1,FALSE)),\"\",C455)","v":""}]
[null,null,null,null,null,null,null,null,null,null,null,null,null,null,null,null,null,null,null,null,null,null,null,null,{"$f":"IF(ISERROR(VLOOKUP(A456,'Submission Template'!$K$5,1,FALSE)),\"\",C456)","v":""}]
[null,null,null,null,null,null,null,null,null,null,null,null,null,null,null,null,null,null,null,null,null,null,null,null,{"$f":"IF(ISERROR(VLOOKUP(A457,'Submission Template'!$K$5,1,FALSE)),\"\",C457)","v":""}]
[null,null,null,null,null,null,null,null,null,null,null,null,null,null,null,null,null,null,null,null,null,null,null,null,{"$f":"IF(ISERROR(VLOOKUP(A458,'Submission Template'!$K$5,1,FALSE)),\"\",C458)","v":""}]
[null,null,null,null,null,null,null,null,null,null,null,null,null,null,null,null,null,null,null,null,null,null,null,null,{"$f":"IF(ISERROR(VLOOKUP(A459,'Submission Template'!$K$5,1,FALSE)),\"\",C459)","v":""}]
[null,null,null,null,null,null,null,null,null,null,null,null,null,null,null,null,null,null,null,null,null,null,null,null,{"$f":"IF(ISERROR(VLOOKUP(A460,'Submission Template'!$K$5,1,FALSE)),\"\",C460)","v":""}]
[null,null,null,null,null,null,null,null,null,null,null,null,null,null,null,null,null,null,null,null,null,null,null,null,{"$f":"IF(ISERROR(VLOOKUP(A461,'Submission Template'!$K$5,1,FALSE)),\"\",C461)","v":""}]
[null,null,null,null,null,null,null,null,null,null,null,null,null,null,null,null,null,null,null,null,null,null,null,null,{"$f":"IF(ISERROR(VLOOKUP(A462,'Submission Template'!$K$5,1,FALSE)),\"\",C462)","v":""}]
[null,null,null,null,null,null,null,null,null,null,null,null,null,null,null,null,null,null,null,null,null,null,null,null,{"$f":"IF(ISERROR(VLOOKUP(A463,'Submission Template'!$K$5,1,FALSE)),\"\",C463)","v":""}]
[null,null,null,null,null,null,null,null,null,null,null,null,null,null,null,null,null,null,null,null,null,null,null,null,{"$f":"IF(ISERROR(VLOOKUP(A464,'Submission Template'!$K$5,1,FALSE)),\"\",C464)","v":""}]
[null,null,null,null,null,null,null,null,null,null,null,null,null,null,null,null,null,null,null,null,null,null,null,null,{"$f":"IF(ISERROR(VLOOKUP(A465,'Submission Template'!$K$5,1,FALSE)),\"\",C465)","v":""}]
[null,null,null,null,null,null,null,null,null,null,null,null,null,null,null,null,null,null,null,null,null,null,null,null,{"$f":"IF(ISERROR(VLOOKUP(A466,'Submission Template'!$K$5,1,FALSE)),\"\",C466)","v":""}]
[null,null,null,null,null,null,null,null,null,null,null,null,null,null,null,null,null,null,null,null,null,null,null,null,{"$f":"IF(ISERROR(VLOOKUP(A467,'Submission Template'!$K$5,1,FALSE)),\"\",C467)","v":""}]
[null,null,null,null,null,null,null,null,null,null,null,null,null,null,null,null,null,null,null,null,null,null,null,null,{"$f":"IF(ISERROR(VLOOKUP(A468,'Submission Template'!$K$5,1,FALSE)),\"\",C468)","v":""}]
[null,null,null,null,null,null,null,null,null,null,null,null,null,null,null,null,null,null,null,null,null,null,null,null,{"$f":"IF(ISERROR(VLOOKUP(A469,'Submission Template'!$K$5,1,FALSE)),\"\",C469)","v":""}]
[null,null,null,null,null,null,null,null,null,null,null,null,null,null,null,null,null,null,null,null,null,null,null,null,{"$f":"IF(ISERROR(VLOOKUP(A470,'Submission Template'!$K$5,1,FALSE)),\"\",C470)","v":""}]
[null,null,null,null,null,null,null,null,null,null,null,null,null,null,null,null,null,null,null,null,null,null,null,null,{"$f":"IF(ISERROR(VLOOKUP(A471,'Submission Template'!$K$5,1,FALSE)),\"\",C471)","v":""}]
[null,null,null,null,null,null,null,null,null,null,null,null,null,null,null,null,null,null,null,null,null,null,null,null,{"$f":"IF(ISERROR(VLOOKUP(A472,'Submission Template'!$K$5,1,FALSE)),\"\",C472)","v":""}]
[null,null,null,null,null,null,null,null,null,null,null,null,null,null,null,null,null,null,null,null,null,null,null,null,{"$f":"IF(ISERROR(VLOOKUP(A473,'Submission Template'!$K$5,1,FALSE)),\"\",C473)","v":""}]
[null,null,null,null,null,null,null,null,null,null,null,null,null,null,null,null,null,null,null,null,null,null,null,null,{"$f":"IF(ISERROR(VLOOKUP(A474,'Submission Template'!$K$5,1,FALSE)),\"\",C474)","v":""}]
[null,null,null,null,null,null,null,null,null,null,null,null,null,null,null,null,null,null,null,null,null,null,null,null,{"$f":"IF(ISERROR(VLOOKUP(A475,'Submission Template'!$K$5,1,FALSE)),\"\",C475)","v":""}]
[null,null,null,null,null,null,null,null,null,null,null,null,null,null,null,null,null,null,null,null,null,null,null,null,{"$f":"IF(ISERROR(VLOOKUP(A476,'Submission Template'!$K$5,1,FALSE)),\"\",C476)","v":""}]
[null,null,null,null,null,null,null,null,null,null,null,null,null,null,null,null,null,null,null,null,null,null,null,null,{"$f":"IF(ISERROR(VLOOKUP(A477,'Submission Template'!$K$5,1,FALSE)),\"\",C477)","v":""}]
[null,null,null,null,null,null,null,null,null,null,null,null,null,null,null,null,null,null,null,null,null,null,null,null,{"$f":"IF(ISERROR(VLOOKUP(A478,'Submission Template'!$K$5,1,FALSE)),\"\",C478)","v":""}]
[null,null,null,null,null,null,null,null,null,null,null,null,null,null,null,null,null,null,null,null,null,null,null,null,{"$f":"IF(ISERROR(VLOOKUP(A479,'Submission Template'!$K$5,1,FALSE)),\"\",C479)","v":""}]
[null,null,null,null,null,null,null,null,null,null,null,null,null,null,null,null,null,null,null,null,null,null,null,null,{"$f":"IF(ISERROR(VLOOKUP(A480,'Submission Template'!$K$5,1,FALSE)),\"\",C480)","v":""}]
[null,null,null,null,null,null,null,null,null,null,null,null,null,null,null,null,null,null,null,null,null,null,null,null,{"$f":"IF(ISERROR(VLOOKUP(A481,'Submission Template'!$K$5,1,FALSE)),\"\",C481)","v":""}]
[null,null,null,null,null,null,null,null,null,null,null,null,null,null,null,null,null,null,null,null,null,null,null,null,{"$f":"IF(ISERROR(VLOOKUP(A482,'Submission Template'!$K$5,1,FALSE)),\"\",C482)","v":""}]
[null,null,null,null,null,null,null,null,null,null,null,null,null,null,null,null,null,null,null,null,null,null,null,null,{"$f":"IF(ISERROR(VLOOKUP(A483,'Submission Template'!$K$5,1,FALSE)),\"\",C483)","v":""}]
[null,null,null,null,null,null,null,null,null,null,null,null,null,null,null,null,null,null,null,null,null,null,null,null,{"$f":"IF(ISERROR(VLOOKUP(A484,'Submission Template'!$K$5,1,FALSE)),\"\",C484)","v":""}]
[null,null,null,null,null,null,null,null,null,null,null,null,null,null,null,null,null,null,null,null,null,null,null,null,{"$f":"IF(ISERROR(VLOOKUP(A485,'Submission Template'!$K$5,1,FALSE)),\"\",C485)","v":""}]
[null,null,null,null,null,null,null,null,null,null,null,null,null,null,null,null,null,null,null,null,null,null,null,null,{"$f":"IF(ISERROR(VLOOKUP(A486,'Submission Template'!$K$5,1,FALSE)),\"\",C486)","v":""}]
[null,null,null,null,null,null,null,null,null,null,null,null,null,null,null,null,null,null,null,null,null,null,null,null,{"$f":"IF(ISERROR(VLOOKUP(A487,'Submission Template'!$K$5,1,FALSE)),\"\",C487)","v":""}]
[null,null,null,null,null,null,null,null,null,null,null,null,null,null,null,null,null,null,null,null,null,null,null,null,{"$f":"IF(ISERROR(VLOOKUP(A488,'Submission Template'!$K$5,1,FALSE)),\"\",C488)","v":""}]
[null,null,null,null,null,null,null,null,null,null,null,null,null,null,null,null,null,null,null,null,null,null,null,null,{"$f":"IF(ISERROR(VLOOKUP(A489,'Submission Template'!$K$5,1,FALSE)),\"\",C489)","v":""}]
[null,null,null,null,null,null,null,null,null,null,null,null,null,null,null,null,null,null,null,null,null,null,null,null,{"$f":"IF(ISERROR(VLOOKUP(A490,'Submission Template'!$K$5,1,FALSE)),\"\",C490)","v":""}]
[null,null,null,null,null,null,null,null,null,null,null,null,null,null,null,null,null,null,null,null,null,null,null,null,{"$f":"IF(ISERROR(VLOOKUP(A491,'Submission Template'!$K$5,1,FALSE)),\"\",C491)","v":""}]
[null,null,null,null,null,null,null,null,null,null,null,null,null,null,null,null,null,null,null,null,null,null,null,null,{"$f":"IF(ISERROR(VLOOKUP(A492,'Submission Template'!$K$5,1,FALSE)),\"\",C492)","v":""}]
[null,null,null,null,null,null,null,null,null,null,null,null,null,null,null,null,null,null,null,null,null,null,null,null,{"$f":"IF(ISERROR(VLOOKUP(A493,'Submission Template'!$K$5,1,FALSE)),\"\",C493)","v":""}]
[null,null,null,null,null,null,null,null,null,null,null,null,null,null,null,null,null,null,null,null,null,null,null,null,{"$f":"IF(ISERROR(VLOOKUP(A494,'Submission Template'!$K$5,1,FALSE)),\"\",C494)","v":""}]
[null,null,null,null,null,null,null,null,null,null,null,null,null,null,null,null,null,null,null,null,null,null,null,null,{"$f":"IF(ISERROR(VLOOKUP(A495,'Submission Template'!$K$5,1,FALSE)),\"\",C495)","v":""}]
[null,null,null,null,null,null,null,null,null,null,null,null,null,null,null,null,null,null,null,null,null,null,null,null,{"$f":"IF(ISERROR(VLOOKUP(A496,'Submission Template'!$K$5,1,FALSE)),\"\",C496)","v":""}]
[null,null,null,null,null,null,null,null,null,null,null,null,null,null,null,null,null,null,null,null,null,null,null,null,{"$f":"IF(ISERROR(VLOOKUP(A497,'Submission Template'!$K$5,1,FALSE)),\"\",C497)","v":""}]
[null,null,null,null,null,null,null,null,null,null,null,null,null,null,null,null,null,null,null,null,null,null,null,null,{"$f":"IF(ISERROR(VLOOKUP(A498,'Submission Template'!$K$5,1,FALSE)),\"\",C498)","v":""}]
[null,null,null,null,null,null,null,null,null,null,null,null,null,null,null,null,null,null,null,null,null,null,null,null,{"$f":"IF(ISERROR(VLOOKUP(A499,'Submission Template'!$K$5,1,FALSE)),\"\",C499)","v":""}]
[null,null,null,null,null,null,null,null,null,null,null,null,null,null,null,null,null,null,null,null,null,null,null,null,{"$f":"IF(ISERROR(VLOOKUP(A500,'Submission Template'!$K$5,1,FALSE)),\"\",C500)","v":""}]
[null,null,null,null,null,null,null,null,null,null,null,null,null,null,null,null,null,null,null,null,null,null,null,null,{"$f":"IF(ISERROR(VLOOKUP(A501,'Submission Template'!$K$5,1,FALSE)),\"\",C501)","v":""}]
[null,null,null,null,null,null,null,null,null,null,null,null,null,null,null,null,null,null,null,null,null,null,null,null,{"$f":"IF(ISERROR(VLOOKUP(A502,'Submission Template'!$K$5,1,FALSE)),\"\",C502)","v":""}]
[null,null,null,null,null,null,null,null,null,null,null,null,null,null,null,null,null,null,null,null,null,null,null,null,{"$f":"IF(ISERROR(VLOOKUP(A503,'Submission Template'!$K$5,1,FALSE)),\"\",C503)","v":""}]
[null,null,null,null,null,null,null,null,null,null,null,null,null,null,null,null,null,null,null,null,null,null,null,null,{"$f":"IF(ISERROR(VLOOKUP(A504,'Submission Template'!$K$5,1,FALSE)),\"\",C504)","v":""}]
[null,null,null,null,null,null,null,null,null,null,null,null,null,null,null,null,null,null,null,null,null,null,null,null,{"$f":"IF(ISERROR(VLOOKUP(A505,'Submission Template'!$K$5,1,FALSE)),\"\",C505)","v":""}]
[null,null,null,null,null,null,null,null,null,null,null,null,null,null,null,null,null,null,null,null,null,null,null,null,{"$f":"IF(ISERROR(VLOOKUP(A506,'Submission Template'!$K$5,1,FALSE)),\"\",C506)","v":""}]
[null,null,null,null,null,null,null,null,null,null,null,null,null,null,null,null,null,null,null,null,null,null,null,null,{"$f":"IF(ISERROR(VLOOKUP(A507,'Submission Template'!$K$5,1,FALSE)),\"\",C507)","v":""}]
[null,null,null,null,null,null,null,null,null,null,null,null,null,null,null,null,null,null,null,null,null,null,null,null,{"$f":"IF(ISERROR(VLOOKUP(A508,'Submission Template'!$K$5,1,FALSE)),\"\",C508)","v":""}]
[null,null,null,null,null,null,null,null,null,null,null,null,null,null,null,null,null,null,null,null,null,null,null,null,{"$f":"IF(ISERROR(VLOOKUP(A509,'Submission Template'!$K$5,1,FALSE)),\"\",C509)","v":""}]
[null,null,null,null,null,null,null,null,null,null,null,null,null,null,null,null,null,null,null,null,null,null,null,null,{"$f":"IF(ISERROR(VLOOKUP(A510,'Submission Template'!$K$5,1,FALSE)),\"\",C510)","v":""}]
[null,null,null,null,null,null,null,null,null,null,null,null,null,null,null,null,null,null,null,null,null,null,null,null,{"$f":"IF(ISERROR(VLOOKUP(A511,'Submission Template'!$K$5,1,FALSE)),\"\",C511)","v":""}]
[null,null,null,null,null,null,null,null,null,null,null,null,null,null,null,null,null,null,null,null,null,null,null,null,{"$f":"IF(ISERROR(VLOOKUP(A512,'Submission Template'!$K$5,1,FALSE)),\"\",C512)","v":""}]
[null,null,null,null,null,null,null,null,null,null,null,null,null,null,null,null,null,null,null,null,null,null,null,null,{"$f":"IF(ISERROR(VLOOKUP(A513,'Submission Template'!$K$5,1,FALSE)),\"\",C513)","v":""}]
[null,null,null,null,null,null,null,null,null,null,null,null,null,null,null,null,null,null,null,null,null,null,null,null,{"$f":"IF(ISERROR(VLOOKUP(A514,'Submission Template'!$K$5,1,FALSE)),\"\",C514)","v":""}]
[null,null,null,null,null,null,null,null,null,null,null,null,null,null,null,null,null,null,null,null,null,null,null,null,{"$f":"IF(ISERROR(VLOOKUP(A515,'Submission Template'!$K$5,1,FALSE)),\"\",C515)","v":""}]
[null,null,null,null,null,null,null,null,null,null,null,null,null,null,null,null,null,null,null,null,null,null,null,null,{"$f":"IF(ISERROR(VLOOKUP(A516,'Submission Template'!$K$5,1,FALSE)),\"\",C516)","v":""}]
[null,null,null,null,null,null,null,null,null,null,null,null,null,null,null,null,null,null,null,null,null,null,null,null,{"$f":"IF(ISERROR(VLOOKUP(A517,'Submission Template'!$K$5,1,FALSE)),\"\",C517)","v":""}]
[null,null,null,null,null,null,null,null,null,null,null,null,null,null,null,null,null,null,null,null,null,null,null,null,{"$f":"IF(ISERROR(VLOOKUP(A518,'Submission Template'!$K$5,1,FALSE)),\"\",C518)","v":""}]
[null,null,null,null,null,null,null,null,null,null,null,null,null,null,null,null,null,null,null,null,null,null,null,null,{"$f":"IF(ISERROR(VLOOKUP(A519,'Submission Template'!$K$5,1,FALSE)),\"\",C519)","v":""}]
[null,null,null,null,null,null,null,null,null,null,null,null,null,null,null,null,null,null,null,null,null,null,null,null,{"$f":"IF(ISERROR(VLOOKUP(A520,'Submission Template'!$K$5,1,FALSE)),\"\",C520)","v":""}]
[null,null,null,null,null,null,null,null,null,null,null,null,null,null,null,null,null,null,null,null,null,null,null,null,{"$f":"IF(ISERROR(VLOOKUP(A521,'Submission Template'!$K$5,1,FALSE)),\"\",C521)","v":""}]
[null,null,null,null,null,null,null,null,null,null,null,null,null,null,null,null,null,null,null,null,null,null,null,null,{"$f":"IF(ISERROR(VLOOKUP(A522,'Submission Template'!$K$5,1,FALSE)),\"\",C522)","v":""}]
[null,null,null,null,null,null,null,null,null,null,null,null,null,null,null,null,null,null,null,null,null,null,null,null,{"$f":"IF(ISERROR(VLOOKUP(A523,'Submission Template'!$K$5,1,FALSE)),\"\",C523)","v":""}]
[null,null,null,null,null,null,null,null,null,null,null,null,null,null,null,null,null,null,null,null,null,null,null,null,{"$f":"IF(ISERROR(VLOOKUP(A524,'Submission Template'!$K$5,1,FALSE)),\"\",C524)","v":""}]
[null,null,null,null,null,null,null,null,null,null,null,null,null,null,null,null,null,null,null,null,null,null,null,null,{"$f":"IF(ISERROR(VLOOKUP(A525,'Submission Template'!$K$5,1,FALSE)),\"\",C525)","v":""}]
[null,null,null,null,null,null,null,null,null,null,null,null,null,null,null,null,null,null,null,null,null,null,null,null,{"$f":"IF(ISERROR(VLOOKUP(A526,'Submission Template'!$K$5,1,FALSE)),\"\",C526)","v":""}]
[null,null,null,null,null,null,null,null,null,null,null,null,null,null,null,null,null,null,null,null,null,null,null,null,{"$f":"IF(ISERROR(VLOOKUP(A527,'Submission Template'!$K$5,1,FALSE)),\"\",C527)","v":""}]
[null,null,null,null,null,null,null,null,null,null,null,null,null,null,null,null,null,null,null,null,null,null,null,null,{"$f":"IF(ISERROR(VLOOKUP(A528,'Submission Template'!$K$5,1,FALSE)),\"\",C528)","v":""}]
[null,null,null,null,null,null,null,null,null,null,null,null,null,null,null,null,null,null,null,null,null,null,null,null,{"$f":"IF(ISERROR(VLOOKUP(A529,'Submission Template'!$K$5,1,FALSE)),\"\",C529)","v":""}]
[null,null,null,null,null,null,null,null,null,null,null,null,null,null,null,null,null,null,null,null,null,null,null,null,{"$f":"IF(ISERROR(VLOOKUP(A530,'Submission Template'!$K$5,1,FALSE)),\"\",C530)","v":""}]
[null,null,null,null,null,null,null,null,null,null,null,null,null,null,null,null,null,null,null,null,null,null,null,null,{"$f":"IF(ISERROR(VLOOKUP(A531,'Submission Template'!$K$5,1,FALSE)),\"\",C531)","v":""}]
[null,null,null,null,null,null,null,null,null,null,null,null,null,null,null,null,null,null,null,null,null,null,null,null,{"$f":"IF(ISERROR(VLOOKUP(A532,'Submission Template'!$K$5,1,FALSE)),\"\",C532)","v":""}]
[null,null,null,null,null,null,null,null,null,null,null,null,null,null,null,null,null,null,null,null,null,null,null,null,{"$f":"IF(ISERROR(VLOOKUP(A533,'Submission Template'!$K$5,1,FALSE)),\"\",C533)","v":""}]
[null,null,null,null,null,null,null,null,null,null,null,null,null,null,null,null,null,null,null,null,null,null,null,null,{"$f":"IF(ISERROR(VLOOKUP(A534,'Submission Template'!$K$5,1,FALSE)),\"\",C534)","v":""}]
[null,null,null,null,null,null,null,null,null,null,null,null,null,null,null,null,null,null,null,null,null,null,null,null,{"$f":"IF(ISERROR(VLOOKUP(A535,'Submission Template'!$K$5,1,FALSE)),\"\",C535)","v":""}]
[null,null,null,null,null,null,null,null,null,null,null,null,null,null,null,null,null,null,null,null,null,null,null,null,{"$f":"IF(ISERROR(VLOOKUP(A536,'Submission Template'!$K$5,1,FALSE)),\"\",C536)","v":""}]
[null,null,null,null,null,null,null,null,null,null,null,null,null,null,null,null,null,null,null,null,null,null,null,null,{"$f":"IF(ISERROR(VLOOKUP(A537,'Submission Template'!$K$5,1,FALSE)),\"\",C537)","v":""}]
[null,null,null,null,null,null,null,null,null,null,null,null,null,null,null,null,null,null,null,null,null,null,null,null,{"$f":"IF(ISERROR(VLOOKUP(A538,'Submission Template'!$K$5,1,FALSE)),\"\",C538)","v":""}]
[null,null,null,null,null,null,null,null,null,null,null,null,null,null,null,null,null,null,null,null,null,null,null,null,{"$f":"IF(ISERROR(VLOOKUP(A539,'Submission Template'!$K$5,1,FALSE)),\"\",C539)","v":""}]
[null,null,null,null,null,null,null,null,null,null,null,null,null,null,null,null,null,null,null,null,null,null,null,null,{"$f":"IF(ISERROR(VLOOKUP(A540,'Submission Template'!$K$5,1,FALSE)),\"\",C540)","v":""}]
[null,null,null,null,null,null,null,null,null,null,null,null,null,null,null,null,null,null,null,null,null,null,null,null,{"$f":"IF(ISERROR(VLOOKUP(A541,'Submission Template'!$K$5,1,FALSE)),\"\",C541)","v":""}]
[null,null,null,null,null,null,null,null,null,null,null,null,null,null,null,null,null,null,null,null,null,null,null,null,{"$f":"IF(ISERROR(VLOOKUP(A542,'Submission Template'!$K$5,1,FALSE)),\"\",C542)","v":""}]
[null,null,null,null,null,null,null,null,null,null,null,null,null,null,null,null,null,null,null,null,null,null,null,null,{"$f":"IF(ISERROR(VLOOKUP(A543,'Submission Template'!$K$5,1,FALSE)),\"\",C543)","v":""}]
[null,null,null,null,null,null,null,null,null,null,null,null,null,null,null,null,null,null,null,null,null,null,null,null,{"$f":"IF(ISERROR(VLOOKUP(A544,'Submission Template'!$K$5,1,FALSE)),\"\",C544)","v":""}]
[null,null,null,null,null,null,null,null,null,null,null,null,null,null,null,null,null,null,null,null,null,null,null,null,{"$f":"IF(ISERROR(VLOOKUP(A545,'Submission Template'!$K$5,1,FALSE)),\"\",C545)","v":""}]
[null,null,null,null,null,null,null,null,null,null,null,null,null,null,null,null,null,null,null,null,null,null,null,null,{"$f":"IF(ISERROR(VLOOKUP(A546,'Submission Template'!$K$5,1,FALSE)),\"\",C546)","v":""}]
[null,null,null,null,null,null,null,null,null,null,null,null,null,null,null,null,null,null,null,null,null,null,null,null,{"$f":"IF(ISERROR(VLOOKUP(A547,'Submission Template'!$K$5,1,FALSE)),\"\",C547)","v":""}]
[null,null,null,null,null,null,null,null,null,null,null,null,null,null,null,null,null,null,null,null,null,null,null,null,{"$f":"IF(ISERROR(VLOOKUP(A548,'Submission Template'!$K$5,1,FALSE)),\"\",C548)","v":""}]
[null,null,null,null,null,null,null,null,null,null,null,null,null,null,null,null,null,null,null,null,null,null,null,null,{"$f":"IF(ISERROR(VLOOKUP(A549,'Submission Template'!$K$5,1,FALSE)),\"\",C549)","v":""}]
[null,null,null,null,null,null,null,null,null,null,null,null,null,null,null,null,null,null,null,null,null,null,null,null,{"$f":"IF(ISERROR(VLOOKUP(A550,'Submission Template'!$K$5,1,FALSE)),\"\",C550)","v":""}]
[null,null,null,null,null,null,null,null,null,null,null,null,null,null,null,null,null,null,null,null,null,null,null,null,{"$f":"IF(ISERROR(VLOOKUP(A551,'Submission Template'!$K$5,1,FALSE)),\"\",C551)","v":""}]
[null,null,null,null,null,null,null,null,null,null,null,null,null,null,null,null,null,null,null,null,null,null,null,null,{"$f":"IF(ISERROR(VLOOKUP(A552,'Submission Template'!$K$5,1,FALSE)),\"\",C552)","v":""}]
[null,null,null,null,null,null,null,null,null,null,null,null,null,null,null,null,null,null,null,null,null,null,null,null,{"$f":"IF(ISERROR(VLOOKUP(A553,'Submission Template'!$K$5,1,FALSE)),\"\",C553)","v":""}]
[null,null,null,null,null,null,null,null,null,null,null,null,null,null,null,null,null,null,null,null,null,null,null,null,{"$f":"IF(ISERROR(VLOOKUP(A554,'Submission Template'!$K$5,1,FALSE)),\"\",C554)","v":""}]
[null,null,null,null,null,null,null,null,null,null,null,null,null,null,null,null,null,null,null,null,null,null,null,null,{"$f":"IF(ISERROR(VLOOKUP(A555,'Submission Template'!$K$5,1,FALSE)),\"\",C555)","v":""}]
[null,null,null,null,null,null,null,null,null,null,null,null,null,null,null,null,null,null,null,null,null,null,null,null,{"$f":"IF(ISERROR(VLOOKUP(A556,'Submission Template'!$K$5,1,FALSE)),\"\",C556)","v":""}]
[null,null,null,null,null,null,null,null,null,null,null,null,null,null,null,null,null,null,null,null,null,null,null,null,{"$f":"IF(ISERROR(VLOOKUP(A557,'Submission Template'!$K$5,1,FALSE)),\"\",C557)","v":""}]
[null,null,null,null,null,null,null,null,null,null,null,null,null,null,null,null,null,null,null,null,null,null,null,null,{"$f":"IF(ISERROR(VLOOKUP(A558,'Submission Template'!$K$5,1,FALSE)),\"\",C558)","v":""}]
[null,null,null,null,null,null,null,null,null,null,null,null,null,null,null,null,null,null,null,null,null,null,null,null,{"$f":"IF(ISERROR(VLOOKUP(A559,'Submission Template'!$K$5,1,FALSE)),\"\",C559)","v":""}]
[null,null,null,null,null,null,null,null,null,null,null,null,null,null,null,null,null,null,null,null,null,null,null,null,{"$f":"IF(ISERROR(VLOOKUP(A560,'Submission Template'!$K$5,1,FALSE)),\"\",C560)","v":""}]
[null,null,null,null,null,null,null,null,null,null,null,null,null,null,null,null,null,null,null,null,null,null,null,null,{"$f":"IF(ISERROR(VLOOKUP(A561,'Submission Template'!$K$5,1,FALSE)),\"\",C561)","v":""}]
[null,null,null,null,null,null,null,null,null,null,null,null,null,null,null,null,null,null,null,null,null,null,null,null,{"$f":"IF(ISERROR(VLOOKUP(A562,'Submission Template'!$K$5,1,FALSE)),\"\",C562)","v":""}]
[null,null,null,null,null,null,null,null,null,null,null,null,null,null,null,null,null,null,null,null,null,null,null,null,{"$f":"IF(ISERROR(VLOOKUP(A563,'Submission Template'!$K$5,1,FALSE)),\"\",C563)","v":""}]
[null,null,null,null,null,null,null,null,null,null,null,null,null,null,null,null,null,null,null,null,null,null,null,null,{"$f":"IF(ISERROR(VLOOKUP(A564,'Submission Template'!$K$5,1,FALSE)),\"\",C564)","v":""}]
[null,null,null,null,null,null,null,null,null,null,null,null,null,null,null,null,null,null,null,null,null,null,null,null,{"$f":"IF(ISERROR(VLOOKUP(A565,'Submission Template'!$K$5,1,FALSE)),\"\",C565)","v":""}]
[null,null,null,null,null,null,null,null,null,null,null,null,null,null,null,null,null,null,null,null,null,null,null,null,{"$f":"IF(ISERROR(VLOOKUP(A566,'Submission Template'!$K$5,1,FALSE)),\"\",C566)","v":""}]
[null,null,null,null,null,null,null,null,null,null,null,null,null,null,null,null,null,null,null,null,null,null,null,null,{"$f":"IF(ISERROR(VLOOKUP(A567,'Submission Template'!$K$5,1,FALSE)),\"\",C567)","v":""}]
[null,null,null,null,null,null,null,null,null,null,null,null,null,null,null,null,null,null,null,null,null,null,null,null,{"$f":"IF(ISERROR(VLOOKUP(A568,'Submission Template'!$K$5,1,FALSE)),\"\",C568)","v":""}]
[null,null,null,null,null,null,null,null,null,null,null,null,null,null,null,null,null,null,null,null,null,null,null,null,{"$f":"IF(ISERROR(VLOOKUP(A569,'Submission Template'!$K$5,1,FALSE)),\"\",C569)","v":""}]
[null,null,null,null,null,null,null,null,null,null,null,null,null,null,null,null,null,null,null,null,null,null,null,null,{"$f":"IF(ISERROR(VLOOKUP(A570,'Submission Template'!$K$5,1,FALSE)),\"\",C570)","v":""}]
[null,null,null,null,null,null,null,null,null,null,null,null,null,null,null,null,null,null,null,null,null,null,null,null,{"$f":"IF(ISERROR(VLOOKUP(A571,'Submission Template'!$K$5,1,FALSE)),\"\",C571)","v":""}]
[null,null,null,null,null,null,null,null,null,null,null,null,null,null,null,null,null,null,null,null,null,null,null,null,{"$f":"IF(ISERROR(VLOOKUP(A572,'Submission Template'!$K$5,1,FALSE)),\"\",C572)","v":""}]
[null,null,null,null,null,null,null,null,null,null,null,null,null,null,null,null,null,null,null,null,null,null,null,null,{"$f":"IF(ISERROR(VLOOKUP(A573,'Submission Template'!$K$5,1,FALSE)),\"\",C573)","v":""}]
[null,null,null,null,null,null,null,null,null,null,null,null,null,null,null,null,null,null,null,null,null,null,null,null,{"$f":"IF(ISERROR(VLOOKUP(A574,'Submission Template'!$K$5,1,FALSE)),\"\",C574)","v":""}]
[null,null,null,null,null,null,null,null,null,null,null,null,null,null,null,null,null,null,null,null,null,null,null,null,{"$f":"IF(ISERROR(VLOOKUP(A575,'Submission Template'!$K$5,1,FALSE)),\"\",C575)","v":""}]
[null,null,null,null,null,null,null,null,null,null,null,null,null,null,null,null,null,null,null,null,null,null,null,null,{"$f":"IF(ISERROR(VLOOKUP(A576,'Submission Template'!$K$5,1,FALSE)),\"\",C576)","v":""}]
[null,null,null,null,null,null,null,null,null,null,null,null,null,null,null,null,null,null,null,null,null,null,null,null,{"$f":"IF(ISERROR(VLOOKUP(A577,'Submission Template'!$K$5,1,FALSE)),\"\",C577)","v":""}]
[null,null,null,null,null,null,null,null,null,null,null,null,null,null,null,null,null,null,null,null,null,null,null,null,{"$f":"IF(ISERROR(VLOOKUP(A578,'Submission Template'!$K$5,1,FALSE)),\"\",C578)","v":""}]
[null,null,null,null,null,null,null,null,null,null,null,null,null,null,null,null,null,null,null,null,null,null,null,null,{"$f":"IF(ISERROR(VLOOKUP(A579,'Submission Template'!$K$5,1,FALSE)),\"\",C579)","v":""}]
[null,null,null,null,null,null,null,null,null,null,null,null,null,null,null,null,null,null,null,null,null,null,null,null,{"$f":"IF(ISERROR(VLOOKUP(A580,'Submission Template'!$K$5,1,FALSE)),\"\",C580)","v":""}]
[null,null,null,null,null,null,null,null,null,null,null,null,null,null,null,null,null,null,null,null,null,null,null,null,{"$f":"IF(ISERROR(VLOOKUP(A581,'Submission Template'!$K$5,1,FALSE)),\"\",C581)","v":""}]
[null,null,null,null,null,null,null,null,null,null,null,null,null,null,null,null,null,null,null,null,null,null,null,null,{"$f":"IF(ISERROR(VLOOKUP(A582,'Submission Template'!$K$5,1,FALSE)),\"\",C582)","v":""}]
[null,null,null,null,null,null,null,null,null,null,null,null,null,null,null,null,null,null,null,null,null,null,null,null,{"$f":"IF(ISERROR(VLOOKUP(A583,'Submission Template'!$K$5,1,FALSE)),\"\",C583)","v":""}]
[null,null,null,null,null,null,null,null,null,null,null,null,null,null,null,null,null,null,null,null,null,null,null,null,{"$f":"IF(ISERROR(VLOOKUP(A584,'Submission Template'!$K$5,1,FALSE)),\"\",C584)","v":""}]
[null,null,null,null,null,null,null,null,null,null,null,null,null,null,null,null,null,null,null,null,null,null,null,null,{"$f":"IF(ISERROR(VLOOKUP(A585,'Submission Template'!$K$5,1,FALSE)),\"\",C585)","v":""}]
[null,null,null,null,null,null,null,null,null,null,null,null,null,null,null,null,null,null,null,null,null,null,null,null,{"$f":"IF(ISERROR(VLOOKUP(A586,'Submission Template'!$K$5,1,FALSE)),\"\",C586)","v":""}]
[null,null,null,null,null,null,null,null,null,null,null,null,null,null,null,null,null,null,null,null,null,null,null,null,{"$f":"IF(ISERROR(VLOOKUP(A587,'Submission Template'!$K$5,1,FALSE)),\"\",C587)","v":""}]
[null,null,null,null,null,null,null,null,null,null,null,null,null,null,null,null,null,null,null,null,null,null,null,null,{"$f":"IF(ISERROR(VLOOKUP(A588,'Submission Template'!$K$5,1,FALSE)),\"\",C588)","v":""}]
[null,null,null,null,null,null,null,null,null,null,null,null,null,null,null,null,null,null,null,null,null,null,null,null,{"$f":"IF(ISERROR(VLOOKUP(A589,'Submission Template'!$K$5,1,FALSE)),\"\",C589)","v":""}]
[null,null,null,null,null,null,null,null,null,null,null,null,null,null,null,null,null,null,null,null,null,null,null,null,{"$f":"IF(ISERROR(VLOOKUP(A590,'Submission Template'!$K$5,1,FALSE)),\"\",C590)","v":""}]
[null,null,null,null,null,null,null,null,null,null,null,null,null,null,null,null,null,null,null,null,null,null,null,null,{"$f":"IF(ISERROR(VLOOKUP(A591,'Submission Template'!$K$5,1,FALSE)),\"\",C591)","v":""}]
[null,null,null,null,null,null,null,null,null,null,null,null,null,null,null,null,null,null,null,null,null,null,null,null,{"$f":"IF(ISERROR(VLOOKUP(A592,'Submission Template'!$K$5,1,FALSE)),\"\",C592)","v":""}]
[null,null,null,null,null,null,null,null,null,null,null,null,null,null,null,null,null,null,null,null,null,null,null,null,{"$f":"IF(ISERROR(VLOOKUP(A593,'Submission Template'!$K$5,1,FALSE)),\"\",C593)","v":""}]
[null,null,null,null,null,null,null,null,null,null,null,null,null,null,null,null,null,null,null,null,null,null,null,null,{"$f":"IF(ISERROR(VLOOKUP(A594,'Submission Template'!$K$5,1,FALSE)),\"\",C594)","v":""}]
[null,null,null,null,null,null,null,null,null,null,null,null,null,null,null,null,null,null,null,null,null,null,null,null,{"$f":"IF(ISERROR(VLOOKUP(A595,'Submission Template'!$K$5,1,FALSE)),\"\",C595)","v":""}]
[null,null,null,null,null,null,null,null,null,null,null,null,null,null,null,null,null,null,null,null,null,null,null,null,{"$f":"IF(ISERROR(VLOOKUP(A596,'Submission Template'!$K$5,1,FALSE)),\"\",C596)","v":""}]
[null,null,null,null,null,null,null,null,null,null,null,null,null,null,null,null,null,null,null,null,null,null,null,null,{"$f":"IF(ISERROR(VLOOKUP(A597,'Submission Template'!$K$5,1,FALSE)),\"\",C597)","v":""}]
[null,null,null,null,null,null,null,null,null,null,null,null,null,null,null,null,null,null,null,null,null,null,null,null,{"$f":"IF(ISERROR(VLOOKUP(A598,'Submission Template'!$K$5,1,FALSE)),\"\",C598)","v":""}]
[null,null,null,null,null,null,null,null,null,null,null,null,null,null,null,null,null,null,null,null,null,null,null,null,{"$f":"IF(ISERROR(VLOOKUP(A599,'Submission Template'!$K$5,1,FALSE)),\"\",C599)","v":""}]
[null,null,null,null,null,null,null,null,null,null,null,null,null,null,null,null,null,null,null,null,null,null,null,null,{"$f":"IF(ISERROR(VLOOKUP(A600,'Submission Template'!$K$5,1,FALSE)),\"\",C600)","v":""}]
[null,null,null,null,null,null,null,null,null,null,null,null,null,null,null,null,null,null,null,null,null,null,null,null,{"$f":"IF(ISERROR(VLOOKUP(A601,'Submission Template'!$K$5,1,FALSE)),\"\",C601)","v":""}]
[null,null,null,null,null,null,null,null,null,null,null,null,null,null,null,null,null,null,null,null,null,null,null,null,{"$f":"IF(ISERROR(VLOOKUP(A602,'Submission Template'!$K$5,1,FALSE)),\"\",C602)","v":""}]
[null,null,null,null,null,null,null,null,null,null,null,null,null,null,null,null,null,null,null,null,null,null,null,null,{"$f":"IF(ISERROR(VLOOKUP(A603,'Submission Template'!$K$5,1,FALSE)),\"\",C603)","v":""}]
[null,null,null,null,null,null,null,null,null,null,null,null,null,null,null,null,null,null,null,null,null,null,null,null,{"$f":"IF(ISERROR(VLOOKUP(A604,'Submission Template'!$K$5,1,FALSE)),\"\",C604)","v":""}]
[null,null,null,null,null,null,null,null,null,null,null,null,null,null,null,null,null,null,null,null,null,null,null,null,{"$f":"IF(ISERROR(VLOOKUP(A605,'Submission Template'!$K$5,1,FALSE)),\"\",C605)","v":""}]
[null,null,null,null,null,null,null,null,null,null,null,null,null,null,null,null,null,null,null,null,null,null,null,null,{"$f":"IF(ISERROR(VLOOKUP(A606,'Submission Template'!$K$5,1,FALSE)),\"\",C606)","v":""}]
[null,null,null,null,null,null,null,null,null,null,null,null,null,null,null,null,null,null,null,null,null,null,null,null,{"$f":"IF(ISERROR(VLOOKUP(A607,'Submission Template'!$K$5,1,FALSE)),\"\",C607)","v":""}]
[null,null,null,null,null,null,null,null,null,null,null,null,null,null,null,null,null,null,null,null,null,null,null,null,{"$f":"IF(ISERROR(VLOOKUP(A608,'Submission Template'!$K$5,1,FALSE)),\"\",C608)","v":""}]
[null,null,null,null,null,null,null,null,null,null,null,null,null,null,null,null,null,null,null,null,null,null,null,null,{"$f":"IF(ISERROR(VLOOKUP(A609,'Submission Template'!$K$5,1,FALSE)),\"\",C609)","v":""}]
[null,null,null,null,null,null,null,null,null,null,null,null,null,null,null,null,null,null,null,null,null,null,null,null,{"$f":"IF(ISERROR(VLOOKUP(A610,'Submission Template'!$K$5,1,FALSE)),\"\",C610)","v":""}]
[null,null,null,null,null,null,null,null,null,null,null,null,null,null,null,null,null,null,null,null,null,null,null,null,{"$f":"IF(ISERROR(VLOOKUP(A611,'Submission Template'!$K$5,1,FALSE)),\"\",C611)","v":""}]
[null,null,null,null,null,null,null,null,null,null,null,null,null,null,null,null,null,null,null,null,null,null,null,null,{"$f":"IF(ISERROR(VLOOKUP(A612,'Submission Template'!$K$5,1,FALSE)),\"\",C612)","v":""}]
[null,null,null,null,null,null,null,null,null,null,null,null,null,null,null,null,null,null,null,null,null,null,null,null,{"$f":"IF(ISERROR(VLOOKUP(A613,'Submission Template'!$K$5,1,FALSE)),\"\",C613)","v":""}]
[null,null,null,null,null,null,null,null,null,null,null,null,null,null,null,null,null,null,null,null,null,null,null,null,{"$f":"IF(ISERROR(VLOOKUP(A614,'Submission Template'!$K$5,1,FALSE)),\"\",C614)","v":""}]
[null,null,null,null,null,null,null,null,null,null,null,null,null,null,null,null,null,null,null,null,null,null,null,null,{"$f":"IF(ISERROR(VLOOKUP(A615,'Submission Template'!$K$5,1,FALSE)),\"\",C615)","v":""}]
[null,null,null,null,null,null,null,null,null,null,null,null,null,null,null,null,null,null,null,null,null,null,null,null,{"$f":"IF(ISERROR(VLOOKUP(A616,'Submission Template'!$K$5,1,FALSE)),\"\",C616)","v":""}]
[null,null,null,null,null,null,null,null,null,null,null,null,null,null,null,null,null,null,null,null,null,null,null,null,{"$f":"IF(ISERROR(VLOOKUP(A617,'Submission Template'!$K$5,1,FALSE)),\"\",C617)","v":""}]
[null,null,null,null,null,null,null,null,null,null,null,null,null,null,null,null,null,null,null,null,null,null,null,null,{"$f":"IF(ISERROR(VLOOKUP(A618,'Submission Template'!$K$5,1,FALSE)),\"\",C618)","v":""}]
[null,null,null,null,null,null,null,null,null,null,null,null,null,null,null,null,null,null,null,null,null,null,null,null,{"$f":"IF(ISERROR(VLOOKUP(A619,'Submission Template'!$K$5,1,FALSE)),\"\",C619)","v":""}]
[null,null,null,null,null,null,null,null,null,null,null,null,null,null,null,null,null,null,null,null,null,null,null,null,{"$f":"IF(ISERROR(VLOOKUP(A620,'Submission Template'!$K$5,1,FALSE)),\"\",C620)","v":""}]
[null,null,null,null,null,null,null,null,null,null,null,null,null,null,null,null,null,null,null,null,null,null,null,null,{"$f":"IF(ISERROR(VLOOKUP(A621,'Submission Template'!$K$5,1,FALSE)),\"\",C621)","v":""}]
[null,null,null,null,null,null,null,null,null,null,null,null,null,null,null,null,null,null,null,null,null,null,null,null,{"$f":"IF(ISERROR(VLOOKUP(A622,'Submission Template'!$K$5,1,FALSE)),\"\",C622)","v":""}]
[null,null,null,null,null,null,null,null,null,null,null,null,null,null,null,null,null,null,null,null,null,null,null,null,{"$f":"IF(ISERROR(VLOOKUP(A623,'Submission Template'!$K$5,1,FALSE)),\"\",C623)","v":""}]
[null,null,null,null,null,null,null,null,null,null,null,null,null,null,null,null,null,null,null,null,null,null,null,null,{"$f":"IF(ISERROR(VLOOKUP(A624,'Submission Template'!$K$5,1,FALSE)),\"\",C624)","v":""}]
[null,null,null,null,null,null,null,null,null,null,null,null,null,null,null,null,null,null,null,null,null,null,null,null,{"$f":"IF(ISERROR(VLOOKUP(A625,'Submission Template'!$K$5,1,FALSE)),\"\",C625)","v":""}]
[null,null,null,null,null,null,null,null,null,null,null,null,null,null,null,null,null,null,null,null,null,null,null,null,{"$f":"IF(ISERROR(VLOOKUP(A626,'Submission Template'!$K$5,1,FALSE)),\"\",C626)","v":""}]
[null,null,null,null,null,null,null,null,null,null,null,null,null,null,null,null,null,null,null,null,null,null,null,null,{"$f":"IF(ISERROR(VLOOKUP(A627,'Submission Template'!$K$5,1,FALSE)),\"\",C627)","v":""}]
[null,null,null,null,null,null,null,null,null,null,null,null,null,null,null,null,null,null,null,null,null,null,null,null,{"$f":"IF(ISERROR(VLOOKUP(A628,'Submission Template'!$K$5,1,FALSE)),\"\",C628)","v":""}]
[null,null,null,null,null,null,null,null,null,null,null,null,null,null,null,null,null,null,null,null,null,null,null,null,{"$f":"IF(ISERROR(VLOOKUP(A629,'Submission Template'!$K$5,1,FALSE)),\"\",C629)","v":""}]
[null,null,null,null,null,null,null,null,null,null,null,null,null,null,null,null,null,null,null,null,null,null,null,null,{"$f":"IF(ISERROR(VLOOKUP(A630,'Submission Template'!$K$5,1,FALSE)),\"\",C630)","v":""}]
[null,null,null,null,null,null,null,null,null,null,null,null,null,null,null,null,null,null,null,null,null,null,null,null,{"$f":"IF(ISERROR(VLOOKUP(A631,'Submission Template'!$K$5,1,FALSE)),\"\",C631)","v":""}]
[null,null,null,null,null,null,null,null,null,null,null,null,null,null,null,null,null,null,null,null,null,null,null,null,{"$f":"IF(ISERROR(VLOOKUP(A632,'Submission Template'!$K$5,1,FALSE)),\"\",C632)","v":""}]
[null,null,null,null,null,null,null,null,null,null,null,null,null,null,null,null,null,null,null,null,null,null,null,null,{"$f":"IF(ISERROR(VLOOKUP(A633,'Submission Template'!$K$5,1,FALSE)),\"\",C633)","v":""}]
[null,null,null,null,null,null,null,null,null,null,null,null,null,null,null,null,null,null,null,null,null,null,null,null,{"$f":"IF(ISERROR(VLOOKUP(A634,'Submission Template'!$K$5,1,FALSE)),\"\",C634)","v":""}]
[null,null,null,null,null,null,null,null,null,null,null,null,null,null,null,null,null,null,null,null,null,null,null,null,{"$f":"IF(ISERROR(VLOOKUP(A635,'Submission Template'!$K$5,1,FALSE)),\"\",C635)","v":""}]
[null,null,null,null,null,null,null,null,null,null,null,null,null,null,null,null,null,null,null,null,null,null,null,null,{"$f":"IF(ISERROR(VLOOKUP(A636,'Submission Template'!$K$5,1,FALSE)),\"\",C636)","v":""}]
[null,null,null,null,null,null,null,null,null,null,null,null,null,null,null,null,null,null,null,null,null,null,null,null,{"$f":"IF(ISERROR(VLOOKUP(A637,'Submission Template'!$K$5,1,FALSE)),\"\",C637)","v":""}]
[null,null,null,null,null,null,null,null,null,null,null,null,null,null,null,null,null,null,null,null,null,null,null,null,{"$f":"IF(ISERROR(VLOOKUP(A638,'Submission Template'!$K$5,1,FALSE)),\"\",C638)","v":""}]
[null,null,null,null,null,null,null,null,null,null,null,null,null,null,null,null,null,null,null,null,null,null,null,null,{"$f":"IF(ISERROR(VLOOKUP(A639,'Submission Template'!$K$5,1,FALSE)),\"\",C639)","v":""}]
[null,null,null,null,null,null,null,null,null,null,null,null,null,null,null,null,null,null,null,null,null,null,null,null,{"$f":"IF(ISERROR(VLOOKUP(A640,'Submission Template'!$K$5,1,FALSE)),\"\",C640)","v":""}]
[null,null,null,null,null,null,null,null,null,null,null,null,null,null,null,null,null,null,null,null,null,null,null,null,{"$f":"IF(ISERROR(VLOOKUP(A641,'Submission Template'!$K$5,1,FALSE)),\"\",C641)","v":""}]
[null,null,null,null,null,null,null,null,null,null,null,null,null,null,null,null,null,null,null,null,null,null,null,null,{"$f":"IF(ISERROR(VLOOKUP(A642,'Submission Template'!$K$5,1,FALSE)),\"\",C642)","v":""}]
[null,null,null,null,null,null,null,null,null,null,null,null,null,null,null,null,null,null,null,null,null,null,null,null,{"$f":"IF(ISERROR(VLOOKUP(A643,'Submission Template'!$K$5,1,FALSE)),\"\",C643)","v":""}]
[null,null,null,null,null,null,null,null,null,null,null,null,null,null,null,null,null,null,null,null,null,null,null,null,{"$f":"IF(ISERROR(VLOOKUP(A644,'Submission Template'!$K$5,1,FALSE)),\"\",C644)","v":""}]
[null,null,null,null,null,null,null,null,null,null,null,null,null,null,null,null,null,null,null,null,null,null,null,null,{"$f":"IF(ISERROR(VLOOKUP(A645,'Submission Template'!$K$5,1,FALSE)),\"\",C645)","v":""}]
[null,null,null,null,null,null,null,null,null,null,null,null,null,null,null,null,null,null,null,null,null,null,null,null,{"$f":"IF(ISERROR(VLOOKUP(A646,'Submission Template'!$K$5,1,FALSE)),\"\",C646)","v":""}]
[null,null,null,null,null,null,null,null,null,null,null,null,null,null,null,null,null,null,null,null,null,null,null,null,{"$f":"IF(ISERROR(VLOOKUP(A647,'Submission Template'!$K$5,1,FALSE)),\"\",C647)","v":""}]
[null,null,null,null,null,null,null,null,null,null,null,null,null,null,null,null,null,null,null,null,null,null,null,null,{"$f":"IF(ISERROR(VLOOKUP(A648,'Submission Template'!$K$5,1,FALSE)),\"\",C648)","v":""}]
[null,null,null,null,null,null,null,null,null,null,null,null,null,null,null,null,null,null,null,null,null,null,null,null,{"$f":"IF(ISERROR(VLOOKUP(A649,'Submission Template'!$K$5,1,FALSE)),\"\",C649)","v":""}]
[null,null,null,null,null,null,null,null,null,null,null,null,null,null,null,null,null,null,null,null,null,null,null,null,{"$f":"IF(ISERROR(VLOOKUP(A650,'Submission Template'!$K$5,1,FALSE)),\"\",C650)","v":""}]
[null,null,null,null,null,null,null,null,null,null,null,null,null,null,null,null,null,null,null,null,null,null,null,null,{"$f":"IF(ISERROR(VLOOKUP(A651,'Submission Template'!$K$5,1,FALSE)),\"\",C651)","v":""}]
[null,null,null,null,null,null,null,null,null,null,null,null,null,null,null,null,null,null,null,null,null,null,null,null,{"$f":"IF(ISERROR(VLOOKUP(A652,'Submission Template'!$K$5,1,FALSE)),\"\",C652)","v":""}]
[null,null,null,null,null,null,null,null,null,null,null,null,null,null,null,null,null,null,null,null,null,null,null,null,{"$f":"IF(ISERROR(VLOOKUP(A653,'Submission Template'!$K$5,1,FALSE)),\"\",C653)","v":""}]
[null,null,null,null,null,null,null,null,null,null,null,null,null,null,null,null,null,null,null,null,null,null,null,null,{"$f":"IF(ISERROR(VLOOKUP(A654,'Submission Template'!$K$5,1,FALSE)),\"\",C654)","v":""}]
[null,null,null,null,null,null,null,null,null,null,null,null,null,null,null,null,null,null,null,null,null,null,null,null,{"$f":"IF(ISERROR(VLOOKUP(A655,'Submission Template'!$K$5,1,FALSE)),\"\",C655)","v":""}]
[null,null,null,null,null,null,null,null,null,null,null,null,null,null,null,null,null,null,null,null,null,null,null,null,{"$f":"IF(ISERROR(VLOOKUP(A656,'Submission Template'!$K$5,1,FALSE)),\"\",C656)","v":""}]
[null,null,null,null,null,null,null,null,null,null,null,null,null,null,null,null,null,null,null,null,null,null,null,null,{"$f":"IF(ISERROR(VLOOKUP(A657,'Submission Template'!$K$5,1,FALSE)),\"\",C657)","v":""}]
[null,null,null,null,null,null,null,null,null,null,null,null,null,null,null,null,null,null,null,null,null,null,null,null,{"$f":"IF(ISERROR(VLOOKUP(A658,'Submission Template'!$K$5,1,FALSE)),\"\",C658)","v":""}]
[null,null,null,null,null,null,null,null,null,null,null,null,null,null,null,null,null,null,null,null,null,null,null,null,{"$f":"IF(ISERROR(VLOOKUP(A659,'Submission Template'!$K$5,1,FALSE)),\"\",C659)","v":""}]
[null,null,null,null,null,null,null,null,null,null,null,null,null,null,null,null,null,null,null,null,null,null,null,null,{"$f":"IF(ISERROR(VLOOKUP(A660,'Submission Template'!$K$5,1,FALSE)),\"\",C660)","v":""}]
[null,null,null,null,null,null,null,null,null,null,null,null,null,null,null,null,null,null,null,null,null,null,null,null,{"$f":"IF(ISERROR(VLOOKUP(A661,'Submission Template'!$K$5,1,FALSE)),\"\",C661)","v":""}]
[null,null,null,null,null,null,null,null,null,null,null,null,null,null,null,null,null,null,null,null,null,null,null,null,{"$f":"IF(ISERROR(VLOOKUP(A662,'Submission Template'!$K$5,1,FALSE)),\"\",C662)","v":""}]
[null,null,null,null,null,null,null,null,null,null,null,null,null,null,null,null,null,null,null,null,null,null,null,null,{"$f":"IF(ISERROR(VLOOKUP(A663,'Submission Template'!$K$5,1,FALSE)),\"\",C663)","v":""}]
[null,null,null,null,null,null,null,null,null,null,null,null,null,null,null,null,null,null,null,null,null,null,null,null,{"$f":"IF(ISERROR(VLOOKUP(A664,'Submission Template'!$K$5,1,FALSE)),\"\",C664)","v":""}]
[null,null,null,null,null,null,null,null,null,null,null,null,null,null,null,null,null,null,null,null,null,null,null,null,{"$f":"IF(ISERROR(VLOOKUP(A665,'Submission Template'!$K$5,1,FALSE)),\"\",C665)","v":""}]
[null,null,null,null,null,null,null,null,null,null,null,null,null,null,null,null,null,null,null,null,null,null,null,null,{"$f":"IF(ISERROR(VLOOKUP(A666,'Submission Template'!$K$5,1,FALSE)),\"\",C666)","v":""}]
[null,null,null,null,null,null,null,null,null,null,null,null,null,null,null,null,null,null,null,null,null,null,null,null,{"$f":"IF(ISERROR(VLOOKUP(A667,'Submission Template'!$K$5,1,FALSE)),\"\",C667)","v":""}]
[null,null,null,null,null,null,null,null,null,null,null,null,null,null,null,null,null,null,null,null,null,null,null,null,{"$f":"IF(ISERROR(VLOOKUP(A668,'Submission Template'!$K$5,1,FALSE)),\"\",C668)","v":""}]
[null,null,null,null,null,null,null,null,null,null,null,null,null,null,null,null,null,null,null,null,null,null,null,null,{"$f":"IF(ISERROR(VLOOKUP(A669,'Submission Template'!$K$5,1,FALSE)),\"\",C669)","v":""}]
[null,null,null,null,null,null,null,null,null,null,null,null,null,null,null,null,null,null,null,null,null,null,null,null,{"$f":"IF(ISERROR(VLOOKUP(A670,'Submission Template'!$K$5,1,FALSE)),\"\",C670)","v":""}]
[null,null,null,null,null,null,null,null,null,null,null,null,null,null,null,null,null,null,null,null,null,null,null,null,{"$f":"IF(ISERROR(VLOOKUP(A671,'Submission Template'!$K$5,1,FALSE)),\"\",C671)","v":""}]
[null,null,null,null,null,null,null,null,null,null,null,null,null,null,null,null,null,null,null,null,null,null,null,null,{"$f":"IF(ISERROR(VLOOKUP(A672,'Submission Template'!$K$5,1,FALSE)),\"\",C672)","v":""}]
[null,null,null,null,null,null,null,null,null,null,null,null,null,null,null,null,null,null,null,null,null,null,null,null,{"$f":"IF(ISERROR(VLOOKUP(A673,'Submission Template'!$K$5,1,FALSE)),\"\",C673)","v":""}]
[null,null,null,null,null,null,null,null,null,null,null,null,null,null,null,null,null,null,null,null,null,null,null,null,{"$f":"IF(ISERROR(VLOOKUP(A674,'Submission Template'!$K$5,1,FALSE)),\"\",C674)","v":""}]
[null,null,null,null,null,null,null,null,null,null,null,null,null,null,null,null,null,null,null,null,null,null,null,null,{"$f":"IF(ISERROR(VLOOKUP(A675,'Submission Template'!$K$5,1,FALSE)),\"\",C675)","v":""}]
[null,null,null,null,null,null,null,null,null,null,null,null,null,null,null,null,null,null,null,null,null,null,null,null,{"$f":"IF(ISERROR(VLOOKUP(A676,'Submission Template'!$K$5,1,FALSE)),\"\",C676)","v":""}]
[null,null,null,null,null,null,null,null,null,null,null,null,null,null,null,null,null,null,null,null,null,null,null,null,{"$f":"IF(ISERROR(VLOOKUP(A677,'Submission Template'!$K$5,1,FALSE)),\"\",C677)","v":""}]
[null,null,null,null,null,null,null,null,null,null,null,null,null,null,null,null,null,null,null,null,null,null,null,null,{"$f":"IF(ISERROR(VLOOKUP(A678,'Submission Template'!$K$5,1,FALSE)),\"\",C678)","v":""}]
[null,null,null,null,null,null,null,null,null,null,null,null,null,null,null,null,null,null,null,null,null,null,null,null,{"$f":"IF(ISERROR(VLOOKUP(A679,'Submission Template'!$K$5,1,FALSE)),\"\",C679)","v":""}]
[null,null,null,null,null,null,null,null,null,null,null,null,null,null,null,null,null,null,null,null,null,null,null,null,{"$f":"IF(ISERROR(VLOOKUP(A680,'Submission Template'!$K$5,1,FALSE)),\"\",C680)","v":""}]
[null,null,null,null,null,null,null,null,null,null,null,null,null,null,null,null,null,null,null,null,null,null,null,null,{"$f":"IF(ISERROR(VLOOKUP(A681,'Submission Template'!$K$5,1,FALSE)),\"\",C681)","v":""}]
[null,null,null,null,null,null,null,null,null,null,null,null,null,null,null,null,null,null,null,null,null,null,null,null,{"$f":"IF(ISERROR(VLOOKUP(A682,'Submission Template'!$K$5,1,FALSE)),\"\",C682)","v":""}]
[null,null,null,null,null,null,null,null,null,null,null,null,null,null,null,null,null,null,null,null,null,null,null,null,{"$f":"IF(ISERROR(VLOOKUP(A683,'Submission Template'!$K$5,1,FALSE)),\"\",C683)","v":""}]
[null,null,null,null,null,null,null,null,null,null,null,null,null,null,null,null,null,null,null,null,null,null,null,null,{"$f":"IF(ISERROR(VLOOKUP(A684,'Submission Template'!$K$5,1,FALSE)),\"\",C684)","v":""}]
[null,null,null,null,null,null,null,null,null,null,null,null,null,null,null,null,null,null,null,null,null,null,null,null,{"$f":"IF(ISERROR(VLOOKUP(A685,'Submission Template'!$K$5,1,FALSE)),\"\",C685)","v":""}]
[null,null,null,null,null,null,null,null,null,null,null,null,null,null,null,null,null,null,null,null,null,null,null,null,{"$f":"IF(ISERROR(VLOOKUP(A686,'Submission Template'!$K$5,1,FALSE)),\"\",C686)","v":""}]
[null,null,null,null,null,null,null,null,null,null,null,null,null,null,null,null,null,null,null,null,null,null,null,null,{"$f":"IF(ISERROR(VLOOKUP(A687,'Submission Template'!$K$5,1,FALSE)),\"\",C687)","v":""}]
[null,null,null,null,null,null,null,null,null,null,null,null,null,null,null,null,null,null,null,null,null,null,null,null,{"$f":"IF(ISERROR(VLOOKUP(A688,'Submission Template'!$K$5,1,FALSE)),\"\",C688)","v":""}]
[null,null,null,null,null,null,null,null,null,null,null,null,null,null,null,null,null,null,null,null,null,null,null,null,{"$f":"IF(ISERROR(VLOOKUP(A689,'Submission Template'!$K$5,1,FALSE)),\"\",C689)","v":""}]
[null,null,null,null,null,null,null,null,null,null,null,null,null,null,null,null,null,null,null,null,null,null,null,null,{"$f":"IF(ISERROR(VLOOKUP(A690,'Submission Template'!$K$5,1,FALSE)),\"\",C690)","v":""}]
[null,null,null,null,null,null,null,null,null,null,null,null,null,null,null,null,null,null,null,null,null,null,null,null,{"$f":"IF(ISERROR(VLOOKUP(A691,'Submission Template'!$K$5,1,FALSE)),\"\",C691)","v":""}]
[null,null,null,null,null,null,null,null,null,null,null,null,null,null,null,null,null,null,null,null,null,null,null,null,{"$f":"IF(ISERROR(VLOOKUP(A692,'Submission Template'!$K$5,1,FALSE)),\"\",C692)","v":""}]
[null,null,null,null,null,null,null,null,null,null,null,null,null,null,null,null,null,null,null,null,null,null,null,null,{"$f":"IF(ISERROR(VLOOKUP(A693,'Submission Template'!$K$5,1,FALSE)),\"\",C693)","v":""}]
[null,null,null,null,null,null,null,null,null,null,null,null,null,null,null,null,null,null,null,null,null,null,null,null,{"$f":"IF(ISERROR(VLOOKUP(A694,'Submission Template'!$K$5,1,FALSE)),\"\",C694)","v":""}]
[null,null,null,null,null,null,null,null,null,null,null,null,null,null,null,null,null,null,null,null,null,null,null,null,{"$f":"IF(ISERROR(VLOOKUP(A695,'Submission Template'!$K$5,1,FALSE)),\"\",C695)","v":""}]
[null,null,null,null,null,null,null,null,null,null,null,null,null,null,null,null,null,null,null,null,null,null,null,null,{"$f":"IF(ISERROR(VLOOKUP(A696,'Submission Template'!$K$5,1,FALSE)),\"\",C696)","v":""}]
[null,null,null,null,null,null,null,null,null,null,null,null,null,null,null,null,null,null,null,null,null,null,null,null,{"$f":"IF(ISERROR(VLOOKUP(A697,'Submission Template'!$K$5,1,FALSE)),\"\",C697)","v":""}]
[null,null,null,null,null,null,null,null,null,null,null,null,null,null,null,null,null,null,null,null,null,null,null,null,{"$f":"IF(ISERROR(VLOOKUP(A698,'Submission Template'!$K$5,1,FALSE)),\"\",C698)","v":""}]
[null,null,null,null,null,null,null,null,null,null,null,null,null,null,null,null,null,null,null,null,null,null,null,null,{"$f":"IF(ISERROR(VLOOKUP(A699,'Submission Template'!$K$5,1,FALSE)),\"\",C699)","v":""}]
[null,null,null,null,null,null,null,null,null,null,null,null,null,null,null,null,null,null,null,null,null,null,null,null,{"$f":"IF(ISERROR(VLOOKUP(A700,'Submission Template'!$K$5,1,FALSE)),\"\",C700)","v":""}]
[null,null,null,null,null,null,null,null,null,null,null,null,null,null,null,null,null,null,null,null,null,null,null,null,{"$f":"IF(ISERROR(VLOOKUP(A701,'Submission Template'!$K$5,1,FALSE)),\"\",C701)","v":""}]
[null,null,null,null,null,null,null,null,null,null,null,null,null,null,null,null,null,null,null,null,null,null,null,null,{"$f":"IF(ISERROR(VLOOKUP(A702,'Submission Template'!$K$5,1,FALSE)),\"\",C702)","v":""}]
[null,null,null,null,null,null,null,null,null,null,null,null,null,null,null,null,null,null,null,null,null,null,null,null,{"$f":"IF(ISERROR(VLOOKUP(A703,'Submission Template'!$K$5,1,FALSE)),\"\",C703)","v":""}]
[null,null,null,null,null,null,null,null,null,null,null,null,null,null,null,null,null,null,null,null,null,null,null,null,{"$f":"IF(ISERROR(VLOOKUP(A704,'Submission Template'!$K$5,1,FALSE)),\"\",C704)","v":""}]
[null,null,null,null,null,null,null,null,null,null,null,null,null,null,null,null,null,null,null,null,null,null,null,null,{"$f":"IF(ISERROR(VLOOKUP(A705,'Submission Template'!$K$5,1,FALSE)),\"\",C705)","v":""}]
[null,null,null,null,null,null,null,null,null,null,null,null,null,null,null,null,null,null,null,null,null,null,null,null,{"$f":"IF(ISERROR(VLOOKUP(A706,'Submission Template'!$K$5,1,FALSE)),\"\",C706)","v":""}]
[null,null,null,null,null,null,null,null,null,null,null,null,null,null,null,null,null,null,null,null,null,null,null,null,{"$f":"IF(ISERROR(VLOOKUP(A707,'Submission Template'!$K$5,1,FALSE)),\"\",C707)","v":""}]
[null,null,null,null,null,null,null,null,null,null,null,null,null,null,null,null,null,null,null,null,null,null,null,null,{"$f":"IF(ISERROR(VLOOKUP(A708,'Submission Template'!$K$5,1,FALSE)),\"\",C708)","v":""}]
[null,null,null,null,null,null,null,null,null,null,null,null,null,null,null,null,null,null,null,null,null,null,null,null,{"$f":"IF(ISERROR(VLOOKUP(A709,'Submission Template'!$K$5,1,FALSE)),\"\",C709)","v":""}]
[null,null,null,null,null,null,null,null,null,null,null,null,null,null,null,null,null,null,null,null,null,null,null,null,{"$f":"IF(ISERROR(VLOOKUP(A710,'Submission Template'!$K$5,1,FALSE)),\"\",C710)","v":""}]
[null,null,null,null,null,null,null,null,null,null,null,null,null,null,null,null,null,null,null,null,null,null,null,null,{"$f":"IF(ISERROR(VLOOKUP(A711,'Submission Template'!$K$5,1,FALSE)),\"\",C711)","v":""}]
[null,null,null,null,null,null,null,null,null,null,null,null,null,null,null,null,null,null,null,null,null,null,null,null,{"$f":"IF(ISERROR(VLOOKUP(A712,'Submission Template'!$K$5,1,FALSE)),\"\",C712)","v":""}]
[null,null,null,null,null,null,null,null,null,null,null,null,null,null,null,null,null,null,null,null,null,null,null,null,{"$f":"IF(ISERROR(VLOOKUP(A713,'Submission Template'!$K$5,1,FALSE)),\"\",C713)","v":""}]
[null,null,null,null,null,null,null,null,null,null,null,null,null,null,null,null,null,null,null,null,null,null,null,null,{"$f":"IF(ISERROR(VLOOKUP(A714,'Submission Template'!$K$5,1,FALSE)),\"\",C714)","v":""}]
[null,null,null,null,null,null,null,null,null,null,null,null,null,null,null,null,null,null,null,null,null,null,null,null,{"$f":"IF(ISERROR(VLOOKUP(A715,'Submission Template'!$K$5,1,FALSE)),\"\",C715)","v":""}]
[null,null,null,null,null,null,null,null,null,null,null,null,null,null,null,null,null,null,null,null,null,null,null,null,{"$f":"IF(ISERROR(VLOOKUP(A716,'Submission Template'!$K$5,1,FALSE)),\"\",C716)","v":""}]
[null,null,null,null,null,null,null,null,null,null,null,null,null,null,null,null,null,null,null,null,null,null,null,null,{"$f":"IF(ISERROR(VLOOKUP(A717,'Submission Template'!$K$5,1,FALSE)),\"\",C717)","v":""}]
[null,null,null,null,null,null,null,null,null,null,null,null,null,null,null,null,null,null,null,null,null,null,null,null,{"$f":"IF(ISERROR(VLOOKUP(A718,'Submission Template'!$K$5,1,FALSE)),\"\",C718)","v":""}]
[null,null,null,null,null,null,null,null,null,null,null,null,null,null,null,null,null,null,null,null,null,null,null,null,{"$f":"IF(ISERROR(VLOOKUP(A719,'Submission Template'!$K$5,1,FALSE)),\"\",C719)","v":""}]
[null,null,null,null,null,null,null,null,null,null,null,null,null,null,null,null,null,null,null,null,null,null,null,null,{"$f":"IF(ISERROR(VLOOKUP(A720,'Submission Template'!$K$5,1,FALSE)),\"\",C720)","v":""}]
[null,null,null,null,null,null,null,null,null,null,null,null,null,null,null,null,null,null,null,null,null,null,null,null,{"$f":"IF(ISERROR(VLOOKUP(A721,'Submission Template'!$K$5,1,FALSE)),\"\",C721)","v":""}]
[null,null,null,null,null,null,null,null,null,null,null,null,null,null,null,null,null,null,null,null,null,null,null,null,{"$f":"IF(ISERROR(VLOOKUP(A722,'Submission Template'!$K$5,1,FALSE)),\"\",C722)","v":""}]
[null,null,null,null,null,null,null,null,null,null,null,null,null,null,null,null,null,null,null,null,null,null,null,null,{"$f":"IF(ISERROR(VLOOKUP(A723,'Submission Template'!$K$5,1,FALSE)),\"\",C723)","v":""}]
[null,null,null,null,null,null,null,null,null,null,null,null,null,null,null,null,null,null,null,null,null,null,null,null,{"$f":"IF(ISERROR(VLOOKUP(A724,'Submission Template'!$K$5,1,FALSE)),\"\",C724)","v":""}]
[null,null,null,null,null,null,null,null,null,null,null,null,null,null,null,null,null,null,null,null,null,null,null,null,{"$f":"IF(ISERROR(VLOOKUP(A725,'Submission Template'!$K$5,1,FALSE)),\"\",C725)","v":""}]
[null,null,null,null,null,null,null,null,null,null,null,null,null,null,null,null,null,null,null,null,null,null,null,null,{"$f":"IF(ISERROR(VLOOKUP(A726,'Submission Template'!$K$5,1,FALSE)),\"\",C726)","v":""}]
[null,null,null,null,null,null,null,null,null,null,null,null,null,null,null,null,null,null,null,null,null,null,null,null,{"$f":"IF(ISERROR(VLOOKUP(A727,'Submission Template'!$K$5,1,FALSE)),\"\",C727)","v":""}]
[null,null,null,null,null,null,null,null,null,null,null,null,null,null,null,null,null,null,null,null,null,null,null,null,{"$f":"IF(ISERROR(VLOOKUP(A728,'Submission Template'!$K$5,1,FALSE)),\"\",C728)","v":""}]
[null,null,null,null,null,null,null,null,null,null,null,null,null,null,null,null,null,null,null,null,null,null,null,null,{"$f":"IF(ISERROR(VLOOKUP(A729,'Submission Template'!$K$5,1,FALSE)),\"\",C729)","v":""}]
[null,null,null,null,null,null,null,null,null,null,null,null,null,null,null,null,null,null,null,null,null,null,null,null,{"$f":"IF(ISERROR(VLOOKUP(A730,'Submission Template'!$K$5,1,FALSE)),\"\",C730)","v":""}]
[null,null,null,null,null,null,null,null,null,null,null,null,null,null,null,null,null,null,null,null,null,null,null,null,{"$f":"IF(ISERROR(VLOOKUP(A731,'Submission Template'!$K$5,1,FALSE)),\"\",C731)","v":""}]
[null,null,null,null,null,null,null,null,null,null,null,null,null,null,null,null,null,null,null,null,null,null,null,null,{"$f":"IF(ISERROR(VLOOKUP(A732,'Submission Template'!$K$5,1,FALSE)),\"\",C732)","v":""}]
[null,null,null,null,null,null,null,null,null,null,null,null,null,null,null,null,null,null,null,null,null,null,null,null,{"$f":"IF(ISERROR(VLOOKUP(A733,'Submission Template'!$K$5,1,FALSE)),\"\",C733)","v":""}]
[null,null,null,null,null,null,null,null,null,null,null,null,null,null,null,null,null,null,null,null,null,null,null,null,{"$f":"IF(ISERROR(VLOOKUP(A734,'Submission Template'!$K$5,1,FALSE)),\"\",C734)","v":""}]
[null,null,null,null,null,null,null,null,null,null,null,null,null,null,null,null,null,null,null,null,null,null,null,null,{"$f":"IF(ISERROR(VLOOKUP(A735,'Submission Template'!$K$5,1,FALSE)),\"\",C735)","v":""}]
[null,null,null,null,null,null,null,null,null,null,null,null,null,null,null,null,null,null,null,null,null,null,null,null,{"$f":"IF(ISERROR(VLOOKUP(A736,'Submission Template'!$K$5,1,FALSE)),\"\",C736)","v":""}]
[null,null,null,null,null,null,null,null,null,null,null,null,null,null,null,null,null,null,null,null,null,null,null,null,{"$f":"IF(ISERROR(VLOOKUP(A737,'Submission Template'!$K$5,1,FALSE)),\"\",C737)","v":""}]
[null,null,null,null,null,null,null,null,null,null,null,null,null,null,null,null,null,null,null,null,null,null,null,null,{"$f":"IF(ISERROR(VLOOKUP(A738,'Submission Template'!$K$5,1,FALSE)),\"\",C738)","v":""}]
[null,null,null,null,null,null,null,null,null,null,null,null,null,null,null,null,null,null,null,null,null,null,null,null,{"$f":"IF(ISERROR(VLOOKUP(A739,'Submission Template'!$K$5,1,FALSE)),\"\",C739)","v":""}]
[null,null,null,null,null,null,null,null,null,null,null,null,null,null,null,null,null,null,null,null,null,null,null,null,{"$f":"IF(ISERROR(VLOOKUP(A740,'Submission Template'!$K$5,1,FALSE)),\"\",C740)","v":""}]
[null,null,null,null,null,null,null,null,null,null,null,null,null,null,null,null,null,null,null,null,null,null,null,null,{"$f":"IF(ISERROR(VLOOKUP(A741,'Submission Template'!$K$5,1,FALSE)),\"\",C741)","v":""}]
[null,null,null,null,null,null,null,null,null,null,null,null,null,null,null,null,null,null,null,null,null,null,null,null,{"$f":"IF(ISERROR(VLOOKUP(A742,'Submission Template'!$K$5,1,FALSE)),\"\",C742)","v":""}]
[null,null,null,null,null,null,null,null,null,null,null,null,null,null,null,null,null,null,null,null,null,null,null,null,{"$f":"IF(ISERROR(VLOOKUP(A743,'Submission Template'!$K$5,1,FALSE)),\"\",C743)","v":""}]
[null,null,null,null,null,null,null,null,null,null,null,null,null,null,null,null,null,null,null,null,null,null,null,null,{"$f":"IF(ISERROR(VLOOKUP(A744,'Submission Template'!$K$5,1,FALSE)),\"\",C744)","v":""}]
[null,null,null,null,null,null,null,null,null,null,null,null,null,null,null,null,null,null,null,null,null,null,null,null,{"$f":"IF(ISERROR(VLOOKUP(A745,'Submission Template'!$K$5,1,FALSE)),\"\",C745)","v":""}]
[null,null,null,null,null,null,null,null,null,null,null,null,null,null,null,null,null,null,null,null,null,null,null,null,{"$f":"IF(ISERROR(VLOOKUP(A746,'Submission Template'!$K$5,1,FALSE)),\"\",C746)","v":""}]
[null,null,null,null,null,null,null,null,null,null,null,null,null,null,null,null,null,null,null,null,null,null,null,null,{"$f":"IF(ISERROR(VLOOKUP(A747,'Submission Template'!$K$5,1,FALSE)),\"\",C747)","v":""}]
[null,null,null,null,null,null,null,null,null,null,null,null,null,null,null,null,null,null,null,null,null,null,null,null,{"$f":"IF(ISERROR(VLOOKUP(A748,'Submission Template'!$K$5,1,FALSE)),\"\",C748)","v":""}]
[null,null,null,null,null,null,null,null,null,null,null,null,null,null,null,null,null,null,null,null,null,null,null,null,{"$f":"IF(ISERROR(VLOOKUP(A749,'Submission Template'!$K$5,1,FALSE)),\"\",C749)","v":""}]
[null,null,null,null,null,null,null,null,null,null,null,null,null,null,null,null,null,null,null,null,null,null,null,null,{"$f":"IF(ISERROR(VLOOKUP(A750,'Submission Template'!$K$5,1,FALSE)),\"\",C750)","v":""}]
[null,null,null,null,null,null,null,null,null,null,null,null,null,null,null,null,null,null,null,null,null,null,null,null,{"$f":"IF(ISERROR(VLOOKUP(A751,'Submission Template'!$K$5,1,FALSE)),\"\",C751)","v":""}]
[null,null,null,null,null,null,null,null,null,null,null,null,null,null,null,null,null,null,null,null,null,null,null,null,{"$f":"IF(ISERROR(VLOOKUP(A752,'Submission Template'!$K$5,1,FALSE)),\"\",C752)","v":""}]
[null,null,null,null,null,null,null,null,null,null,null,null,null,null,null,null,null,null,null,null,null,null,null,null,{"$f":"IF(ISERROR(VLOOKUP(A753,'Submission Template'!$K$5,1,FALSE)),\"\",C753)","v":""}]
[null,null,null,null,null,null,null,null,null,null,null,null,null,null,null,null,null,null,null,null,null,null,null,null,{"$f":"IF(ISERROR(VLOOKUP(A754,'Submission Template'!$K$5,1,FALSE)),\"\",C754)","v":""}]
[null,null,null,null,null,null,null,null,null,null,null,null,null,null,null,null,null,null,null,null,null,null,null,null,{"$f":"IF(ISERROR(VLOOKUP(A755,'Submission Template'!$K$5,1,FALSE)),\"\",C755)","v":""}]
[null,null,null,null,null,null,null,null,null,null,null,null,null,null,null,null,null,null,null,null,null,null,null,null,{"$f":"IF(ISERROR(VLOOKUP(A756,'Submission Template'!$K$5,1,FALSE)),\"\",C756)","v":""}]
[null,null,null,null,null,null,null,null,null,null,null,null,null,null,null,null,null,null,null,null,null,null,null,null,{"$f":"IF(ISERROR(VLOOKUP(A757,'Submission Template'!$K$5,1,FALSE)),\"\",C757)","v":""}]
[null,null,null,null,null,null,null,null,null,null,null,null,null,null,null,null,null,null,null,null,null,null,null,null,{"$f":"IF(ISERROR(VLOOKUP(A758,'Submission Template'!$K$5,1,FALSE)),\"\",C758)","v":""}]
[null,null,null,null,null,null,null,null,null,null,null,null,null,null,null,null,null,null,null,null,null,null,null,null,{"$f":"IF(ISERROR(VLOOKUP(A759,'Submission Template'!$K$5,1,FALSE)),\"\",C759)","v":""}]
[null,null,null,null,null,null,null,null,null,null,null,null,null,null,null,null,null,null,null,null,null,null,null,null,{"$f":"IF(ISERROR(VLOOKUP(A760,'Submission Template'!$K$5,1,FALSE)),\"\",C760)","v":""}]
[null,null,null,null,null,null,null,null,null,null,null,null,null,null,null,null,null,null,null,null,null,null,null,null,{"$f":"IF(ISERROR(VLOOKUP(A761,'Submission Template'!$K$5,1,FALSE)),\"\",C761)","v":""}]
[null,null,null,null,null,null,null,null,null,null,null,null,null,null,null,null,null,null,null,null,null,null,null,null,{"$f":"IF(ISERROR(VLOOKUP(A762,'Submission Template'!$K$5,1,FALSE)),\"\",C762)","v":""}]
[null,null,null,null,null,null,null,null,null,null,null,null,null,null,null,null,null,null,null,null,null,null,null,null,{"$f":"IF(ISERROR(VLOOKUP(A763,'Submission Template'!$K$5,1,FALSE)),\"\",C763)","v":""}]
[null,null,null,null,null,null,null,null,null,null,null,null,null,null,null,null,null,null,null,null,null,null,null,null,{"$f":"IF(ISERROR(VLOOKUP(A764,'Submission Template'!$K$5,1,FALSE)),\"\",C764)","v":""}]
[null,null,null,null,null,null,null,null,null,null,null,null,null,null,null,null,null,null,null,null,null,null,null,null,{"$f":"IF(ISERROR(VLOOKUP(A765,'Submission Template'!$K$5,1,FALSE)),\"\",C765)","v":""}]
[null,null,null,null,null,null,null,null,null,null,null,null,null,null,null,null,null,null,null,null,null,null,null,null,{"$f":"IF(ISERROR(VLOOKUP(A766,'Submission Template'!$K$5,1,FALSE)),\"\",C766)","v":""}]
[null,null,null,null,null,null,null,null,null,null,null,null,null,null,null,null,null,null,null,null,null,null,null,null,{"$f":"IF(ISERROR(VLOOKUP(A767,'Submission Template'!$K$5,1,FALSE)),\"\",C767)","v":""}]
[null,null,null,null,null,null,null,null,null,null,null,null,null,null,null,null,null,null,null,null,null,null,null,null,{"$f":"IF(ISERROR(VLOOKUP(A768,'Submission Template'!$K$5,1,FALSE)),\"\",C768)","v":""}]
[null,null,null,null,null,null,null,null,null,null,null,null,null,null,null,null,null,null,null,null,null,null,null,null,{"$f":"IF(ISERROR(VLOOKUP(A769,'Submission Template'!$K$5,1,FALSE)),\"\",C769)","v":""}]
[null,null,null,null,null,null,null,null,null,null,null,null,null,null,null,null,null,null,null,null,null,null,null,null,{"$f":"IF(ISERROR(VLOOKUP(A770,'Submission Template'!$K$5,1,FALSE)),\"\",C770)","v":""}]
[null,null,null,null,null,null,null,null,null,null,null,null,null,null,null,null,null,null,null,null,null,null,null,null,{"$f":"IF(ISERROR(VLOOKUP(A771,'Submission Template'!$K$5,1,FALSE)),\"\",C771)","v":""}]
[null,null,null,null,null,null,null,null,null,null,null,null,null,null,null,null,null,null,null,null,null,null,null,null,{"$f":"IF(ISERROR(VLOOKUP(A772,'Submission Template'!$K$5,1,FALSE)),\"\",C772)","v":""}]
[null,null,null,null,null,null,null,null,null,null,null,null,null,null,null,null,null,null,null,null,null,null,null,null,{"$f":"IF(ISERROR(VLOOKUP(A773,'Submission Template'!$K$5,1,FALSE)),\"\",C773)","v":""}]
[null,null,null,null,null,null,null,null,null,null,null,null,null,null,null,null,null,null,null,null,null,null,null,null,{"$f":"IF(ISERROR(VLOOKUP(A774,'Submission Template'!$K$5,1,FALSE)),\"\",C774)","v":""}]
[null,null,null,null,null,null,null,null,null,null,null,null,null,null,null,null,null,null,null,null,null,null,null,null,{"$f":"IF(ISERROR(VLOOKUP(A775,'Submission Template'!$K$5,1,FALSE)),\"\",C775)","v":""}]
[null,null,null,null,null,null,null,null,null,null,null,null,null,null,null,null,null,null,null,null,null,null,null,null,{"$f":"IF(ISERROR(VLOOKUP(A776,'Submission Template'!$K$5,1,FALSE)),\"\",C776)","v":""}]
[null,null,null,null,null,null,null,null,null,null,null,null,null,null,null,null,null,null,null,null,null,null,null,null,{"$f":"IF(ISERROR(VLOOKUP(A777,'Submission Template'!$K$5,1,FALSE)),\"\",C777)","v":""}]
[null,null,null,null,null,null,null,null,null,null,null,null,null,null,null,null,null,null,null,null,null,null,null,null,{"$f":"IF(ISERROR(VLOOKUP(A778,'Submission Template'!$K$5,1,FALSE)),\"\",C778)","v":""}]
[null,null,null,null,null,null,null,null,null,null,null,null,null,null,null,null,null,null,null,null,null,null,null,null,{"$f":"IF(ISERROR(VLOOKUP(A779,'Submission Template'!$K$5,1,FALSE)),\"\",C779)","v":""}]
[null,null,null,null,null,null,null,null,null,null,null,null,null,null,null,null,null,null,null,null,null,null,null,null,{"$f":"IF(ISERROR(VLOOKUP(A780,'Submission Template'!$K$5,1,FALSE)),\"\",C780)","v":""}]
[null,null,null,null,null,null,null,null,null,null,null,null,null,null,null,null,null,null,null,null,null,null,null,null,{"$f":"IF(ISERROR(VLOOKUP(A781,'Submission Template'!$K$5,1,FALSE)),\"\",C781)","v":""}]
[null,null,null,null,null,null,null,null,null,null,null,null,null,null,null,null,null,null,null,null,null,null,null,null,{"$f":"IF(ISERROR(VLOOKUP(A782,'Submission Template'!$K$5,1,FALSE)),\"\",C782)","v":""}]
[null,null,null,null,null,null,null,null,null,null,null,null,null,null,null,null,null,null,null,null,null,null,null,null,{"$f":"IF(ISERROR(VLOOKUP(A783,'Submission Template'!$K$5,1,FALSE)),\"\",C783)","v":""}]
[null,null,null,null,null,null,null,null,null,null,null,null,null,null,null,null,null,null,null,null,null,null,null,null,{"$f":"IF(ISERROR(VLOOKUP(A784,'Submission Template'!$K$5,1,FALSE)),\"\",C784)","v":""}]
[null,null,null,null,null,null,null,null,null,null,null,null,null,null,null,null,null,null,null,null,null,null,null,null,{"$f":"IF(ISERROR(VLOOKUP(A785,'Submission Template'!$K$5,1,FALSE)),\"\",C785)","v":""}]
[null,null,null,null,null,null,null,null,null,null,null,null,null,null,null,null,null,null,null,null,null,null,null,null,{"$f":"IF(ISERROR(VLOOKUP(A786,'Submission Template'!$K$5,1,FALSE)),\"\",C786)","v":""}]
[null,null,null,null,null,null,null,null,null,null,null,null,null,null,null,null,null,null,null,null,null,null,null,null,{"$f":"IF(ISERROR(VLOOKUP(A787,'Submission Template'!$K$5,1,FALSE)),\"\",C787)","v":""}]
[null,null,null,null,null,null,null,null,null,null,null,null,null,null,null,null,null,null,null,null,null,null,null,null,{"$f":"IF(ISERROR(VLOOKUP(A788,'Submission Template'!$K$5,1,FALSE)),\"\",C788)","v":""}]
[null,null,null,null,null,null,null,null,null,null,null,null,null,null,null,null,null,null,null,null,null,null,null,null,{"$f":"IF(ISERROR(VLOOKUP(A789,'Submission Template'!$K$5,1,FALSE)),\"\",C789)","v":""}]
[null,null,null,null,null,null,null,null,null,null,null,null,null,null,null,null,null,null,null,null,null,null,null,null,{"$f":"IF(ISERROR(VLOOKUP(A790,'Submission Template'!$K$5,1,FALSE)),\"\",C790)","v":""}]
[null,null,null,null,null,null,null,null,null,null,null,null,null,null,null,null,null,null,null,null,null,null,null,null,{"$f":"IF(ISERROR(VLOOKUP(A791,'Submission Template'!$K$5,1,FALSE)),\"\",C791)","v":""}]
[null,null,null,null,null,null,null,null,null,null,null,null,null,null,null,null,null,null,null,null,null,null,null,null,{"$f":"IF(ISERROR(VLOOKUP(A792,'Submission Template'!$K$5,1,FALSE)),\"\",C792)","v":""}]
[null,null,null,null,null,null,null,null,null,null,null,null,null,null,null,null,null,null,null,null,null,null,null,null,{"$f":"IF(ISERROR(VLOOKUP(A793,'Submission Template'!$K$5,1,FALSE)),\"\",C793)","v":""}]
[null,null,null,null,null,null,null,null,null,null,null,null,null,null,null,null,null,null,null,null,null,null,null,null,{"$f":"IF(ISERROR(VLOOKUP(A794,'Submission Template'!$K$5,1,FALSE)),\"\",C794)","v":""}]
[null,null,null,null,null,null,null,null,null,null,null,null,null,null,null,null,null,null,null,null,null,null,null,null,{"$f":"IF(ISERROR(VLOOKUP(A795,'Submission Template'!$K$5,1,FALSE)),\"\",C795)","v":""}]
[null,null,null,null,null,null,null,null,null,null,null,null,null,null,null,null,null,null,null,null,null,null,null,null,{"$f":"IF(ISERROR(VLOOKUP(A796,'Submission Template'!$K$5,1,FALSE)),\"\",C796)","v":""}]
[null,null,null,null,null,null,null,null,null,null,null,null,null,null,null,null,null,null,null,null,null,null,null,null,{"$f":"IF(ISERROR(VLOOKUP(A797,'Submission Template'!$K$5,1,FALSE)),\"\",C797)","v":""}]
[null,null,null,null,null,null,null,null,null,null,null,null,null,null,null,null,null,null,null,null,null,null,null,null,{"$f":"IF(ISERROR(VLOOKUP(A798,'Submission Template'!$K$5,1,FALSE)),\"\",C798)","v":""}]
[null,null,null,null,null,null,null,null,null,null,null,null,null,null,null,null,null,null,null,null,null,null,null,null,{"$f":"IF(ISERROR(VLOOKUP(A799,'Submission Template'!$K$5,1,FALSE)),\"\",C799)","v":""}]
[null,null,null,null,null,null,null,null,null,null,null,null,null,null,null,null,null,null,null,null,null,null,null,null,{"$f":"IF(ISERROR(VLOOKUP(A800,'Submission Template'!$K$5,1,FALSE)),\"\",C800)","v":""}]
[null,null,null,null,null,null,null,null,null,null,null,null,null,null,null,null,null,null,null,null,null,null,null,null,{"$f":"IF(ISERROR(VLOOKUP(A801,'Submission Template'!$K$5,1,FALSE)),\"\",C801)","v":""}]
[null,null,null,null,null,null,null,null,null,null,null,null,null,null,null,null,null,null,null,null,null,null,null,null,{"$f":"IF(ISERROR(VLOOKUP(A802,'Submission Template'!$K$5,1,FALSE)),\"\",C802)","v":""}]
[null,null,null,null,null,null,null,null,null,null,null,null,null,null,null,null,null,null,null,null,null,null,null,null,{"$f":"IF(ISERROR(VLOOKUP(A803,'Submission Template'!$K$5,1,FALSE)),\"\",C803)","v":""}]
[null,null,null,null,null,null,null,null,null,null,null,null,null,null,null,null,null,null,null,null,null,null,null,null,{"$f":"IF(ISERROR(VLOOKUP(A804,'Submission Template'!$K$5,1,FALSE)),\"\",C804)","v":""}]
[null,null,null,null,null,null,null,null,null,null,null,null,null,null,null,null,null,null,null,null,null,null,null,null,{"$f":"IF(ISERROR(VLOOKUP(A805,'Submission Template'!$K$5,1,FALSE)),\"\",C805)","v":""}]
[null,null,null,null,null,null,null,null,null,null,null,null,null,null,null,null,null,null,null,null,null,null,null,null,{"$f":"IF(ISERROR(VLOOKUP(A806,'Submission Template'!$K$5,1,FALSE)),\"\",C806)","v":""}]
[null,null,null,null,null,null,null,null,null,null,null,null,null,null,null,null,null,null,null,null,null,null,null,null,{"$f":"IF(ISERROR(VLOOKUP(A807,'Submission Template'!$K$5,1,FALSE)),\"\",C807)","v":""}]
[null,null,null,null,null,null,null,null,null,null,null,null,null,null,null,null,null,null,null,null,null,null,null,null,{"$f":"IF(ISERROR(VLOOKUP(A808,'Submission Template'!$K$5,1,FALSE)),\"\",C808)","v":""}]
[null,null,null,null,null,null,null,null,null,null,null,null,null,null,null,null,null,null,null,null,null,null,null,null,{"$f":"IF(ISERROR(VLOOKUP(A809,'Submission Template'!$K$5,1,FALSE)),\"\",C809)","v":""}]
[null,null,null,null,null,null,null,null,null,null,null,null,null,null,null,null,null,null,null,null,null,null,null,null,{"$f":"IF(ISERROR(VLOOKUP(A810,'Submission Template'!$K$5,1,FALSE)),\"\",C810)","v":""}]
[null,null,null,null,null,null,null,null,null,null,null,null,null,null,null,null,null,null,null,null,null,null,null,null,{"$f":"IF(ISERROR(VLOOKUP(A811,'Submission Template'!$K$5,1,FALSE)),\"\",C811)","v":""}]
[null,null,null,null,null,null,null,null,null,null,null,null,null,null,null,null,null,null,null,null,null,null,null,null,{"$f":"IF(ISERROR(VLOOKUP(A812,'Submission Template'!$K$5,1,FALSE)),\"\",C812)","v":""}]
[null,null,null,null,null,null,null,null,null,null,null,null,null,null,null,null,null,null,null,null,null,null,null,null,{"$f":"IF(ISERROR(VLOOKUP(A813,'Submission Template'!$K$5,1,FALSE)),\"\",C813)","v":""}]
[null,null,null,null,null,null,null,null,null,null,null,null,null,null,null,null,null,null,null,null,null,null,null,null,{"$f":"IF(ISERROR(VLOOKUP(A814,'Submission Template'!$K$5,1,FALSE)),\"\",C814)","v":""}]
[null,null,null,null,null,null,null,null,null,null,null,null,null,null,null,null,null,null,null,null,null,null,null,null,{"$f":"IF(ISERROR(VLOOKUP(A815,'Submission Template'!$K$5,1,FALSE)),\"\",C815)","v":""}]
[null,null,null,null,null,null,null,null,null,null,null,null,null,null,null,null,null,null,null,null,null,null,null,null,{"$f":"IF(ISERROR(VLOOKUP(A816,'Submission Template'!$K$5,1,FALSE)),\"\",C816)","v":""}]
[null,null,null,null,null,null,null,null,null,null,null,null,null,null,null,null,null,null,null,null,null,null,null,null,{"$f":"IF(ISERROR(VLOOKUP(A817,'Submission Template'!$K$5,1,FALSE)),\"\",C817)","v":""}]
[null,null,null,null,null,null,null,null,null,null,null,null,null,null,null,null,null,null,null,null,null,null,null,null,{"$f":"IF(ISERROR(VLOOKUP(A818,'Submission Template'!$K$5,1,FALSE)),\"\",C818)","v":""}]
[null,null,null,null,null,null,null,null,null,null,null,null,null,null,null,null,null,null,null,null,null,null,null,null,{"$f":"IF(ISERROR(VLOOKUP(A819,'Submission Template'!$K$5,1,FALSE)),\"\",C819)","v":""}]
[null,null,null,null,null,null,null,null,null,null,null,null,null,null,null,null,null,null,null,null,null,null,null,null,{"$f":"IF(ISERROR(VLOOKUP(A820,'Submission Template'!$K$5,1,FALSE)),\"\",C820)","v":""}]
[null,null,null,null,null,null,null,null,null,null,null,null,null,null,null,null,null,null,null,null,null,null,null,null,{"$f":"IF(ISERROR(VLOOKUP(A821,'Submission Template'!$K$5,1,FALSE)),\"\",C821)","v":""}]
[null,null,null,null,null,null,null,null,null,null,null,null,null,null,null,null,null,null,null,null,null,null,null,null,{"$f":"IF(ISERROR(VLOOKUP(A822,'Submission Template'!$K$5,1,FALSE)),\"\",C822)","v":""}]
[null,null,null,null,null,null,null,null,null,null,null,null,null,null,null,null,null,null,null,null,null,null,null,null,{"$f":"IF(ISERROR(VLOOKUP(A823,'Submission Template'!$K$5,1,FALSE)),\"\",C823)","v":""}]
[null,null,null,null,null,null,null,null,null,null,null,null,null,null,null,null,null,null,null,null,null,null,null,null,{"$f":"IF(ISERROR(VLOOKUP(A824,'Submission Template'!$K$5,1,FALSE)),\"\",C824)","v":""}]
[null,null,null,null,null,null,null,null,null,null,null,null,null,null,null,null,null,null,null,null,null,null,null,null,{"$f":"IF(ISERROR(VLOOKUP(A825,'Submission Template'!$K$5,1,FALSE)),\"\",C825)","v":""}]
[null,null,null,null,null,null,null,null,null,null,null,null,null,null,null,null,null,null,null,null,null,null,null,null,{"$f":"IF(ISERROR(VLOOKUP(A826,'Submission Template'!$K$5,1,FALSE)),\"\",C826)","v":""}]
[null,null,null,null,null,null,null,null,null,null,null,null,null,null,null,null,null,null,null,null,null,null,null,null,{"$f":"IF(ISERROR(VLOOKUP(A827,'Submission Template'!$K$5,1,FALSE)),\"\",C827)","v":""}]
[null,null,null,null,null,null,null,null,null,null,null,null,null,null,null,null,null,null,null,null,null,null,null,null,{"$f":"IF(ISERROR(VLOOKUP(A828,'Submission Template'!$K$5,1,FALSE)),\"\",C828)","v":""}]
[null,null,null,null,null,null,null,null,null,null,null,null,null,null,null,null,null,null,null,null,null,null,null,null,{"$f":"IF(ISERROR(VLOOKUP(A829,'Submission Template'!$K$5,1,FALSE)),\"\",C829)","v":""}]
[null,null,null,null,null,null,null,null,null,null,null,null,null,null,null,null,null,null,null,null,null,null,null,null,{"$f":"IF(ISERROR(VLOOKUP(A830,'Submission Template'!$K$5,1,FALSE)),\"\",C830)","v":""}]
[null,null,null,null,null,null,null,null,null,null,null,null,null,null,null,null,null,null,null,null,null,null,null,null,{"$f":"IF(ISERROR(VLOOKUP(A831,'Submission Template'!$K$5,1,FALSE)),\"\",C831)","v":""}]
[null,null,null,null,null,null,null,null,null,null,null,null,null,null,null,null,null,null,null,null,null,null,null,null,{"$f":"IF(ISERROR(VLOOKUP(A832,'Submission Template'!$K$5,1,FALSE)),\"\",C832)","v":""}]
[null,null,null,null,null,null,null,null,null,null,null,null,null,null,null,null,null,null,null,null,null,null,null,null,{"$f":"IF(ISERROR(VLOOKUP(A833,'Submission Template'!$K$5,1,FALSE)),\"\",C833)","v":""}]
[null,null,null,null,null,null,null,null,null,null,null,null,null,null,null,null,null,null,null,null,null,null,null,null,{"$f":"IF(ISERROR(VLOOKUP(A834,'Submission Template'!$K$5,1,FALSE)),\"\",C834)","v":""}]
[null,null,null,null,null,null,null,null,null,null,null,null,null,null,null,null,null,null,null,null,null,null,null,null,{"$f":"IF(ISERROR(VLOOKUP(A835,'Submission Template'!$K$5,1,FALSE)),\"\",C835)","v":""}]
[null,null,null,null,null,null,null,null,null,null,null,null,null,null,null,null,null,null,null,null,null,null,null,null,{"$f":"IF(ISERROR(VLOOKUP(A836,'Submission Template'!$K$5,1,FALSE)),\"\",C836)","v":""}]
[null,null,null,null,null,null,null,null,null,null,null,null,null,null,null,null,null,null,null,null,null,null,null,null,{"$f":"IF(ISERROR(VLOOKUP(A837,'Submission Template'!$K$5,1,FALSE)),\"\",C837)","v":""}]
[null,null,null,null,null,null,null,null,null,null,null,null,null,null,null,null,null,null,null,null,null,null,null,null,{"$f":"IF(ISERROR(VLOOKUP(A838,'Submission Template'!$K$5,1,FALSE)),\"\",C838)","v":""}]
[null,null,null,null,null,null,null,null,null,null,null,null,null,null,null,null,null,null,null,null,null,null,null,null,{"$f":"IF(ISERROR(VLOOKUP(A839,'Submission Template'!$K$5,1,FALSE)),\"\",C839)","v":""}]
[null,null,null,null,null,null,null,null,null,null,null,null,null,null,null,null,null,null,null,null,null,null,null,null,{"$f":"IF(ISERROR(VLOOKUP(A840,'Submission Template'!$K$5,1,FALSE)),\"\",C840)","v":""}]
[null,null,null,null,null,null,null,null,null,null,null,null,null,null,null,null,null,null,null,null,null,null,null,null,{"$f":"IF(ISERROR(VLOOKUP(A841,'Submission Template'!$K$5,1,FALSE)),\"\",C841)","v":""}]
[null,null,null,null,null,null,null,null,null,null,null,null,null,null,null,null,null,null,null,null,null,null,null,null,{"$f":"IF(ISERROR(VLOOKUP(A842,'Submission Template'!$K$5,1,FALSE)),\"\",C842)","v":""}]
[null,null,null,null,null,null,null,null,null,null,null,null,null,null,null,null,null,null,null,null,null,null,null,null,{"$f":"IF(ISERROR(VLOOKUP(A843,'Submission Template'!$K$5,1,FALSE)),\"\",C843)","v":""}]
[null,null,null,null,null,null,null,null,null,null,null,null,null,null,null,null,null,null,null,null,null,null,null,null,{"$f":"IF(ISERROR(VLOOKUP(A844,'Submission Template'!$K$5,1,FALSE)),\"\",C844)","v":""}]
[null,null,null,null,null,null,null,null,null,null,null,null,null,null,null,null,null,null,null,null,null,null,null,null,{"$f":"IF(ISERROR(VLOOKUP(A845,'Submission Template'!$K$5,1,FALSE)),\"\",C845)","v":""}]
[null,null,null,null,null,null,null,null,null,null,null,null,null,null,null,null,null,null,null,null,null,null,null,null,{"$f":"IF(ISERROR(VLOOKUP(A846,'Submission Template'!$K$5,1,FALSE)),\"\",C846)","v":""}]
[null,null,null,null,null,null,null,null,null,null,null,null,null,null,null,null,null,null,null,null,null,null,null,null,{"$f":"IF(ISERROR(VLOOKUP(A847,'Submission Template'!$K$5,1,FALSE)),\"\",C847)","v":""}]
[null,null,null,null,null,null,null,null,null,null,null,null,null,null,null,null,null,null,null,null,null,null,null,null,{"$f":"IF(ISERROR(VLOOKUP(A848,'Submission Template'!$K$5,1,FALSE)),\"\",C848)","v":""}]
[null,null,null,null,null,null,null,null,null,null,null,null,null,null,null,null,null,null,null,null,null,null,null,null,{"$f":"IF(ISERROR(VLOOKUP(A849,'Submission Template'!$K$5,1,FALSE)),\"\",C849)","v":""}]
[null,null,null,null,null,null,null,null,null,null,null,null,null,null,null,null,null,null,null,null,null,null,null,null,{"$f":"IF(ISERROR(VLOOKUP(A850,'Submission Template'!$K$5,1,FALSE)),\"\",C850)","v":""}]
[null,null,null,null,null,null,null,null,null,null,null,null,null,null,null,null,null,null,null,null,null,null,null,null,{"$f":"IF(ISERROR(VLOOKUP(A851,'Submission Template'!$K$5,1,FALSE)),\"\",C851)","v":""}]
[null,null,null,null,null,null,null,null,null,null,null,null,null,null,null,null,null,null,null,null,null,null,null,null,{"$f":"IF(ISERROR(VLOOKUP(A852,'Submission Template'!$K$5,1,FALSE)),\"\",C852)","v":""}]
[null,null,null,null,null,null,null,null,null,null,null,null,null,null,null,null,null,null,null,null,null,null,null,null,{"$f":"IF(ISERROR(VLOOKUP(A853,'Submission Template'!$K$5,1,FALSE)),\"\",C853)","v":""}]